Organisation name,Organisation Code,Directorate,Service Category label,Service Category code,Supplier name,Payment date,Transaction number,Net Amount,Purpose of spend,Procurement category name
Southend-on-Sea Borough Council,http://www.opendatacommunities.org/id/unitary-authority/southend,"ED Strategy, Change & Governance",Central Services,7130,(G) Cityfibre Limited,02/12/2022,12072634,762.80,Internet,Communications And Computing
Southend-on-Sea Borough Council,http://www.opendatacommunities.org/id/unitary-authority/southend,"ED Strategy, Change & Governance",Central Services,7130,(G) Cityfibre Limited,02/12/2022,12072634,1425.58,Internet,Communications And Computing
Southend-on-Sea Borough Council,http://www.opendatacommunities.org/id/unitary-authority/southend,"ED Strategy, Change & Governance",Central Services,7130,(G) Cityfibre Limited,02/12/2022,12072634,975.58,Internet,Communications And Computing
Southend-on-Sea Borough Council,http://www.opendatacommunities.org/id/unitary-authority/southend,"ED Strategy, Change & Governance",Central Services,7130,(G) Cityfibre Limited,02/12/2022,12072634,83145.20,Internet,Communications And Computing
Southend-on-Sea Borough Council,http://www.opendatacommunities.org/id/unitary-authority/southend,"ED Strategy, Change & Governance",Central Services,7130,(G) Cityfibre Limited,02/12/2022,12072634,762.80,Internet,Communications And Computing
Southend-on-Sea Borough Council,http://www.opendatacommunities.org/id/unitary-authority/southend,ED Growth & Housing,Housing Services,9005,(G) Gracelands Cms Ltd,02/12/2022,12072634,6562.20,Contractors General,Contractors General
Southend-on-Sea Borough Council,http://www.opendatacommunities.org/id/unitary-authority/southend,ED Neighbourhoods & Environment,Environmental And Regulatory Services,4506,(G) Kieran Lucas Contractors Ltd,02/12/2022,12072634,1434.00,Repairs And Maintenance Contracts,"Repairs, alterations and maintenance of buildings"
Southend-on-Sea Borough Council,http://www.opendatacommunities.org/id/unitary-authority/southend,Growth & Housing,Central Services,9007,(G) R & A Mechanical Services Ltd,02/12/2022,12072634,3600.00,Main Contractor,Main Contractor
Southend-on-Sea Borough Council,http://www.opendatacommunities.org/id/unitary-authority/southend,ED Adults & Communities,Cultural And Related Services,4025,(G) R & A Mechanical Services Ltd,02/12/2022,12072634,810.00,Repairs And Maintenance Contracts,"Repairs, alterations and maintenance of buildings"
Southend-on-Sea Borough Council,http://www.opendatacommunities.org/id/unitary-authority/southend,ED Finance & Resources,Central Services,7140,(G) R & A Mechanical Services Ltd,02/12/2022,12072634,2500.00,Tools And Equipment Purchase,Equipment Furniture And Materials
Southend-on-Sea Borough Council,http://www.opendatacommunities.org/id/unitary-authority/southend,ED Neighbourhoods & Environment,Cultural And Related Services,4200,(G) R & A Mechanical Services Ltd,02/12/2022,12072634,1170.00,Repairs And Maintenance Contracts,"Repairs, alterations and maintenance of buildings"
Southend-on-Sea Borough Council,http://www.opendatacommunities.org/id/unitary-authority/southend,ED Neighbourhoods & Environment,Environmental And Regulatory Services,4505,(G) R & A Mechanical Services Ltd,02/12/2022,12072634,2200.00,Repairs And Maintenance Contracts,"Repairs, alterations and maintenance of buildings"
Southend-on-Sea Borough Council,http://www.opendatacommunities.org/id/unitary-authority/southend,Neighbourhoods & Environment,Central Services,9008,(G) Rw & Jr Burroughs,02/12/2022,12072634,550.00,Main Contractor,Main Contractor
Southend-on-Sea Borough Council,http://www.opendatacommunities.org/id/unitary-authority/southend,Growth & Housing,Central Services,9007,(N) Scribble Stone Limited,02/12/2022,12072634,38091.60,Contractors General,Contractors General
Southend-on-Sea Borough Council,http://www.opendatacommunities.org/id/unitary-authority/southend,Growth & Housing,Central Services,9007,(N) Scribble Stone Limited,02/12/2022,12072634,29203.56,Contractors General,Contractors General
Southend-on-Sea Borough Council,http://www.opendatacommunities.org/id/unitary-authority/southend,Growth & Housing,Central Services,9007,(N) Scribble Stone Limited,02/12/2022,12072634,3796.93,Contractors General,Contractors General
Southend-on-Sea Borough Council,http://www.opendatacommunities.org/id/unitary-authority/southend,ED Growth & Housing,Central Services,5641,07 Heaven Design Ltd T/A 07 Heaven Marketing Ltd,02/12/2022,12072634,1519.20,3rd Party training,Services
Southend-on-Sea Borough Council,http://www.opendatacommunities.org/id/unitary-authority/southend,"ED Strategy, Change & Governance",Adult Social Care,3201,Ac Education Limited,02/12/2022,12072634,650.00,Commissioned Training,Services
Southend-on-Sea Borough Council,http://www.opendatacommunities.org/id/unitary-authority/southend,ED Finance & Resources,Housing Services,6165,Allpay Limited - Southend,02/12/2022,12072634,100000.00,Catering Food And Beverages,Catering
Southend-on-Sea Borough Council,http://www.opendatacommunities.org/id/unitary-authority/southend,ED Adults & Communities,Cultural And Related Services,4122,Angel Human Resources Ltd T/A Angel Recruitment Group,02/12/2022,12072634,774.50,Agency Staff,Direct Employee Expenses
Southend-on-Sea Borough Council,http://www.opendatacommunities.org/id/unitary-authority/southend,ED Neighbourhoods & Environment,Environmental And Regulatory Services,4525,Association Of Town Centre Management,02/12/2022,12072634,1000.00,Subscriptions,Grants And Subscriptions
Southend-on-Sea Borough Council,http://www.opendatacommunities.org/id/unitary-authority/southend,ED Growth & Housing,Central Services,5641,Basildon Council,02/12/2022,12072634,20000.00,3rd Party Payments - Education incentive,Other Agencies
Southend-on-Sea Borough Council,http://www.opendatacommunities.org/id/unitary-authority/southend,ED Neighbourhoods & Environment,Highways And Transport Services,5350,Blue Therapy Active,02/12/2022,12072634,2500.00,Cultural And Entertainment Services,Services
Southend-on-Sea Borough Council,http://www.opendatacommunities.org/id/unitary-authority/southend,ED Neighbourhoods & Environment,Highways And Transport Services,5350,Blue Therapy Active,02/12/2022,12072634,2500.00,Cultural And Entertainment Services,Services
Southend-on-Sea Borough Council,http://www.opendatacommunities.org/id/unitary-authority/southend,"ED Strategy, Change & Governance",Central Services,8602,Bt Payment Services Ltd,02/12/2022,12072634,7772.90,Communications Telephone Rental,Communications And Computing
Southend-on-Sea Borough Council,http://www.opendatacommunities.org/id/unitary-authority/southend,"ED Strategy, Change & Governance",Central Services,8602,Bt Payment Services Ltd,02/12/2022,12072634,7550.70,Communications Telephone Rental,Communications And Computing
Southend-on-Sea Borough Council,http://www.opendatacommunities.org/id/unitary-authority/southend,"ED Strategy, Change & Governance",Central Services,8602,Bt Payment Services Ltd,02/12/2022,12072634,8090.56,Communications Telephone Rental,Communications And Computing
Southend-on-Sea Borough Council,http://www.opendatacommunities.org/id/unitary-authority/southend,ED Children & Public Health,Children And Education Services,3250,Caring Hearts Fostering Ltd,02/12/2022,12072634,3542.99,Private Contractors,Other Agencies
Southend-on-Sea Borough Council,http://www.opendatacommunities.org/id/unitary-authority/southend,ED Finance & Resources,Central Services,7140,City Electrical Factors Ltd,02/12/2022,12072634,968.00,Materials,Equipment Furniture And Materials
Southend-on-Sea Borough Council,http://www.opendatacommunities.org/id/unitary-authority/southend,ED Finance & Resources,Central Services,2190,Civil Ceremonies Ltd,02/12/2022,12072634,794.95,Printing,Printing Stationery And General Office Expenses
Southend-on-Sea Borough Council,http://www.opendatacommunities.org/id/unitary-authority/southend,Neighbourhoods & Environment,Central Services,9008,Concept Engineering Consultants Ltd T/A Con Site Investigation,02/12/2022,12072634,49657.50,Main Contractor,Main Contractor
Southend-on-Sea Borough Council,http://www.opendatacommunities.org/id/unitary-authority/southend,Neighbourhoods & Environment,Central Services,9008,Concept Engineering Consultants Ltd T/A Con Site Investigation,02/12/2022,12072634,73922.50,Main Contractor,Main Contractor
Southend-on-Sea Borough Council,http://www.opendatacommunities.org/id/unitary-authority/southend,Neighbourhoods & Environment,Central Services,9008,Concept Engineering Consultants Ltd T/A Con Site Investigation,02/12/2022,12072634,33420.00,Main Contractor,Main Contractor
Southend-on-Sea Borough Council,http://www.opendatacommunities.org/id/unitary-authority/southend,Neighbourhoods & Environment,Central Services,9008,Concept Engineering Consultants Ltd T/A Con Site Investigation,02/12/2022,12072634,26226.00,Main Contractor,Main Contractor
Southend-on-Sea Borough Council,http://www.opendatacommunities.org/id/unitary-authority/southend,Neighbourhoods & Environment,Central Services,9008,Concept Engineering Consultants Ltd T/A Con Site Investigation,02/12/2022,12072634,7335.80,Main Contractor,Main Contractor
Southend-on-Sea Borough Council,http://www.opendatacommunities.org/id/unitary-authority/southend,Neighbourhoods & Environment,Central Services,9008,Concept Engineering Consultants Ltd T/A Con Site Investigation,02/12/2022,12072634,50723.35,Main Contractor,Main Contractor
Southend-on-Sea Borough Council,http://www.opendatacommunities.org/id/unitary-authority/southend,Neighbourhoods & Environment,Central Services,9008,Concept Engineering Consultants Ltd T/A Con Site Investigation,02/12/2022,12072634,-73922.50,Main Contractor,Main Contractor
Southend-on-Sea Borough Council,http://www.opendatacommunities.org/id/unitary-authority/southend,Neighbourhoods & Environment,Central Services,9008,Concept Engineering Consultants Ltd T/A Con Site Investigation,02/12/2022,12072634,256903.75,Main Contractor,Main Contractor
Southend-on-Sea Borough Council,http://www.opendatacommunities.org/id/unitary-authority/southend,Neighbourhoods & Environment,Central Services,9008,Concept Engineering Consultants Ltd T/A Con Site Investigation,02/12/2022,12072634,-26226.00,Main Contractor,Main Contractor
Southend-on-Sea Borough Council,http://www.opendatacommunities.org/id/unitary-authority/southend,Neighbourhoods & Environment,Central Services,9008,Concept Engineering Consultants Ltd T/A Con Site Investigation,02/12/2022,12072634,-33420.00,Main Contractor,Main Contractor
Southend-on-Sea Borough Council,http://www.opendatacommunities.org/id/unitary-authority/southend,Neighbourhoods & Environment,Central Services,9008,Concept Engineering Consultants Ltd T/A Con Site Investigation,02/12/2022,12072634,48114.37,Main Contractor,Main Contractor
Southend-on-Sea Borough Council,http://www.opendatacommunities.org/id/unitary-authority/southend,Neighbourhoods & Environment,Central Services,9008,Concept Engineering Consultants Ltd T/A Con Site Investigation,02/12/2022,12072634,-7335.80,Main Contractor,Main Contractor
Southend-on-Sea Borough Council,http://www.opendatacommunities.org/id/unitary-authority/southend,Neighbourhoods & Environment,Central Services,9008,Concept Engineering Consultants Ltd T/A Con Site Investigation,02/12/2022,12072634,-49657.50,Main Contractor,Main Contractor
Southend-on-Sea Borough Council,http://www.opendatacommunities.org/id/unitary-authority/southend,Neighbourhoods & Environment,Central Services,9008,Concept Engineering Consultants Ltd T/A Con Site Investigation,02/12/2022,12072634,86633.16,Main Contractor,Main Contractor
Southend-on-Sea Borough Council,http://www.opendatacommunities.org/id/unitary-authority/southend,"ED Strategy, Change & Governance",Central Services,8602,Daisy Corporate Services Trading Limited,02/12/2022,12072634,13274.22,Communications Telephone Rental,Communications And Computing
Southend-on-Sea Borough Council,http://www.opendatacommunities.org/id/unitary-authority/southend,ED Children & Public Health,Public Health,7713,Datix Ltd,02/12/2022,12072634,7302.74,IT Software,Communications And Computing
Southend-on-Sea Borough Council,http://www.opendatacommunities.org/id/unitary-authority/southend,ED Neighbourhoods & Environment,Environmental And Regulatory Services,4505,Dignity Funerals Ltd T/A J W Tate & Son,02/12/2022,12072634,680.00,Crematoria And Cemetery Services,Services
Southend-on-Sea Borough Council,http://www.opendatacommunities.org/id/unitary-authority/southend,ED Children & Public Health,Children And Education Services,3590,Diverse Rec Ltd T/A People Pool Ltd,02/12/2022,12072634,1607.50,Agency Staff,Direct Employee Expenses
Southend-on-Sea Borough Council,http://www.opendatacommunities.org/id/unitary-authority/southend,ED Neighbourhoods & Environment,Cultural and Related Services,7540,E H Roberts-Penet Group Ltd,02/12/2022,12072634,825.00,Contract Hire Of Vehicles Not Taxis Plant Or Buses,Contract Hire And Operating Leases
Southend-on-Sea Borough Council,http://www.opendatacommunities.org/id/unitary-authority/southend,ED Finance & Resources,Central Services,5605,E.On Energy,02/12/2022,12072634,-813.59,Energy Cost Gas,Energy Costs
Southend-on-Sea Borough Council,http://www.opendatacommunities.org/id/unitary-authority/southend,ED Finance & Resources,Central Services,5605,E.On Energy,02/12/2022,12072634,813.59,Energy Cost Gas,Energy Costs
Southend-on-Sea Borough Council,http://www.opendatacommunities.org/id/unitary-authority/southend,ED Finance & Resources,Central Services,5605,E.On Energy,02/12/2022,12072634,592.52,Energy Cost Gas,Energy Costs
Southend-on-Sea Borough Council,http://www.opendatacommunities.org/id/unitary-authority/southend,ED Finance & Resources,Central Services,5605,E.On Energy,02/12/2022,12072634,-3534.25,Energy Cost Gas,Energy Costs
Southend-on-Sea Borough Council,http://www.opendatacommunities.org/id/unitary-authority/southend,ED Finance & Resources,Central Services,5605,E.On Energy,02/12/2022,12072634,837.08,Energy Cost Gas,Energy Costs
Southend-on-Sea Borough Council,http://www.opendatacommunities.org/id/unitary-authority/southend,ED Finance & Resources,Central Services,5605,E.On Energy,02/12/2022,12072634,797.67,Energy Cost Gas,Energy Costs
Southend-on-Sea Borough Council,http://www.opendatacommunities.org/id/unitary-authority/southend,ED Finance & Resources,Central Services,5605,E.On Energy,02/12/2022,12072634,864.63,Energy Cost Gas,Energy Costs
Southend-on-Sea Borough Council,http://www.opendatacommunities.org/id/unitary-authority/southend,"ED Strategy, Change & Governance",Central Services,7105,East Anglian Chambers T/A Mr Jonathan Hasson,02/12/2022,12072634,750.00,Barristers fees,Services
Southend-on-Sea Borough Council,http://www.opendatacommunities.org/id/unitary-authority/southend,ED Neighbourhoods & Environment,Environmental And Regulatory Services,4575,East Anglian Chambers T/A Mr Marcus Croskell,02/12/2022,12072634,14420.00,Court Costs And Legal Fees,Services
Southend-on-Sea Borough Council,http://www.opendatacommunities.org/id/unitary-authority/southend,"ED Strategy, Change & Governance",Central Services,7105,East Anglian Chambers T/A Ms Sarah Duxbury,02/12/2022,12072634,850.00,Barristers fees,Services
Southend-on-Sea Borough Council,http://www.opendatacommunities.org/id/unitary-authority/southend,"ED Strategy, Change & Governance",Central Services,7125,East Of England Lga,02/12/2022,12072634,745.11,Professional Fees,Services
Southend-on-Sea Borough Council,http://www.opendatacommunities.org/id/unitary-authority/southend,ED Growth & Housing,Central Services,5637,East Productions (Uk) Ltd,02/12/2022,12072634,8046.50,Grants,Grants And Subscriptions
Southend-on-Sea Borough Council,http://www.opendatacommunities.org/id/unitary-authority/southend,ED Adults & Communities,Adult Social Care,1209,Enable Access Ltd,02/12/2022,12072634,1082.80,Tools And Equipment Purchase,Equipment Furniture And Materials
Southend-on-Sea Borough Council,http://www.opendatacommunities.org/id/unitary-authority/southend,ED Growth & Housing,Housing Services,6130,Estra Investment Ltd,02/12/2022,12072634,3445.00,Loans,Services
Southend-on-Sea Borough Council,http://www.opendatacommunities.org/id/unitary-authority/southend,ED Growth & Housing,Housing Services,6010,Estra Investment Ltd,02/12/2022,12072634,1600.00,Accomodation Payment,Services
Southend-on-Sea Borough Council,http://www.opendatacommunities.org/id/unitary-authority/southend,ED Growth & Housing,Central Services,5642,Five Seasons Ltd,02/12/2022,12072634,500.00,Professional Fees,Services
Southend-on-Sea Borough Council,http://www.opendatacommunities.org/id/unitary-authority/southend,ED Children & Public Health,Children And Education Services,3250,Flourish Fostering Limited,02/12/2022,12072634,4440.00,Private Contractors,Other Agencies
Southend-on-Sea Borough Council,http://www.opendatacommunities.org/id/unitary-authority/southend,ED Children & Public Health,Children And Education Services,3250,Flourish Fostering Limited,02/12/2022,12072634,4440.00,Private Contractors,Other Agencies
Southend-on-Sea Borough Council,http://www.opendatacommunities.org/id/unitary-authority/southend,ED Neighbourhoods & Environment,Highways And Transport Services,5230,Flowbird Smart City Uk Limited,02/12/2022,12072634,2295.00,Tools And Equipment Purchase,Equipment Furniture And Materials
Southend-on-Sea Borough Council,http://www.opendatacommunities.org/id/unitary-authority/southend,ED Growth & Housing,Central Services,5637,Foxtel Services Ltd,02/12/2022,12072634,7729.04,Grants,Grants And Subscriptions
Southend-on-Sea Borough Council,http://www.opendatacommunities.org/id/unitary-authority/southend,ED Adults & Communities,Public Health,7600,Gbs Re Chelsea And Westminster Hospital Nhs Foundation Trust,02/12/2022,12072634,65272.29,Health Authorities,Health Authorities
Southend-on-Sea Borough Council,http://www.opendatacommunities.org/id/unitary-authority/southend,ED Adults & Communities,Adult Social Care,1105,Golden Keys Care Agency Limited,02/12/2022,12072634,798.00,Private Contractors,Other Agencies
Southend-on-Sea Borough Council,http://www.opendatacommunities.org/id/unitary-authority/southend,ED Adults & Communities,Adult Social Care,1105,Golden Keys Care Agency Limited,02/12/2022,12072634,1064.00,Private Contractors,Other Agencies
Southend-on-Sea Borough Council,http://www.opendatacommunities.org/id/unitary-authority/southend,ED Adults & Communities,Adult Social Care,1205,Golden Keys Care Agency Limited,02/12/2022,12072634,684.00,Private Contractors,Other Agencies
Southend-on-Sea Borough Council,http://www.opendatacommunities.org/id/unitary-authority/southend,ED Adults & Communities,Adult Social Care,1105,Golden Keys Care Agency Limited,02/12/2022,12072634,2137.50,Private Contractors,Other Agencies
Southend-on-Sea Borough Council,http://www.opendatacommunities.org/id/unitary-authority/southend,ED Adults & Communities,Adult Social Care,1105,Golden Keys Care Agency Limited,02/12/2022,12072634,679.25,Private Contractors,Other Agencies
Southend-on-Sea Borough Council,http://www.opendatacommunities.org/id/unitary-authority/southend,ED Adults & Communities,Adult Social Care,1105,Golden Keys Care Agency Limited,02/12/2022,12072634,2926.00,Private Contractors,Other Agencies
Southend-on-Sea Borough Council,http://www.opendatacommunities.org/id/unitary-authority/southend,ED Adults & Communities,Adult Social Care,1180,Hays Specialist Recruitment Ltd Receipts Recruitment File Only,02/12/2022,12072634,1135.52,Agency Staff,Direct Employee Expenses
Southend-on-Sea Borough Council,http://www.opendatacommunities.org/id/unitary-authority/southend,ED Adults & Communities,Adult Social Care,1051,Hays Specialist Recruitment Ltd Receipts Recruitment File Only,02/12/2022,12072634,1454.07,Agency Staff,Direct Employee Expenses
Southend-on-Sea Borough Council,http://www.opendatacommunities.org/id/unitary-authority/southend,ED Adults & Communities,Adult Social Care,1051,Hays Specialist Recruitment Ltd Receipts Recruitment File Only,02/12/2022,12072634,763.62,Agency Staff,Direct Employee Expenses
Southend-on-Sea Borough Council,http://www.opendatacommunities.org/id/unitary-authority/southend,ED Adults & Communities,Adult Social Care,1353,Hays Specialist Recruitment Ltd Receipts Recruitment File Only,02/12/2022,12072634,558.69,Agency Staff,Direct Employee Expenses
Southend-on-Sea Borough Council,http://www.opendatacommunities.org/id/unitary-authority/southend,ED Adults & Communities,Adult Social Care,1490,Hays Specialist Recruitment Ltd Receipts Recruitment File Only,02/12/2022,12072634,1471.24,Agency Staff,Direct Employee Expenses
Southend-on-Sea Borough Council,http://www.opendatacommunities.org/id/unitary-authority/southend,ED Adults & Communities,Adult Social Care,1490,Hays Specialist Recruitment Ltd Receipts Recruitment File Only,02/12/2022,12072634,1103.43,Agency Staff,Direct Employee Expenses
Southend-on-Sea Borough Council,http://www.opendatacommunities.org/id/unitary-authority/southend,ED Adults & Communities,Adult Social Care,1490,Hays Specialist Recruitment Ltd Receipts Recruitment File Only,02/12/2022,12072634,871.95,Agency Staff,Direct Employee Expenses
Southend-on-Sea Borough Council,http://www.opendatacommunities.org/id/unitary-authority/southend,ED Adults & Communities,Adult Social Care,1350,Hays Specialist Recruitment Ltd Receipts Recruitment File Only,02/12/2022,12072634,1336.44,Agency Staff,Direct Employee Expenses
Southend-on-Sea Borough Council,http://www.opendatacommunities.org/id/unitary-authority/southend,ED Adults & Communities,Adult Social Care,1350,Hays Specialist Recruitment Ltd Receipts Recruitment File Only,02/12/2022,12072634,1336.44,Agency Staff,Direct Employee Expenses
Southend-on-Sea Borough Council,http://www.opendatacommunities.org/id/unitary-authority/southend,ED Adults & Communities,Adult Social Care,1350,Hays Specialist Recruitment Ltd Receipts Recruitment File Only,02/12/2022,12072634,1336.44,Agency Staff,Direct Employee Expenses
Southend-on-Sea Borough Council,http://www.opendatacommunities.org/id/unitary-authority/southend,ED Adults & Communities,Adult Social Care,1350,Hays Specialist Recruitment Ltd Receipts Recruitment File Only,02/12/2022,12072634,1065.54,Agency Staff,Direct Employee Expenses
Southend-on-Sea Borough Council,http://www.opendatacommunities.org/id/unitary-authority/southend,ED Adults & Communities,Adult Social Care,1350,Hays Specialist Recruitment Ltd Receipts Recruitment File Only,02/12/2022,12072634,1336.44,Agency Staff,Direct Employee Expenses
Southend-on-Sea Borough Council,http://www.opendatacommunities.org/id/unitary-authority/southend,ED Adults & Communities,Adult Social Care,1350,Hays Specialist Recruitment Ltd Receipts Recruitment File Only,02/12/2022,12072634,1336.44,Agency Staff,Direct Employee Expenses
Southend-on-Sea Borough Council,http://www.opendatacommunities.org/id/unitary-authority/southend,ED Adults & Communities,Adult Social Care,1350,Hays Specialist Recruitment Ltd Receipts Recruitment File Only,02/12/2022,12072634,1336.44,Agency Staff,Direct Employee Expenses
Southend-on-Sea Borough Council,http://www.opendatacommunities.org/id/unitary-authority/southend,ED Adults & Communities,Adult Social Care,1350,Hays Specialist Recruitment Ltd Receipts Recruitment File Only,02/12/2022,12072634,1336.44,Agency Staff,Direct Employee Expenses
Southend-on-Sea Borough Council,http://www.opendatacommunities.org/id/unitary-authority/southend,ED Adults & Communities,Adult Social Care,1051,Hays Specialist Recruitment Ltd Receipts Recruitment File Only,02/12/2022,12072634,1336.44,Agency Staff,Direct Employee Expenses
Southend-on-Sea Borough Council,http://www.opendatacommunities.org/id/unitary-authority/southend,ED Adults & Communities,Adult Social Care,1025,Hays Specialist Recruitment Ltd Receipts Recruitment File Only,02/12/2022,12072634,5130.00,Agency Staff,Direct Employee Expenses
Southend-on-Sea Borough Council,http://www.opendatacommunities.org/id/unitary-authority/southend,ED Adults & Communities,Adult Social Care,1060,Hays Specialist Recruitment Ltd Receipts Recruitment File Only,02/12/2022,12072634,615.96,Agency Staff,Direct Employee Expenses
Southend-on-Sea Borough Council,http://www.opendatacommunities.org/id/unitary-authority/southend,ED Adults & Communities,Adult Social Care,1180,Hays Specialist Recruitment Ltd Receipts Recruitment File Only,02/12/2022,12072634,1072.52,Agency Staff,Direct Employee Expenses
Southend-on-Sea Borough Council,http://www.opendatacommunities.org/id/unitary-authority/southend,ED Adults & Communities,Adult Social Care,1342,Hays Specialist Recruitment Ltd Receipts Recruitment File Only,02/12/2022,12072634,2565.00,Agency Staff,Direct Employee Expenses
Southend-on-Sea Borough Council,http://www.opendatacommunities.org/id/unitary-authority/southend,ED Adults & Communities,Adult Social Care,1365,Hays Specialist Recruitment Ltd Receipts Recruitment File Only,02/12/2022,12072634,1336.44,Agency Staff,Direct Employee Expenses
Southend-on-Sea Borough Council,http://www.opendatacommunities.org/id/unitary-authority/southend,ED Adults & Communities,Adult Social Care,1365,Hays Specialist Recruitment Ltd Receipts Recruitment File Only,02/12/2022,12072634,1336.44,Agency Staff,Direct Employee Expenses
Southend-on-Sea Borough Council,http://www.opendatacommunities.org/id/unitary-authority/southend,ED Adults & Communities,Adult Social Care,1461,Hays Specialist Recruitment Ltd Receipts Recruitment File Only,02/12/2022,12072634,2605.20,Agency Staff,Direct Employee Expenses
Southend-on-Sea Borough Council,http://www.opendatacommunities.org/id/unitary-authority/southend,ED Adults & Communities,Adult Social Care,1051,Hays Specialist Recruitment Ltd Receipts Recruitment File Only,02/12/2022,12072634,1448.92,Agency Staff,Direct Employee Expenses
Southend-on-Sea Borough Council,http://www.opendatacommunities.org/id/unitary-authority/southend,ED Adults & Communities,Adult Social Care,1180,Hays Specialist Recruitment Ltd Receipts Recruitment File Only,02/12/2022,12072634,706.14,Agency Staff,Direct Employee Expenses
Southend-on-Sea Borough Council,http://www.opendatacommunities.org/id/unitary-authority/southend,ED Adults & Communities,Adult Social Care,1352,Hays Specialist Recruitment Ltd Receipts Recruitment File Only,02/12/2022,12072634,1083.60,Agency Staff,Direct Employee Expenses
Southend-on-Sea Borough Council,http://www.opendatacommunities.org/id/unitary-authority/southend,ED Adults & Communities,Adult Social Care,1040,Hays Specialist Recruitment Ltd Receipts Recruitment File Only,02/12/2022,12072634,569.79,Agency Staff,Direct Employee Expenses
Southend-on-Sea Borough Council,http://www.opendatacommunities.org/id/unitary-authority/southend,ED Adults & Communities,Adult Social Care,1351,Hays Specialist Recruitment Ltd Receipts Recruitment File Only,02/12/2022,12072634,1336.44,Agency Staff,Direct Employee Expenses
Southend-on-Sea Borough Council,http://www.opendatacommunities.org/id/unitary-authority/southend,ED Adults & Communities,Adult Social Care,1353,Hays Specialist Recruitment Ltd Receipts Recruitment File Only,02/12/2022,12072634,507.90,Agency Staff,Direct Employee Expenses
Southend-on-Sea Borough Council,http://www.opendatacommunities.org/id/unitary-authority/southend,ED Adults & Communities,Adult Social Care,1365,Hays Specialist Recruitment Ltd Receipts Recruitment File Only,02/12/2022,12072634,1322.77,Agency Staff,Direct Employee Expenses
Southend-on-Sea Borough Council,http://www.opendatacommunities.org/id/unitary-authority/southend,ED Adults & Communities,Adult Social Care,1365,Hays Specialist Recruitment Ltd Receipts Recruitment File Only,02/12/2022,12072634,1412.13,Agency Staff,Direct Employee Expenses
Southend-on-Sea Borough Council,http://www.opendatacommunities.org/id/unitary-authority/southend,ED Adults & Communities,Adult Social Care,1231,Hays Specialist Recruitment Ltd Receipts Recruitment File Only,02/12/2022,12072634,1321.64,Agency Staff,Direct Employee Expenses
Southend-on-Sea Borough Council,http://www.opendatacommunities.org/id/unitary-authority/southend,ED Adults & Communities,Adult Social Care,1365,Hays Specialist Recruitment Ltd Receipts Recruitment File Only,02/12/2022,12072634,1071.60,Agency Staff,Direct Employee Expenses
Southend-on-Sea Borough Council,http://www.opendatacommunities.org/id/unitary-authority/southend,ED Adults & Communities,Adult Social Care,1020,Hays Specialist Recruitment Ltd Receipts Recruitment File Only,02/12/2022,12072634,2605.20,Agency Staff,Direct Employee Expenses
Southend-on-Sea Borough Council,http://www.opendatacommunities.org/id/unitary-authority/southend,ED Adults & Communities,Adult Social Care,1350,Hays Specialist Recruitment Ltd Receipts Recruitment File Only,02/12/2022,12072634,1336.44,Agency Staff,Direct Employee Expenses
Southend-on-Sea Borough Council,http://www.opendatacommunities.org/id/unitary-authority/southend,ED Adults & Communities,Adult Social Care,1060,Hays Specialist Recruitment Ltd Receipts Recruitment File Only,02/12/2022,12072634,1336.44,Agency Staff,Direct Employee Expenses
Southend-on-Sea Borough Council,http://www.opendatacommunities.org/id/unitary-authority/southend,ED Adults & Communities,Cultural And Related Services,4122,Hays Specialist Recruitment Ltd Receipts Recruitment File Only,02/12/2022,12072634,619.60,Agency Staff,Direct Employee Expenses
Southend-on-Sea Borough Council,http://www.opendatacommunities.org/id/unitary-authority/southend,ED Adults & Communities,Cultural And Related Services,4120,Hays Specialist Recruitment Ltd Receipts Recruitment File Only,02/12/2022,12072634,773.64,Agency Staff,Direct Employee Expenses
Southend-on-Sea Borough Council,http://www.opendatacommunities.org/id/unitary-authority/southend,ED Adults & Communities,Cultural And Related Services,4120,Hays Specialist Recruitment Ltd Receipts Recruitment File Only,02/12/2022,12072634,689.82,Agency Staff,Direct Employee Expenses
Southend-on-Sea Borough Council,http://www.opendatacommunities.org/id/unitary-authority/southend,ED Adults & Communities,Cultural And Related Services,4120,Hays Specialist Recruitment Ltd Receipts Recruitment File Only,02/12/2022,12072634,822.66,Agency Staff,Direct Employee Expenses
Southend-on-Sea Borough Council,http://www.opendatacommunities.org/id/unitary-authority/southend,ED Adults & Communities,Cultural And Related Services,4120,Hays Specialist Recruitment Ltd Receipts Recruitment File Only,02/12/2022,12072634,580.90,Agency Staff,Direct Employee Expenses
Southend-on-Sea Borough Council,http://www.opendatacommunities.org/id/unitary-authority/southend,ED Adults & Communities,Cultural And Related Services,4120,Hays Specialist Recruitment Ltd Receipts Recruitment File Only,02/12/2022,12072634,602.10,Agency Staff,Direct Employee Expenses
Southend-on-Sea Borough Council,http://www.opendatacommunities.org/id/unitary-authority/southend,ED Adults & Communities,Cultural And Related Services,4120,Hays Specialist Recruitment Ltd Receipts Recruitment File Only,02/12/2022,12072634,790.02,Agency Staff,Direct Employee Expenses
Southend-on-Sea Borough Council,http://www.opendatacommunities.org/id/unitary-authority/southend,ED Adults & Communities,Housing Services,1011,Hays Specialist Recruitment Ltd Receipts Recruitment File Only,02/12/2022,12072634,2100.28,Agency Staff,Direct Employee Expenses
Southend-on-Sea Borough Council,http://www.opendatacommunities.org/id/unitary-authority/southend,ED Children & Public Health,Adult Social Care,1035,Hays Specialist Recruitment Ltd Receipts Recruitment File Only,02/12/2022,12072634,765.80,Agency Staff,Direct Employee Expenses
Southend-on-Sea Borough Council,http://www.opendatacommunities.org/id/unitary-authority/southend,ED Children & Public Health,Adult Social Care,1035,Hays Specialist Recruitment Ltd Receipts Recruitment File Only,02/12/2022,12072634,2052.00,Agency Staff,Direct Employee Expenses
Southend-on-Sea Borough Council,http://www.opendatacommunities.org/id/unitary-authority/southend,ED Children & Public Health,Children And Education Services,3590,Hays Specialist Recruitment Ltd Receipts Recruitment File Only,02/12/2022,12072634,507.92,Agency Staff,Direct Employee Expenses
Southend-on-Sea Borough Council,http://www.opendatacommunities.org/id/unitary-authority/southend,ED Children & Public Health,Children And Education Services,3220,Hays Specialist Recruitment Ltd Receipts Recruitment File Only,02/12/2022,12072634,1084.16,Agency Staff,Direct Employee Expenses
Southend-on-Sea Borough Council,http://www.opendatacommunities.org/id/unitary-authority/southend,ED Children & Public Health,Children And Education Services,3590,Hays Specialist Recruitment Ltd Receipts Recruitment File Only,02/12/2022,12072634,1074.69,Agency Staff,Direct Employee Expenses
Southend-on-Sea Borough Council,http://www.opendatacommunities.org/id/unitary-authority/southend,ED Children & Public Health,Children And Education Services,3200,Hays Specialist Recruitment Ltd Receipts Recruitment File Only,02/12/2022,12072634,1162.91,Agency Staff,Direct Employee Expenses
Southend-on-Sea Borough Council,http://www.opendatacommunities.org/id/unitary-authority/southend,ED Children & Public Health,Children And Education Services,3200,Hays Specialist Recruitment Ltd Receipts Recruitment File Only,02/12/2022,12072634,1162.90,Agency Staff,Direct Employee Expenses
Southend-on-Sea Borough Council,http://www.opendatacommunities.org/id/unitary-authority/southend,ED Children & Public Health,Children And Education Services,3200,Hays Specialist Recruitment Ltd Receipts Recruitment File Only,02/12/2022,12072634,775.26,Agency Staff,Direct Employee Expenses
Southend-on-Sea Borough Council,http://www.opendatacommunities.org/id/unitary-authority/southend,ED Children & Public Health,Children And Education Services,3590,Hays Specialist Recruitment Ltd Receipts Recruitment File Only,02/12/2022,12072634,1364.39,Agency Staff,Direct Employee Expenses
Southend-on-Sea Borough Council,http://www.opendatacommunities.org/id/unitary-authority/southend,ED Children & Public Health,Children And Education Services,3590,Hays Specialist Recruitment Ltd Receipts Recruitment File Only,02/12/2022,12072634,1617.64,Agency Staff,Direct Employee Expenses
Southend-on-Sea Borough Council,http://www.opendatacommunities.org/id/unitary-authority/southend,ED Children & Public Health,Children And Education Services,3590,Hays Specialist Recruitment Ltd Receipts Recruitment File Only,02/12/2022,12072634,685.80,Agency Staff,Direct Employee Expenses
Southend-on-Sea Borough Council,http://www.opendatacommunities.org/id/unitary-authority/southend,ED Children & Public Health,Children And Education Services,3590,Hays Specialist Recruitment Ltd Receipts Recruitment File Only,02/12/2022,12072634,1687.99,Agency Staff,Direct Employee Expenses
Southend-on-Sea Borough Council,http://www.opendatacommunities.org/id/unitary-authority/southend,ED Children & Public Health,Children And Education Services,3790,Hays Specialist Recruitment Ltd Receipts Recruitment File Only,02/12/2022,12072634,1543.64,Agency Staff,Direct Employee Expenses
Southend-on-Sea Borough Council,http://www.opendatacommunities.org/id/unitary-authority/southend,ED Children & Public Health,Children And Education Services,3231,Hays Specialist Recruitment Ltd Receipts Recruitment File Only,02/12/2022,12072634,1318.03,Agency Staff,Direct Employee Expenses
Southend-on-Sea Borough Council,http://www.opendatacommunities.org/id/unitary-authority/southend,ED Children & Public Health,Children And Education Services,3231,Hays Specialist Recruitment Ltd Receipts Recruitment File Only,02/12/2022,12072634,2216.69,Agency Staff,Direct Employee Expenses
Southend-on-Sea Borough Council,http://www.opendatacommunities.org/id/unitary-authority/southend,ED Children & Public Health,Children And Education Services,3231,Hays Specialist Recruitment Ltd Receipts Recruitment File Only,02/12/2022,12072634,2216.69,Agency Staff,Direct Employee Expenses
Southend-on-Sea Borough Council,http://www.opendatacommunities.org/id/unitary-authority/southend,ED Children & Public Health,Children And Education Services,3480,Hays Specialist Recruitment Ltd Receipts Recruitment File Only,02/12/2022,12072634,1543.64,Agency Staff,Direct Employee Expenses
Southend-on-Sea Borough Council,http://www.opendatacommunities.org/id/unitary-authority/southend,ED Children & Public Health,Children And Education Services,3590,Hays Specialist Recruitment Ltd Receipts Recruitment File Only,02/12/2022,12072634,1646.14,Agency Staff,Direct Employee Expenses
Southend-on-Sea Borough Council,http://www.opendatacommunities.org/id/unitary-authority/southend,ED Children & Public Health,Children And Education Services,3991,Hays Specialist Recruitment Ltd Receipts Recruitment File Only,02/12/2022,12072634,1804.86,Agency Staff,Direct Employee Expenses
Southend-on-Sea Borough Council,http://www.opendatacommunities.org/id/unitary-authority/southend,ED Children & Public Health,Children And Education Services,3455,Hays Specialist Recruitment Ltd Receipts Recruitment File Only,02/12/2022,12072634,1387.60,Agency Staff,Direct Employee Expenses
Southend-on-Sea Borough Council,http://www.opendatacommunities.org/id/unitary-authority/southend,ED Children & Public Health,Children And Education Services,3790,Hays Specialist Recruitment Ltd Receipts Recruitment File Only,02/12/2022,12072634,1251.60,Agency Staff,Direct Employee Expenses
Southend-on-Sea Borough Council,http://www.opendatacommunities.org/id/unitary-authority/southend,ED Children & Public Health,Children And Education Services,3200,Hays Specialist Recruitment Ltd Receipts Recruitment File Only,02/12/2022,12072634,969.09,Agency Staff,Direct Employee Expenses
Southend-on-Sea Borough Council,http://www.opendatacommunities.org/id/unitary-authority/southend,ED Children & Public Health,Children And Education Services,3200,Hays Specialist Recruitment Ltd Receipts Recruitment File Only,02/12/2022,12072634,1162.90,Agency Staff,Direct Employee Expenses
Southend-on-Sea Borough Council,http://www.opendatacommunities.org/id/unitary-authority/southend,ED Children & Public Health,Children And Education Services,3200,Hays Specialist Recruitment Ltd Receipts Recruitment File Only,02/12/2022,12072634,969.10,Agency Staff,Direct Employee Expenses
Southend-on-Sea Borough Council,http://www.opendatacommunities.org/id/unitary-authority/southend,ED Children & Public Health,Children And Education Services,3200,Hays Specialist Recruitment Ltd Receipts Recruitment File Only,02/12/2022,12072634,855.20,Agency Staff,Direct Employee Expenses
Southend-on-Sea Borough Council,http://www.opendatacommunities.org/id/unitary-authority/southend,ED Children & Public Health,Children And Education Services,3890,Hays Specialist Recruitment Ltd Receipts Recruitment File Only,02/12/2022,12072634,1266.00,Agency Staff,Direct Employee Expenses
Southend-on-Sea Borough Council,http://www.opendatacommunities.org/id/unitary-authority/southend,ED Children & Public Health,Children And Education Services,3790,Hays Specialist Recruitment Ltd Receipts Recruitment File Only,02/12/2022,12072634,1565.90,Agency Staff,Direct Employee Expenses
Southend-on-Sea Borough Council,http://www.opendatacommunities.org/id/unitary-authority/southend,ED Children & Public Health,Children And Education Services,3890,Hays Specialist Recruitment Ltd Receipts Recruitment File Only,02/12/2022,12072634,1691.64,Agency Staff,Direct Employee Expenses
Southend-on-Sea Borough Council,http://www.opendatacommunities.org/id/unitary-authority/southend,ED Children & Public Health,Children And Education Services,3590,Hays Specialist Recruitment Ltd Receipts Recruitment File Only,02/12/2022,12072634,626.43,Agency Staff,Direct Employee Expenses
Southend-on-Sea Borough Council,http://www.opendatacommunities.org/id/unitary-authority/southend,ED Children & Public Health,Children And Education Services,3790,Hays Specialist Recruitment Ltd Receipts Recruitment File Only,02/12/2022,12072634,1564.50,Agency Staff,Direct Employee Expenses
Southend-on-Sea Borough Council,http://www.opendatacommunities.org/id/unitary-authority/southend,ED Children & Public Health,Children And Education Services,3200,Hays Specialist Recruitment Ltd Receipts Recruitment File Only,02/12/2022,12072634,855.20,Agency Staff,Direct Employee Expenses
Southend-on-Sea Borough Council,http://www.opendatacommunities.org/id/unitary-authority/southend,ED Children & Public Health,Children And Education Services,3154,Hays Specialist Recruitment Ltd Receipts Recruitment File Only,02/12/2022,12072634,592.55,Agency Staff,Direct Employee Expenses
Southend-on-Sea Borough Council,http://www.opendatacommunities.org/id/unitary-authority/southend,ED Children & Public Health,Children And Education Services,3030,Hays Specialist Recruitment Ltd Receipts Recruitment File Only,02/12/2022,12072634,561.75,Agency Staff,Direct Employee Expenses
Southend-on-Sea Borough Council,http://www.opendatacommunities.org/id/unitary-authority/southend,ED Children & Public Health,Children And Education Services,3991,Hays Specialist Recruitment Ltd Receipts Recruitment File Only,02/12/2022,12072634,1829.25,Agency Staff,Direct Employee Expenses
Southend-on-Sea Borough Council,http://www.opendatacommunities.org/id/unitary-authority/southend,ED Children & Public Health,Children And Education Services,3220,Hays Specialist Recruitment Ltd Receipts Recruitment File Only,02/12/2022,12072634,1034.88,Agency Staff,Direct Employee Expenses
Southend-on-Sea Borough Council,http://www.opendatacommunities.org/id/unitary-authority/southend,ED Children & Public Health,Children And Education Services,3455,Hays Specialist Recruitment Ltd Receipts Recruitment File Only,02/12/2022,12072634,555.04,Agency Staff,Direct Employee Expenses
Southend-on-Sea Borough Council,http://www.opendatacommunities.org/id/unitary-authority/southend,ED Children & Public Health,Children And Education Services,3265,Hays Specialist Recruitment Ltd Receipts Recruitment File Only,02/12/2022,12072634,1802.64,Agency Staff,Direct Employee Expenses
Southend-on-Sea Borough Council,http://www.opendatacommunities.org/id/unitary-authority/southend,ED Children & Public Health,Children And Education Services,3590,Hays Specialist Recruitment Ltd Receipts Recruitment File Only,02/12/2022,12072634,1823.36,Agency Staff,Direct Employee Expenses
Southend-on-Sea Borough Council,http://www.opendatacommunities.org/id/unitary-authority/southend,ED Children & Public Health,Children And Education Services,3220,Hays Specialist Recruitment Ltd Receipts Recruitment File Only,02/12/2022,12072634,739.20,Agency Staff,Direct Employee Expenses
Southend-on-Sea Borough Council,http://www.opendatacommunities.org/id/unitary-authority/southend,ED Children & Public Health,Children And Education Services,3480,Hays Specialist Recruitment Ltd Receipts Recruitment File Only,02/12/2022,12072634,1335.04,Agency Staff,Direct Employee Expenses
Southend-on-Sea Borough Council,http://www.opendatacommunities.org/id/unitary-authority/southend,ED Children & Public Health,Children And Education Services,3200,Hays Specialist Recruitment Ltd Receipts Recruitment File Only,02/12/2022,12072634,775.26,Agency Staff,Direct Employee Expenses
Southend-on-Sea Borough Council,http://www.opendatacommunities.org/id/unitary-authority/southend,ED Children & Public Health,Children And Education Services,3231,Hays Specialist Recruitment Ltd Receipts Recruitment File Only,02/12/2022,12072634,2216.69,Agency Staff,Direct Employee Expenses
Southend-on-Sea Borough Council,http://www.opendatacommunities.org/id/unitary-authority/southend,ED Children & Public Health,Children And Education Services,3790,Hays Specialist Recruitment Ltd Receipts Recruitment File Only,02/12/2022,12072634,1147.30,Agency Staff,Direct Employee Expenses
Southend-on-Sea Borough Council,http://www.opendatacommunities.org/id/unitary-authority/southend,ED Children & Public Health,Children And Education Services,3890,Hays Specialist Recruitment Ltd Receipts Recruitment File Only,02/12/2022,12072634,1371.60,Agency Staff,Direct Employee Expenses
Southend-on-Sea Borough Council,http://www.opendatacommunities.org/id/unitary-authority/southend,ED Children & Public Health,Children And Education Services,3290,Hays Specialist Recruitment Ltd Receipts Recruitment File Only,02/12/2022,12072634,1543.64,Agency Staff,Direct Employee Expenses
Southend-on-Sea Borough Council,http://www.opendatacommunities.org/id/unitary-authority/southend,ED Children & Public Health,Children And Education Services,3890,Hays Specialist Recruitment Ltd Receipts Recruitment File Only,02/12/2022,12072634,1561.40,Agency Staff,Direct Employee Expenses
Southend-on-Sea Borough Council,http://www.opendatacommunities.org/id/unitary-authority/southend,ED Children & Public Health,Children And Education Services,3790,Hays Specialist Recruitment Ltd Receipts Recruitment File Only,02/12/2022,12072634,1336.44,Agency Staff,Direct Employee Expenses
Southend-on-Sea Borough Council,http://www.opendatacommunities.org/id/unitary-authority/southend,ED Finance & Resources,Central Services,7071,Hays Specialist Recruitment Ltd Receipts Recruitment File Only,02/12/2022,12072634,2137.60,Agency Staff,Direct Employee Expenses
Southend-on-Sea Borough Council,http://www.opendatacommunities.org/id/unitary-authority/southend,ED Finance & Resources,Central Services,7070,Hays Specialist Recruitment Ltd Receipts Recruitment File Only,02/12/2022,12072634,4665.12,Agency Staff,Direct Employee Expenses
Southend-on-Sea Borough Council,http://www.opendatacommunities.org/id/unitary-authority/southend,ED Finance & Resources,Central Services,7096,Hays Specialist Recruitment Ltd Receipts Recruitment File Only,02/12/2022,12072634,635.84,Agency Staff,Direct Employee Expenses
Southend-on-Sea Borough Council,http://www.opendatacommunities.org/id/unitary-authority/southend,ED Finance & Resources,Central Services,7096,Hays Specialist Recruitment Ltd Receipts Recruitment File Only,02/12/2022,12072634,648.99,Agency Staff,Direct Employee Expenses
Southend-on-Sea Borough Council,http://www.opendatacommunities.org/id/unitary-authority/southend,ED Finance & Resources,Central Services,7085,Hays Specialist Recruitment Ltd Receipts Recruitment File Only,02/12/2022,12072634,635.25,Agency Staff,Direct Employee Expenses
Southend-on-Sea Borough Council,http://www.opendatacommunities.org/id/unitary-authority/southend,ED Finance & Resources,Central Services,2072,Hays Specialist Recruitment Ltd Receipts Recruitment File Only,02/12/2022,12072634,739.50,Agency Staff,Direct Employee Expenses
Southend-on-Sea Borough Council,http://www.opendatacommunities.org/id/unitary-authority/southend,ED Finance & Resources,Central Services,7096,Hays Specialist Recruitment Ltd Receipts Recruitment File Only,02/12/2022,12072634,694.50,Agency Staff,Direct Employee Expenses
Southend-on-Sea Borough Council,http://www.opendatacommunities.org/id/unitary-authority/southend,ED Finance & Resources,Housing Services,7150,Hays Specialist Recruitment Ltd Receipts Recruitment File Only,02/12/2022,12072634,2491.80,Agency Staff,Direct Employee Expenses
Southend-on-Sea Borough Council,http://www.opendatacommunities.org/id/unitary-authority/southend,ED Finance & Resources,Housing Services,6165,Hays Specialist Recruitment Ltd Receipts Recruitment File Only,02/12/2022,12072634,592.55,Agency Staff,Direct Employee Expenses
Southend-on-Sea Borough Council,http://www.opendatacommunities.org/id/unitary-authority/southend,ED Finance & Resources,Housing Services,6165,Hays Specialist Recruitment Ltd Receipts Recruitment File Only,02/12/2022,12072634,592.55,Agency Staff,Direct Employee Expenses
Southend-on-Sea Borough Council,http://www.opendatacommunities.org/id/unitary-authority/southend,ED Finance & Resources,Housing Services,6165,Hays Specialist Recruitment Ltd Receipts Recruitment File Only,02/12/2022,12072634,592.55,Agency Staff,Direct Employee Expenses
Southend-on-Sea Borough Council,http://www.opendatacommunities.org/id/unitary-authority/southend,ED Finance & Resources,Housing Services,6165,Hays Specialist Recruitment Ltd Receipts Recruitment File Only,02/12/2022,12072634,592.56,Agency Staff,Direct Employee Expenses
Southend-on-Sea Borough Council,http://www.opendatacommunities.org/id/unitary-authority/southend,ED Growth & Housing,Adult Social Care,6012,Hays Specialist Recruitment Ltd Receipts Recruitment File Only,02/12/2022,12072634,772.56,Agency Staff,Direct Employee Expenses
Southend-on-Sea Borough Council,http://www.opendatacommunities.org/id/unitary-authority/southend,ED Growth & Housing,Adult Social Care,6012,Hays Specialist Recruitment Ltd Receipts Recruitment File Only,02/12/2022,12072634,772.56,Agency Staff,Direct Employee Expenses
Southend-on-Sea Borough Council,http://www.opendatacommunities.org/id/unitary-authority/southend,ED Growth & Housing,Adult Social Care,6012,Hays Specialist Recruitment Ltd Receipts Recruitment File Only,02/12/2022,12072634,615.96,Agency Staff,Direct Employee Expenses
Southend-on-Sea Borough Council,http://www.opendatacommunities.org/id/unitary-authority/southend,ED Growth & Housing,Housing Services,6501,Hays Specialist Recruitment Ltd Receipts Recruitment File Only,02/12/2022,12072634,2394.00,Agency Staff,Direct Employee Expenses
Southend-on-Sea Borough Council,http://www.opendatacommunities.org/id/unitary-authority/southend,ED Growth & Housing,Housing Services,6501,Hays Specialist Recruitment Ltd Receipts Recruitment File Only,02/12/2022,12072634,2793.00,Agency Staff,Direct Employee Expenses
Southend-on-Sea Borough Council,http://www.opendatacommunities.org/id/unitary-authority/southend,ED Growth & Housing,Central Services,5640,Hays Specialist Recruitment Ltd Receipts Recruitment File Only,02/12/2022,12072634,3420.00,Agency Staff,Direct Employee Expenses
Southend-on-Sea Borough Council,http://www.opendatacommunities.org/id/unitary-authority/southend,ED Growth & Housing,Planning Services,5530,Hays Specialist Recruitment Ltd Receipts Recruitment File Only,02/12/2022,12072634,1020.97,Agency Staff,Direct Employee Expenses
Southend-on-Sea Borough Council,http://www.opendatacommunities.org/id/unitary-authority/southend,ED Growth & Housing,Planning Services,5505,Hays Specialist Recruitment Ltd Receipts Recruitment File Only,02/12/2022,12072634,1811.34,Agency Staff,Direct Employee Expenses
Southend-on-Sea Borough Council,http://www.opendatacommunities.org/id/unitary-authority/southend,ED Growth & Housing,Planning Services,5505,Hays Specialist Recruitment Ltd Receipts Recruitment File Only,02/12/2022,12072634,2012.60,Agency Staff,Direct Employee Expenses
Southend-on-Sea Borough Council,http://www.opendatacommunities.org/id/unitary-authority/southend,ED Growth & Housing,Planning Services,5505,Hays Specialist Recruitment Ltd Receipts Recruitment File Only,02/12/2022,12072634,1207.56,Agency Staff,Direct Employee Expenses
Southend-on-Sea Borough Council,http://www.opendatacommunities.org/id/unitary-authority/southend,ED Growth & Housing,Planning Services,5505,Hays Specialist Recruitment Ltd Receipts Recruitment File Only,02/12/2022,12072634,1207.56,Agency Staff,Direct Employee Expenses
Southend-on-Sea Borough Council,http://www.opendatacommunities.org/id/unitary-authority/southend,ED Growth & Housing,Planning Services,5505,Hays Specialist Recruitment Ltd Receipts Recruitment File Only,02/12/2022,12072634,1207.56,Agency Staff,Direct Employee Expenses
Southend-on-Sea Borough Council,http://www.opendatacommunities.org/id/unitary-authority/southend,ED Growth & Housing,Planning Services,5505,Hays Specialist Recruitment Ltd Receipts Recruitment File Only,02/12/2022,12072634,2012.60,Agency Staff,Direct Employee Expenses
Southend-on-Sea Borough Council,http://www.opendatacommunities.org/id/unitary-authority/southend,ED Growth & Housing,Planning Services,5505,Hays Specialist Recruitment Ltd Receipts Recruitment File Only,02/12/2022,12072634,2012.60,Agency Staff,Direct Employee Expenses
Southend-on-Sea Borough Council,http://www.opendatacommunities.org/id/unitary-authority/southend,ED Growth & Housing,Planning Services,5505,Hays Specialist Recruitment Ltd Receipts Recruitment File Only,02/12/2022,12072634,1207.56,Agency Staff,Direct Employee Expenses
Southend-on-Sea Borough Council,http://www.opendatacommunities.org/id/unitary-authority/southend,ED Growth & Housing,Planning Services,5505,Hays Specialist Recruitment Ltd Receipts Recruitment File Only,02/12/2022,12072634,2012.60,Agency Staff,Direct Employee Expenses
Southend-on-Sea Borough Council,http://www.opendatacommunities.org/id/unitary-authority/southend,ED Growth & Housing,Planning Services,5505,Hays Specialist Recruitment Ltd Receipts Recruitment File Only,02/12/2022,12072634,1207.56,Agency Staff,Direct Employee Expenses
Southend-on-Sea Borough Council,http://www.opendatacommunities.org/id/unitary-authority/southend,ED Growth & Housing,Central Services,2137,Hays Specialist Recruitment Ltd Receipts Recruitment File Only,02/12/2022,12072634,738.52,Agency Staff,Direct Employee Expenses
Southend-on-Sea Borough Council,http://www.opendatacommunities.org/id/unitary-authority/southend,ED Neighbourhoods & Environment,Children And Education Services,4522,Hays Specialist Recruitment Ltd Receipts Recruitment File Only,02/12/2022,12072634,3420.00,Agency Staff,Direct Employee Expenses
Southend-on-Sea Borough Council,http://www.opendatacommunities.org/id/unitary-authority/southend,ED Neighbourhoods & Environment,Cultural and Related Services,7505,Hays Specialist Recruitment Ltd Receipts Recruitment File Only,02/12/2022,12072634,565.75,Agency Staff,Direct Employee Expenses
Southend-on-Sea Borough Council,http://www.opendatacommunities.org/id/unitary-authority/southend,ED Neighbourhoods & Environment,Cultural and Related Services,7505,Hays Specialist Recruitment Ltd Receipts Recruitment File Only,02/12/2022,12072634,565.75,Agency Staff,Direct Employee Expenses
Southend-on-Sea Borough Council,http://www.opendatacommunities.org/id/unitary-authority/southend,ED Neighbourhoods & Environment,Cultural and Related Services,7505,Hays Specialist Recruitment Ltd Receipts Recruitment File Only,02/12/2022,12072634,565.75,Agency Staff,Direct Employee Expenses
Southend-on-Sea Borough Council,http://www.opendatacommunities.org/id/unitary-authority/southend,ED Neighbourhoods & Environment,Cultural and Related Services,7505,Hays Specialist Recruitment Ltd Receipts Recruitment File Only,02/12/2022,12072634,565.75,Agency Staff,Direct Employee Expenses
Southend-on-Sea Borough Council,http://www.opendatacommunities.org/id/unitary-authority/southend,ED Neighbourhoods & Environment,Cultural and Related Services,7505,Hays Specialist Recruitment Ltd Receipts Recruitment File Only,02/12/2022,12072634,565.75,Agency Staff,Direct Employee Expenses
Southend-on-Sea Borough Council,http://www.opendatacommunities.org/id/unitary-authority/southend,ED Neighbourhoods & Environment,Cultural And Related Services,4201,Hays Specialist Recruitment Ltd Receipts Recruitment File Only,02/12/2022,12072634,3182.35,Agency Staff,Direct Employee Expenses
Southend-on-Sea Borough Council,http://www.opendatacommunities.org/id/unitary-authority/southend,ED Neighbourhoods & Environment,Cultural and Related Services,7505,Hays Specialist Recruitment Ltd Receipts Recruitment File Only,02/12/2022,12072634,565.75,Agency Staff,Direct Employee Expenses
Southend-on-Sea Borough Council,http://www.opendatacommunities.org/id/unitary-authority/southend,ED Neighbourhoods & Environment,Cultural and Related Services,7505,Hays Specialist Recruitment Ltd Receipts Recruitment File Only,02/12/2022,12072634,565.75,Agency Staff,Direct Employee Expenses
Southend-on-Sea Borough Council,http://www.opendatacommunities.org/id/unitary-authority/southend,ED Neighbourhoods & Environment,Cultural and Related Services,7505,Hays Specialist Recruitment Ltd Receipts Recruitment File Only,02/12/2022,12072634,565.75,Agency Staff,Direct Employee Expenses
Southend-on-Sea Borough Council,http://www.opendatacommunities.org/id/unitary-authority/southend,ED Neighbourhoods & Environment,Cultural and Related Services,7505,Hays Specialist Recruitment Ltd Receipts Recruitment File Only,02/12/2022,12072634,565.75,Agency Staff,Direct Employee Expenses
Southend-on-Sea Borough Council,http://www.opendatacommunities.org/id/unitary-authority/southend,ED Neighbourhoods & Environment,Environmental And Regulatory Services,4526,Hays Specialist Recruitment Ltd Receipts Recruitment File Only,02/12/2022,12072634,1334.61,Agency Staff,Direct Employee Expenses
Southend-on-Sea Borough Council,http://www.opendatacommunities.org/id/unitary-authority/southend,ED Neighbourhoods & Environment,Environmental And Regulatory Services,4535,Hays Specialist Recruitment Ltd Receipts Recruitment File Only,02/12/2022,12072634,582.57,Agency Staff,Direct Employee Expenses
Southend-on-Sea Borough Council,http://www.opendatacommunities.org/id/unitary-authority/southend,ED Neighbourhoods & Environment,Environmental And Regulatory Services,7031,Hays Specialist Recruitment Ltd Receipts Recruitment File Only,02/12/2022,12072634,2280.00,Agency Staff,Direct Employee Expenses
Southend-on-Sea Borough Council,http://www.opendatacommunities.org/id/unitary-authority/southend,ED Neighbourhoods & Environment,Cultural and Related Services,7540,Hays Specialist Recruitment Ltd Receipts Recruitment File Only,02/12/2022,12072634,576.11,Agency Staff,Direct Employee Expenses
Southend-on-Sea Borough Council,http://www.opendatacommunities.org/id/unitary-authority/southend,ED Neighbourhoods & Environment,Highways And Transport Services,5055,Hays Specialist Recruitment Ltd Receipts Recruitment File Only,02/12/2022,12072634,1887.60,Agency Staff,Direct Employee Expenses
Southend-on-Sea Borough Council,http://www.opendatacommunities.org/id/unitary-authority/southend,ED Neighbourhoods & Environment,Highways And Transport Services,5005,Hays Specialist Recruitment Ltd Receipts Recruitment File Only,02/12/2022,12072634,1724.80,Agency Staff,Direct Employee Expenses
Southend-on-Sea Borough Council,http://www.opendatacommunities.org/id/unitary-authority/southend,ED Neighbourhoods & Environment,Highways And Transport Services,5180,Hays Specialist Recruitment Ltd Receipts Recruitment File Only,02/12/2022,12072634,705.54,Agency Staff,Direct Employee Expenses
Southend-on-Sea Borough Council,http://www.opendatacommunities.org/id/unitary-authority/southend,ED Neighbourhoods & Environment,Highways And Transport Services,5180,Hays Specialist Recruitment Ltd Receipts Recruitment File Only,02/12/2022,12072634,2451.85,Agency Staff,Direct Employee Expenses
Southend-on-Sea Borough Council,http://www.opendatacommunities.org/id/unitary-authority/southend,ED Neighbourhoods & Environment,Highways And Transport Services,5180,Hays Specialist Recruitment Ltd Receipts Recruitment File Only,02/12/2022,12072634,673.79,Agency Staff,Direct Employee Expenses
Southend-on-Sea Borough Council,http://www.opendatacommunities.org/id/unitary-authority/southend,ED Neighbourhoods & Environment,Highways And Transport Services,5055,Hays Specialist Recruitment Ltd Receipts Recruitment File Only,02/12/2022,12072634,6248.65,Agency Staff,Direct Employee Expenses
Southend-on-Sea Borough Council,http://www.opendatacommunities.org/id/unitary-authority/southend,ED Neighbourhoods & Environment,Highways And Transport Services,5350,Hays Specialist Recruitment Ltd Receipts Recruitment File Only,02/12/2022,12072634,694.50,Agency Staff,Direct Employee Expenses
Southend-on-Sea Borough Council,http://www.opendatacommunities.org/id/unitary-authority/southend,ED Neighbourhoods & Environment,Highways And Transport Services,5180,Hays Specialist Recruitment Ltd Receipts Recruitment File Only,02/12/2022,12072634,768.26,Agency Staff,Direct Employee Expenses
Southend-on-Sea Borough Council,http://www.opendatacommunities.org/id/unitary-authority/southend,ED Neighbourhoods & Environment,Highways And Transport Services,5180,Hays Specialist Recruitment Ltd Receipts Recruitment File Only,02/12/2022,12072634,768.26,Agency Staff,Direct Employee Expenses
Southend-on-Sea Borough Council,http://www.opendatacommunities.org/id/unitary-authority/southend,ED Neighbourhoods & Environment,Highways And Transport Services,5021,Hays Specialist Recruitment Ltd Receipts Recruitment File Only,02/12/2022,12072634,1492.88,Agency Staff,Direct Employee Expenses
Southend-on-Sea Borough Council,http://www.opendatacommunities.org/id/unitary-authority/southend,ED Neighbourhoods & Environment,Highways And Transport Services,5055,Hays Specialist Recruitment Ltd Receipts Recruitment File Only,02/12/2022,12072634,1887.60,Agency Staff,Direct Employee Expenses
Southend-on-Sea Borough Council,http://www.opendatacommunities.org/id/unitary-authority/southend,ED Neighbourhoods & Environment,Highways And Transport Services,5055,Hays Specialist Recruitment Ltd Receipts Recruitment File Only,02/12/2022,12072634,6873.52,Agency Staff,Direct Employee Expenses
Southend-on-Sea Borough Council,http://www.opendatacommunities.org/id/unitary-authority/southend,"ED Strategy, Change & Governance",Central Services,7105,Hays Specialist Recruitment Ltd Receipts Recruitment File Only,02/12/2022,12072634,3876.00,Agency Staff,Direct Employee Expenses
Southend-on-Sea Borough Council,http://www.opendatacommunities.org/id/unitary-authority/southend,"ED Strategy, Change & Governance",Central Services,7130,Hays Specialist Recruitment Ltd Receipts Recruitment File Only,02/12/2022,12072634,1913.96,Agency Staff,Direct Employee Expenses
Southend-on-Sea Borough Council,http://www.opendatacommunities.org/id/unitary-authority/southend,"ED Strategy, Change & Governance",Central Services,7105,Hays Specialist Recruitment Ltd Receipts Recruitment File Only,02/12/2022,12072634,3876.00,Agency Staff,Direct Employee Expenses
Southend-on-Sea Borough Council,http://www.opendatacommunities.org/id/unitary-authority/southend,"ED Strategy, Change & Governance",Central Services,7130,Hays Specialist Recruitment Ltd Receipts Recruitment File Only,02/12/2022,12072634,2113.15,Agency Staff,Direct Employee Expenses
Southend-on-Sea Borough Council,http://www.opendatacommunities.org/id/unitary-authority/southend,"ED Strategy, Change & Governance",Central Services,7105,Hays Specialist Recruitment Ltd Receipts Recruitment File Only,02/12/2022,12072634,2100.40,Agency Staff,Direct Employee Expenses
Southend-on-Sea Borough Council,http://www.opendatacommunities.org/id/unitary-authority/southend,"ED Strategy, Change & Governance",Central Services,7105,Hays Specialist Recruitment Ltd Receipts Recruitment File Only,02/12/2022,12072634,572.80,Agency Staff,Direct Employee Expenses
Southend-on-Sea Borough Council,http://www.opendatacommunities.org/id/unitary-authority/southend,"ED Strategy, Change & Governance",Central Services,2005,Hays Specialist Recruitment Ltd Receipts Recruitment File Only,02/12/2022,12072634,558.69,Agency Staff,Direct Employee Expenses
Southend-on-Sea Borough Council,http://www.opendatacommunities.org/id/unitary-authority/southend,"ED Strategy, Change & Governance",Central Services,7139,Hays Specialist Recruitment Ltd Receipts Recruitment File Only,02/12/2022,12072634,2315.35,Agency Staff,Direct Employee Expenses
Southend-on-Sea Borough Council,http://www.opendatacommunities.org/id/unitary-authority/southend,"ED Strategy, Change & Governance",Central Services,7139,Hays Specialist Recruitment Ltd Receipts Recruitment File Only,02/12/2022,12072634,2315.35,Agency Staff,Direct Employee Expenses
Southend-on-Sea Borough Council,http://www.opendatacommunities.org/id/unitary-authority/southend,"ED Strategy, Change & Governance",Central Services,7137,Hays Specialist Recruitment Ltd Receipts Recruitment File Only,02/12/2022,12072634,1664.20,Agency Staff,Direct Employee Expenses
Southend-on-Sea Borough Council,http://www.opendatacommunities.org/id/unitary-authority/southend,"ED Strategy, Change & Governance",Central Services,7137,Hays Specialist Recruitment Ltd Receipts Recruitment File Only,02/12/2022,12072634,3038.80,Agency Staff,Direct Employee Expenses
Southend-on-Sea Borough Council,http://www.opendatacommunities.org/id/unitary-authority/southend,"ED Strategy, Change & Governance",Central Services,7134,Hays Specialist Recruitment Ltd Receipts Recruitment File Only,02/12/2022,12072634,840.14,Agency Staff,Direct Employee Expenses
Southend-on-Sea Borough Council,http://www.opendatacommunities.org/id/unitary-authority/southend,"ED Strategy, Change & Governance",Central Services,7137,Hays Specialist Recruitment Ltd Receipts Recruitment File Only,02/12/2022,12072634,3038.80,Agency Staff,Direct Employee Expenses
Southend-on-Sea Borough Council,http://www.opendatacommunities.org/id/unitary-authority/southend,Transformation,Central Services,9012,Integra Associates,02/12/2022,12072634,698.50,Main Contractor,Main Contractor
Southend-on-Sea Borough Council,http://www.opendatacommunities.org/id/unitary-authority/southend,ED Neighbourhoods & Environment,Highways And Transport Services,5230,International Parking Systems (Uk) Limited,02/12/2022,12072634,1242.82,Services,Services
Southend-on-Sea Borough Council,http://www.opendatacommunities.org/id/unitary-authority/southend,ED Children & Public Health,Children And Education Services,3165,London Borough Of Hackney T/A Hackney Education,02/12/2022,12072634,32076.00,Consultancy Services,Services
Southend-on-Sea Borough Council,http://www.opendatacommunities.org/id/unitary-authority/southend,ED Finance & Resources,Central Services,7140,Marlow Integrated Designs Ltd,02/12/2022,12072634,500.25,Repairs And Maintenance Contracts,"Repairs, alterations and maintenance of buildings"
Southend-on-Sea Borough Council,http://www.opendatacommunities.org/id/unitary-authority/southend,Children & Public Health,Central Services,9009,Metson Architects,02/12/2022,12072634,1820.00,Main Contractor,Main Contractor
Southend-on-Sea Borough Council,http://www.opendatacommunities.org/id/unitary-authority/southend,ED Growth & Housing,Housing Services,6010,Mr & Mrs G Cetnik T/A Pavilion Hotel,02/12/2022,12072634,1127.00,Accommodation Costs,Expenses
Southend-on-Sea Borough Council,http://www.opendatacommunities.org/id/unitary-authority/southend,ED Adults & Communities,Cultural And Related Services,4010,REDACTED PERSONAL DATA,02/12/2022,12072634,1115.18,Professional Fees,Services
Southend-on-Sea Borough Council,http://www.opendatacommunities.org/id/unitary-authority/southend,ED Adults & Communities,Cultural And Related Services,4070,Mr Peter Nigel Fisher T/A Chamber Ensemble Of London,02/12/2022,12072634,1800.00,Cultural And Entertainment Services,Services
Southend-on-Sea Borough Council,http://www.opendatacommunities.org/id/unitary-authority/southend,ED Children & Public Health,Children And Education Services,3105,Nathan Timothy Foundation The Songwriting Charity,02/12/2022,12072634,600.00,Professional Fees,Services
Southend-on-Sea Borough Council,http://www.opendatacommunities.org/id/unitary-authority/southend,"ED Strategy, Change & Governance",Central Services,7130,Ntt United Kingdom Limited,02/12/2022,12072634,6997.44,IT Contracts,Communications And Computing
Southend-on-Sea Borough Council,http://www.opendatacommunities.org/id/unitary-authority/southend,ED Growth & Housing,Housing Services,6010,Ocean Residential Ltd,02/12/2022,12072634,750.00,Loans,Services
Southend-on-Sea Borough Council,http://www.opendatacommunities.org/id/unitary-authority/southend,ED Growth & Housing,Housing Services,6130,Ocean Residential Ltd,02/12/2022,12072634,1615.00,Loans,Services
Southend-on-Sea Borough Council,http://www.opendatacommunities.org/id/unitary-authority/southend,ED Neighbourhoods & Environment,Environmental And Regulatory Services,4575,Osborne Richardson Ltd,02/12/2022,12072634,573.00,Private Contractors,Other Agencies
Southend-on-Sea Borough Council,http://www.opendatacommunities.org/id/unitary-authority/southend,Neighbourhoods & Environment,Central Services,9008,Peoplescout Ltd,02/12/2022,12072634,521.08,Advertising,Advertising
Southend-on-Sea Borough Council,http://www.opendatacommunities.org/id/unitary-authority/southend,ED Neighbourhoods & Environment,Highways And Transport Services,5075,Peoplescout Ltd,02/12/2022,12072634,779.12,Non Staff Advertising,Services
Southend-on-Sea Borough Council,http://www.opendatacommunities.org/id/unitary-authority/southend,ED Neighbourhoods & Environment,Highways And Transport Services,5075,Peoplescout Ltd,02/12/2022,12072634,521.08,Non Staff Advertising,Services
Southend-on-Sea Borough Council,http://www.opendatacommunities.org/id/unitary-authority/southend,ED Neighbourhoods & Environment,Highways And Transport Services,5075,Peoplescout Ltd,02/12/2022,12072634,600.48,Non Staff Advertising,Services
Southend-on-Sea Borough Council,http://www.opendatacommunities.org/id/unitary-authority/southend,ED Neighbourhoods & Environment,Highways And Transport Services,5075,Peoplescout Ltd,02/12/2022,12072634,521.08,Non Staff Advertising,Services
Southend-on-Sea Borough Council,http://www.opendatacommunities.org/id/unitary-authority/southend,ED Children & Public Health,Children And Education Services,3892,Potton Kare Services Ltd T/A Pks Social Care Agency,02/12/2022,12072634,1440.00,Private Contractors,Other Agencies
Southend-on-Sea Borough Council,http://www.opendatacommunities.org/id/unitary-authority/southend,ED Children & Public Health,Children And Education Services,3992,Potton Kare Services Ltd T/A Pks Social Care Agency,02/12/2022,12072634,2979.45,Private Contractors,Other Agencies
Southend-on-Sea Borough Council,http://www.opendatacommunities.org/id/unitary-authority/southend,ED Finance & Resources,Central Services,7075,Pricewaterhousecoopers,02/12/2022,12072634,1441.80,Contractor - Programmed Works,Other Agencies
Southend-on-Sea Borough Council,http://www.opendatacommunities.org/id/unitary-authority/southend,ED Finance & Resources,Central Services,7075,Pricewaterhousecoopers,02/12/2022,12072634,1441.80,Contractor - Programmed Works,Other Agencies
Southend-on-Sea Borough Council,http://www.opendatacommunities.org/id/unitary-authority/southend,ED Finance & Resources,Central Services,7075,Pricewaterhousecoopers,02/12/2022,12072634,10843.88,Contractor - Programmed Works,Other Agencies
Southend-on-Sea Borough Council,http://www.opendatacommunities.org/id/unitary-authority/southend,ED Finance & Resources,Central Services,7075,Pricewaterhousecoopers,02/12/2022,12072634,1730.16,Contractor - Programmed Works,Other Agencies
Southend-on-Sea Borough Council,http://www.opendatacommunities.org/id/unitary-authority/southend,ED Finance & Resources,Central Services,7075,Pricewaterhousecoopers,02/12/2022,12072634,1441.80,Contractor - Programmed Works,Other Agencies
Southend-on-Sea Borough Council,http://www.opendatacommunities.org/id/unitary-authority/southend,ED Finance & Resources,Housing Services,6165,REDACTED PERSONAL DATA,02/12/2022,12072634,200000.00,Catering Food And Beverages,Catering
Southend-on-Sea Borough Council,http://www.opendatacommunities.org/id/unitary-authority/southend,ED Adults & Communities,Central Services,8601,R Raphael & Sons Plc - Client Monies Re Allpay Mc Collections - Thurrock,02/12/2022,12072634,200000.00,Catering Food And Beverages,Catering
Southend-on-Sea Borough Council,http://www.opendatacommunities.org/id/unitary-authority/southend,ED Growth & Housing,Housing Services,6130,Regis Group T/A Lifespace,02/12/2022,12072634,1907.69,Loans,Services
Southend-on-Sea Borough Council,http://www.opendatacommunities.org/id/unitary-authority/southend,ED Finance & Resources,Central Services,7111,Ricoh Uk Limited,02/12/2022,12072634,7264.18,Printing,Printing Stationery And General Office Expenses
Southend-on-Sea Borough Council,http://www.opendatacommunities.org/id/unitary-authority/southend,"ED Strategy, Change & Governance",Central Services,7125,Ricoh Uk Limited,02/12/2022,12072634,1130.36,Printing,Printing Stationery And General Office Expenses
Southend-on-Sea Borough Council,http://www.opendatacommunities.org/id/unitary-authority/southend,ED Children & Public Health,Children And Education Services,3200,Rwb Consultancy Limited,02/12/2022,12072634,2455.00,Education Services,Services
Southend-on-Sea Borough Council,http://www.opendatacommunities.org/id/unitary-authority/southend,ED Finance & Resources,Housing Services,6165,Sale Appliances,02/12/2022,12072634,641.44,Materials,Equipment Furniture And Materials
Southend-on-Sea Borough Council,http://www.opendatacommunities.org/id/unitary-authority/southend,ED Finance & Resources,Housing Services,6165,Sale Appliances,02/12/2022,12072634,641.44,Materials,Equipment Furniture And Materials
Southend-on-Sea Borough Council,http://www.opendatacommunities.org/id/unitary-authority/southend,ED Children & Public Health,Children And Education Services,3105,School Of Beatbox Ltd,02/12/2022,12072634,1800.00,Professional Fees,Services
Southend-on-Sea Borough Council,http://www.opendatacommunities.org/id/unitary-authority/southend,ED Growth & Housing,Central Services,5642,South East And Central Essex Mind Ltd T/As Southend Mind,02/12/2022,12072634,1536.00,Training Expenses,Indirect Employee Expenses
Southend-on-Sea Borough Council,http://www.opendatacommunities.org/id/unitary-authority/southend,ED Growth & Housing,Central Services,5641,South East And Central Essex Mind Ltd T/As Southend Mind,02/12/2022,12072634,799.00,Training Expenses,Indirect Employee Expenses
Southend-on-Sea Borough Council,http://www.opendatacommunities.org/id/unitary-authority/southend,ED Children & Public Health,Children And Education Services,3092,South Essex Community School Ltd T/A Ymca Community School,02/12/2022,12072634,135474.15,Services On Behalf Of Pupils,Services
Southend-on-Sea Borough Council,http://www.opendatacommunities.org/id/unitary-authority/southend,ED Finance & Resources,Cultural and Related Services,7535,South Essex Property Services,02/12/2022,12072634,34638.97,Cleaning And Janitorial Cleaning Service,Cleaning And Domestic Supplies
Southend-on-Sea Borough Council,http://www.opendatacommunities.org/id/unitary-authority/southend,ED Finance & Resources,Central Services,7160,South Essex Property Services,02/12/2022,12072634,63228.79,Cleaning And Janitorial Cleaning Service,Cleaning And Domestic Supplies
Southend-on-Sea Borough Council,http://www.opendatacommunities.org/id/unitary-authority/southend,ED Finance & Resources,Central Services,8605,Strata Solicitors Ltd Office A/C,02/12/2022,12072634,525.00,Court Costs And Legal Fees,Services
Southend-on-Sea Borough Council,http://www.opendatacommunities.org/id/unitary-authority/southend,ED Adults & Communities,Cultural And Related Services,4120,T R Fossett Ltd,02/12/2022,12072634,2920.00,Private Contractors,Other Agencies
Southend-on-Sea Borough Council,http://www.opendatacommunities.org/id/unitary-authority/southend,"ED Strategy, Change & Governance",Adult Social Care,3201,The Ctg Group Ltd,02/12/2022,12072634,960.00,Commissioned Training,Services
Southend-on-Sea Borough Council,http://www.opendatacommunities.org/id/unitary-authority/southend,ED Neighbourhoods & Environment,Cultural and Related Services,7505,Tlm Management Ltd,02/12/2022,12072634,882.50,Private Contractors,Other Agencies
Southend-on-Sea Borough Council,http://www.opendatacommunities.org/id/unitary-authority/southend,ED Neighbourhoods & Environment,Environmental And Regulatory Services,4506,Tlm Management Ltd,02/12/2022,12072634,1723.40,Private Contractors,Other Agencies
Southend-on-Sea Borough Council,http://www.opendatacommunities.org/id/unitary-authority/southend,ED Neighbourhoods & Environment,Cultural and Related Services,7540,Tlm Management Ltd,02/12/2022,12072634,1804.00,Private Contractors,Other Agencies
Southend-on-Sea Borough Council,http://www.opendatacommunities.org/id/unitary-authority/southend,ED Children & Public Health,Children And Education Services,3187,Trenitalia C2C Limited,02/12/2022,12072634,788.80,Public Transport,Public Transport
Southend-on-Sea Borough Council,http://www.opendatacommunities.org/id/unitary-authority/southend,"ED Strategy, Change & Governance",Central Services,8603,Tuskerdirect Ltd,02/12/2022,12072634,857.70,Contract Hire Of Vehicles Not Taxis Plant Or Buses,Contract Hire And Operating Leases
Southend-on-Sea Borough Council,http://www.opendatacommunities.org/id/unitary-authority/southend,ED Neighbourhoods & Environment,Cultural and Related Services,7505,Upson Mowers Ltd,02/12/2022,12072634,1950.00,Private Contractors,Other Agencies
Southend-on-Sea Borough Council,http://www.opendatacommunities.org/id/unitary-authority/southend,ED Neighbourhoods & Environment,Cultural and Related Services,7510,Upson Mowers Ltd,02/12/2022,12072634,2149.55,Private Contractors,Other Agencies
Southend-on-Sea Borough Council,http://www.opendatacommunities.org/id/unitary-authority/southend,ED Neighbourhoods & Environment,Cultural and Related Services,7520,Upson Mowers Ltd,02/12/2022,12072634,3705.00,Private Contractors,Other Agencies
Southend-on-Sea Borough Council,http://www.opendatacommunities.org/id/unitary-authority/southend,ED Neighbourhoods & Environment,Environmental And Regulatory Services,4506,Upson Mowers Ltd,02/12/2022,12072634,4297.80,Private Contractors,Other Agencies
Southend-on-Sea Borough Council,http://www.opendatacommunities.org/id/unitary-authority/southend,ED Neighbourhoods & Environment,Cultural and Related Services,7540,Upson Mowers Ltd,02/12/2022,12072634,6437.21,Private Contractors,Other Agencies
Southend-on-Sea Borough Council,http://www.opendatacommunities.org/id/unitary-authority/southend,ED Neighbourhoods & Environment,Cultural and Related Services,7540,Upson Mowers Ltd,02/12/2022,12072634,5854.55,Lease Cars Lease Charges,Car Allowances
Southend-on-Sea Borough Council,http://www.opendatacommunities.org/id/unitary-authority/southend,ED Children & Public Health,Public Health,7665,Vapour Central,02/12/2022,12072634,1945.00,Private Contractors,Other Agencies
Southend-on-Sea Borough Council,http://www.opendatacommunities.org/id/unitary-authority/southend,ED Adults & Communities,Adult Social Care,1100,Vibrance Client Account,02/12/2022,12072634,512.58,Private Contractors,Other Agencies
Southend-on-Sea Borough Council,http://www.opendatacommunities.org/id/unitary-authority/southend,ED Adults & Communities,Adult Social Care,1105,Volsec Ltd T/A Volsec Healthcare,02/12/2022,12072634,1197.00,Private Contractors,Other Agencies
Southend-on-Sea Borough Council,http://www.opendatacommunities.org/id/unitary-authority/southend,ED Adults & Communities,Adult Social Care,1105,Volsec Ltd T/A Volsec Healthcare,02/12/2022,12072634,1197.00,Private Contractors,Other Agencies
Southend-on-Sea Borough Council,http://www.opendatacommunities.org/id/unitary-authority/southend,ED Adults & Communities,Adult Social Care,1205,Volsec Ltd T/A Volsec Healthcare,02/12/2022,12072634,1292.00,Private Contractors,Other Agencies
Southend-on-Sea Borough Council,http://www.opendatacommunities.org/id/unitary-authority/southend,ED Adults & Communities,Adult Social Care,1105,Volsec Ltd T/A Volsec Healthcare,02/12/2022,12072634,1197.00,Private Contractors,Other Agencies
Southend-on-Sea Borough Council,http://www.opendatacommunities.org/id/unitary-authority/southend,ED Adults & Communities,Adult Social Care,1105,Volsec Ltd T/A Volsec Healthcare,02/12/2022,12072634,1197.00,Private Contractors,Other Agencies
Southend-on-Sea Borough Council,http://www.opendatacommunities.org/id/unitary-authority/southend,ED Adults & Communities,Adult Social Care,1205,Volsec Ltd T/A Volsec Healthcare,02/12/2022,12072634,1197.00,Private Contractors,Other Agencies
Southend-on-Sea Borough Council,http://www.opendatacommunities.org/id/unitary-authority/southend,ED Neighbourhoods & Environment,Environmental And Regulatory Services,4575,Womble Bond Dickinson (Uk) Llp Office Account,02/12/2022,12072634,3705.00,Court Costs And Legal Fees,Services
Southend-on-Sea Borough Council,http://www.opendatacommunities.org/id/unitary-authority/southend,ED Children & Public Health,Children And Education Services,3045,Writtle College,02/12/2022,12072634,11942.00,Private Contractors,Other Agencies
Southend-on-Sea Borough Council,http://www.opendatacommunities.org/id/unitary-authority/southend,Adults & Communities,Central Services,9010,(G) Advanced Building & Maintenance Services Ltd,05/12/2022,12072641,9922.77,Grants Paid,Grants Paid
Southend-on-Sea Borough Council,http://www.opendatacommunities.org/id/unitary-authority/southend,Adults & Communities,Central Services,9010,(N) Rapid Ramp Ltd,05/12/2022,12072641,6818.00,Grants Paid,Grants Paid
Southend-on-Sea Borough Council,http://www.opendatacommunities.org/id/unitary-authority/southend,ED Adults & Communities,Adult Social Care,1105,Ashley Community Care Services Ltd T/A Ashley Care,05/12/2022,12072641,14136.19,Private Contractors,Other Agencies
Southend-on-Sea Borough Council,http://www.opendatacommunities.org/id/unitary-authority/southend,ED Adults & Communities,Adult Social Care,1205,Ashley Community Care Services Ltd T/A Ashley Care,05/12/2022,12072641,1126.83,Private Contractors,Other Agencies
Southend-on-Sea Borough Council,http://www.opendatacommunities.org/id/unitary-authority/southend,ED Adults & Communities,Adult Social Care,1105,Brooks Care & Nursing Services Ltd,05/12/2022,12072641,3719.85,Private Contractors,Other Agencies
Southend-on-Sea Borough Council,http://www.opendatacommunities.org/id/unitary-authority/southend,ED Adults & Communities,Adult Social Care,1105,Choices Healthcare Ltd,05/12/2022,12072641,15355.27,Private Contractors,Other Agencies
Southend-on-Sea Borough Council,http://www.opendatacommunities.org/id/unitary-authority/southend,ED Adults & Communities,Adult Social Care,1108,Choices Healthcare Ltd,05/12/2022,12072641,546.25,Private Contractors,Other Agencies
Southend-on-Sea Borough Council,http://www.opendatacommunities.org/id/unitary-authority/southend,ED Adults & Communities,Adult Social Care,1205,Choices Healthcare Ltd,05/12/2022,12072641,2914.80,Private Contractors,Other Agencies
Southend-on-Sea Borough Council,http://www.opendatacommunities.org/id/unitary-authority/southend,Adults & Communities,Central Services,9010,Design For Independence,05/12/2022,12072641,3510.00,Grants Paid,Grants Paid
Southend-on-Sea Borough Council,http://www.opendatacommunities.org/id/unitary-authority/southend,ED Finance & Resources,Central Services,8605,Driscoll Kingston & Co Ltd Client Account,05/12/2022,12072641,950.00,Court Costs And Legal Fees,Services
Southend-on-Sea Borough Council,http://www.opendatacommunities.org/id/unitary-authority/southend,ED Adults & Communities,Cultural And Related Services,4011,F E P Merrick T/A Teaboy Games Ltd,05/12/2022,12072641,1000.00,Professional Fees,Services
Southend-on-Sea Borough Council,http://www.opendatacommunities.org/id/unitary-authority/southend,ED Children & Public Health,Children And Education Services,3025,Garon Park Bar Limited,05/12/2022,12072641,2496.00,Grants,Grants And Subscriptions
Southend-on-Sea Borough Council,http://www.opendatacommunities.org/id/unitary-authority/southend,ED Adults & Communities,Adult Social Care,1105,Golden Keys Care Agency Limited,05/12/2022,12072641,1192.25,Private Contractors,Other Agencies
Southend-on-Sea Borough Council,http://www.opendatacommunities.org/id/unitary-authority/southend,ED Adults & Communities,Adult Social Care,1105,Golden Keys Care Agency Limited,05/12/2022,12072641,3192.00,Private Contractors,Other Agencies
Southend-on-Sea Borough Council,http://www.opendatacommunities.org/id/unitary-authority/southend,ED Adults & Communities,Adult Social Care,1105,Golden Keys Care Agency Limited,05/12/2022,12072641,1624.50,Private Contractors,Other Agencies
Southend-on-Sea Borough Council,http://www.opendatacommunities.org/id/unitary-authority/southend,ED Adults & Communities,Adult Social Care,1105,Golden Keys Care Agency Limited,05/12/2022,12072641,2128.00,Private Contractors,Other Agencies
Southend-on-Sea Borough Council,http://www.opendatacommunities.org/id/unitary-authority/southend,ED Children & Public Health,Children And Education Services,3250,I.M.P.A.C.T Childrens Residential Care,05/12/2022,12072641,21378.53,Private Contractors,Other Agencies
Southend-on-Sea Borough Council,http://www.opendatacommunities.org/id/unitary-authority/southend,ED Children & Public Health,Children And Education Services,3025,Little Musketeers Ltd,05/12/2022,12072641,2688.00,Grants,Grants And Subscriptions
Southend-on-Sea Borough Council,http://www.opendatacommunities.org/id/unitary-authority/southend,ED Children & Public Health,Children And Education Services,3025,Mr Martin R Winch T/A Active Academy,05/12/2022,12072641,4800.00,Grants,Grants And Subscriptions
Southend-on-Sea Borough Council,http://www.opendatacommunities.org/id/unitary-authority/southend,ED Growth & Housing,Planning Services,5550,Purcell Architecture Ltd,05/12/2022,12072641,2500.00,Consultancy Services,Services
Southend-on-Sea Borough Council,http://www.opendatacommunities.org/id/unitary-authority/southend,ED Adults & Communities,Adult Social Care,1165,Seven Day Care (Essex) Ltd T/A Surecare Southend,05/12/2022,12072641,-9300.00,COVID-19 Response,Other Agencies
Southend-on-Sea Borough Council,http://www.opendatacommunities.org/id/unitary-authority/southend,ED Adults & Communities,Adult Social Care,1165,Seven Day Care (Essex) Ltd T/A Surecare Southend,05/12/2022,12072641,-9300.00,COVID-19 Response,Other Agencies
Southend-on-Sea Borough Council,http://www.opendatacommunities.org/id/unitary-authority/southend,ED Adults & Communities,Adult Social Care,1105,Seven Day Care (Essex) Ltd T/A Surecare Southend,05/12/2022,12072641,10979.15,Private Contractors,Other Agencies
Southend-on-Sea Borough Council,http://www.opendatacommunities.org/id/unitary-authority/southend,ED Adults & Communities,Adult Social Care,1205,Seven Day Care (Essex) Ltd T/A Surecare Southend,05/12/2022,12072641,660.25,Private Contractors,Other Agencies
Southend-on-Sea Borough Council,http://www.opendatacommunities.org/id/unitary-authority/southend,ED Adults & Communities,Adult Social Care,1105,Seven Day Care (Essex) Ltd T/A Surecare Southend,05/12/2022,12072641,10929.75,Private Contractors,Other Agencies
Southend-on-Sea Borough Council,http://www.opendatacommunities.org/id/unitary-authority/southend,ED Adults & Communities,Adult Social Care,1205,Seven Day Care (Essex) Ltd T/A Surecare Southend,05/12/2022,12072641,631.75,Private Contractors,Other Agencies
Southend-on-Sea Borough Council,http://www.opendatacommunities.org/id/unitary-authority/southend,ED Adults & Communities,Adult Social Care,1105,Seven Day Care (Essex) Ltd T/A Surecare Southend,05/12/2022,12072641,11084.89,Private Contractors,Other Agencies
Southend-on-Sea Borough Council,http://www.opendatacommunities.org/id/unitary-authority/southend,ED Adults & Communities,Adult Social Care,1205,Seven Day Care (Essex) Ltd T/A Surecare Southend,05/12/2022,12072641,646.00,Private Contractors,Other Agencies
Southend-on-Sea Borough Council,http://www.opendatacommunities.org/id/unitary-authority/southend,ED Adults & Communities,Adult Social Care,1105,Seven Day Care (Essex) Ltd T/A Surecare Southend,05/12/2022,12072641,10652.33,Private Contractors,Other Agencies
Southend-on-Sea Borough Council,http://www.opendatacommunities.org/id/unitary-authority/southend,ED Adults & Communities,Adult Social Care,1205,Seven Day Care (Essex) Ltd T/A Surecare Southend,05/12/2022,12072641,598.50,Private Contractors,Other Agencies
Southend-on-Sea Borough Council,http://www.opendatacommunities.org/id/unitary-authority/southend,ED Adults & Communities,Adult Social Care,1105,Seven Day Care (Essex) Ltd T/A Surecare Southend,05/12/2022,12072641,9141.14,Private Contractors,Other Agencies
Southend-on-Sea Borough Council,http://www.opendatacommunities.org/id/unitary-authority/southend,ED Adults & Communities,Adult Social Care,1205,Seven Day Care (Essex) Ltd T/A Surecare Southend,05/12/2022,12072641,601.73,Private Contractors,Other Agencies
Southend-on-Sea Borough Council,http://www.opendatacommunities.org/id/unitary-authority/southend,ED Neighbourhoods & Environment,Environmental And Regulatory Services,4525,Shopsafe Limited,05/12/2022,12072641,6912.00,Subsistence,Expenses
Southend-on-Sea Borough Council,http://www.opendatacommunities.org/id/unitary-authority/southend,ED Children & Public Health,Children And Education Services,3220,Smartword (Global) Ltd,05/12/2022,12072641,1037.75,Interpretation And Translation,Services
Southend-on-Sea Borough Council,http://www.opendatacommunities.org/id/unitary-authority/southend,ED Growth & Housing,Central Services,5637,Style The Bride Kent,05/12/2022,12072641,1963.98,Grants,Grants And Subscriptions
Southend-on-Sea Borough Council,http://www.opendatacommunities.org/id/unitary-authority/southend,ED Neighbourhoods & Environment,Cultural and Related Services,7520,Tree Fella Limited,05/12/2022,12072641,654.59,Private Contractors,Other Agencies
Southend-on-Sea Borough Council,http://www.opendatacommunities.org/id/unitary-authority/southend,ED Neighbourhoods & Environment,Cultural and Related Services,7505,Tree Fella Limited,05/12/2022,12072641,1614.58,Private Contractors,Other Agencies
Southend-on-Sea Borough Council,http://www.opendatacommunities.org/id/unitary-authority/southend,"ED Strategy, Change & Governance",Central Services,8602,Vodafone Corporate Ltd,05/12/2022,12072641,29721.44,Telephone - Mobile,Communications And Computing
Southend-on-Sea Borough Council,http://www.opendatacommunities.org/id/unitary-authority/southend,"ED Strategy, Change & Governance",Central Services,7130,Vodafone Corporate Ltd,05/12/2022,12072641,1875.00,Telephone - Mobile,Communications And Computing
Southend-on-Sea Borough Council,http://www.opendatacommunities.org/id/unitary-authority/southend,ED Adults & Communities,Adult Social Care,1105,Volsec Ltd T/A Volsec Healthcare,05/12/2022,12072641,1197.00,Private Contractors,Other Agencies
Southend-on-Sea Borough Council,http://www.opendatacommunities.org/id/unitary-authority/southend,ED Adults & Communities,Adult Social Care,1105,Volsec Ltd T/A Volsec Healthcare,05/12/2022,12072641,665.00,Private Contractors,Other Agencies
Southend-on-Sea Borough Council,http://www.opendatacommunities.org/id/unitary-authority/southend,ED Adults & Communities,Adult Social Care,1105,Volsec Ltd T/A Volsec Healthcare,05/12/2022,12072641,1406.00,Private Contractors,Other Agencies
Southend-on-Sea Borough Council,http://www.opendatacommunities.org/id/unitary-authority/southend,ED Adults & Communities,Adult Social Care,1105,Volsec Ltd T/A Volsec Healthcare,05/12/2022,12072641,798.00,Private Contractors,Other Agencies
Southend-on-Sea Borough Council,http://www.opendatacommunities.org/id/unitary-authority/southend,ED Children & Public Health,Children And Education Services,3025,Z & S Linked Ltd T/A Happy Healthy Kidz,05/12/2022,12072641,2976.00,Grants,Grants And Subscriptions
Southend-on-Sea Borough Council,http://www.opendatacommunities.org/id/unitary-authority/southend,ED Finance & Resources,Central Services,8605,(G) Acl Gp Ltd,06/12/2022,12072661,16270.00,Private Contractors,Other Agencies
Southend-on-Sea Borough Council,http://www.opendatacommunities.org/id/unitary-authority/southend,ED Children & Public Health,Children And Education Services,3250,A Wilderness Way Group Limited,06/12/2022,12072661,28065.00,Private Contractors,Other Agencies
Southend-on-Sea Borough Council,http://www.opendatacommunities.org/id/unitary-authority/southend,ED Children & Public Health,Children And Education Services,3250,A Wilderness Way Group Limited,06/12/2022,12072661,53515.50,Private Contractors,Other Agencies
Southend-on-Sea Borough Council,http://www.opendatacommunities.org/id/unitary-authority/southend,ED Children & Public Health,Children And Education Services,3265,REDACTED PERSONAL DATA,06/12/2022,12072661,595.16,Foster Carer Allowance,Other Agencies
Southend-on-Sea Borough Council,http://www.opendatacommunities.org/id/unitary-authority/southend,ED Children & Public Health,Children And Education Services,3308,REDACTED PERSONAL DATA,06/12/2022,12072661,772.80,Additional Allowances (non employee),Services
Southend-on-Sea Borough Council,http://www.opendatacommunities.org/id/unitary-authority/southend,ED Growth & Housing,Central Services,5637,Annabel Healy Photography,06/12/2022,12072661,1819.00,Grants,Grants And Subscriptions
Southend-on-Sea Borough Council,http://www.opendatacommunities.org/id/unitary-authority/southend,ED Children & Public Health,Public Health,8700,Association Of Directors Of Public Health,06/12/2022,12072661,3900.00,Subscriptions,Grants And Subscriptions
Southend-on-Sea Borough Council,http://www.opendatacommunities.org/id/unitary-authority/southend,ED Growth & Housing,Housing Services,6130,Bear Lettings,06/12/2022,12072661,2153.00,Loans,Services
Southend-on-Sea Borough Council,http://www.opendatacommunities.org/id/unitary-authority/southend,ED Adults & Communities,Cultural And Related Services,4120,Biffa Waste Services Ltd,06/12/2022,12072661,2006.52,Waste Management,Cleaning And Domestic Supplies
Southend-on-Sea Borough Council,http://www.opendatacommunities.org/id/unitary-authority/southend,ED Finance & Resources,Central Services,7120,Biffa Waste Services Ltd,06/12/2022,12072661,506.56,Waste Management,Cleaning And Domestic Supplies
Southend-on-Sea Borough Council,http://www.opendatacommunities.org/id/unitary-authority/southend,ED Finance & Resources,Central Services,7140,Biffa Waste Services Ltd,06/12/2022,12072661,1674.45,Waste Management,Cleaning And Domestic Supplies
Southend-on-Sea Borough Council,http://www.opendatacommunities.org/id/unitary-authority/southend,ED Finance & Resources,Central Services,7140,Biffa Waste Services Ltd,06/12/2022,12072661,1247.75,Waste Management,Cleaning And Domestic Supplies
Southend-on-Sea Borough Council,http://www.opendatacommunities.org/id/unitary-authority/southend,ED Children & Public Health,Children And Education Services,3307,Canary House Care Limited,06/12/2022,12072661,3300.00,Accomodation Payment,Services
Southend-on-Sea Borough Council,http://www.opendatacommunities.org/id/unitary-authority/southend,ED Children & Public Health,Children And Education Services,3308,Canary House Care Limited,06/12/2022,12072661,8157.14,Accomodation Payment,Services
Southend-on-Sea Borough Council,http://www.opendatacommunities.org/id/unitary-authority/southend,ED Adults & Communities,Adult Social Care,1105,Caring Carers Ltd,06/12/2022,12072661,-521.41,Private Contractors,Other Agencies
Southend-on-Sea Borough Council,http://www.opendatacommunities.org/id/unitary-authority/southend,ED Adults & Communities,Adult Social Care,1205,Christies Care Ltd.,06/12/2022,12072661,4942.56,Private Contractors,Other Agencies
Southend-on-Sea Borough Council,http://www.opendatacommunities.org/id/unitary-authority/southend,ED Children & Public Health,Children And Education Services,3481,Eco Wings,06/12/2022,12072661,1215.00,Childrens outings,Services
Southend-on-Sea Borough Council,http://www.opendatacommunities.org/id/unitary-authority/southend,ED Neighbourhoods & Environment,Environmental And Regulatory Services,4660,Enovert South Limited,06/12/2022,12072661,3580.34,Waste Management,Cleaning And Domestic Supplies
Southend-on-Sea Borough Council,http://www.opendatacommunities.org/id/unitary-authority/southend,ED Neighbourhoods & Environment,Environmental And Regulatory Services,4661,Enovert South Limited,06/12/2022,12072661,12173.16,Waste Management,Cleaning And Domestic Supplies
Southend-on-Sea Borough Council,http://www.opendatacommunities.org/id/unitary-authority/southend,ED Neighbourhoods & Environment,Environmental And Regulatory Services,4660,Enovert South Limited,06/12/2022,12072661,7896.30,Waste Management,Cleaning And Domestic Supplies
Southend-on-Sea Borough Council,http://www.opendatacommunities.org/id/unitary-authority/southend,ED Neighbourhoods & Environment,Environmental And Regulatory Services,4661,Enovert South Limited,06/12/2022,12072661,51905.01,Waste Management,Cleaning And Domestic Supplies
Southend-on-Sea Borough Council,http://www.opendatacommunities.org/id/unitary-authority/southend,ED Growth & Housing,Central Services,5642,Essex County Council,06/12/2022,12072661,12000.00,Internet,Communications And Computing
Southend-on-Sea Borough Council,http://www.opendatacommunities.org/id/unitary-authority/southend,ED Children & Public Health,Children And Education Services,3308,Great Future Support Ltd,06/12/2022,12072661,2680.00,Accomodation Payment,Services
Southend-on-Sea Borough Council,http://www.opendatacommunities.org/id/unitary-authority/southend,ED Children & Public Health,Children And Education Services,3290,Griha Care And Support Limited,06/12/2022,12072661,3152.00,Accomodation Payment,Services
Southend-on-Sea Borough Council,http://www.opendatacommunities.org/id/unitary-authority/southend,ED Children & Public Health,Children And Education Services,3290,Griha Care And Support Limited,06/12/2022,12072661,3103.00,Accomodation Payment,Services
Southend-on-Sea Borough Council,http://www.opendatacommunities.org/id/unitary-authority/southend,ED Children & Public Health,Children And Education Services,3307,Griha Care And Support Limited,06/12/2022,12072661,3450.00,Accomodation Payment,Services
Southend-on-Sea Borough Council,http://www.opendatacommunities.org/id/unitary-authority/southend,ED Children & Public Health,Children And Education Services,3308,Griha Care And Support Limited,06/12/2022,12072661,1890.00,Accomodation Payment,Services
Southend-on-Sea Borough Council,http://www.opendatacommunities.org/id/unitary-authority/southend,ED Adults & Communities,Adult Social Care,1145,Harwood House Day Centre,06/12/2022,12072661,786.60,Private Contractors,Other Agencies
Southend-on-Sea Borough Council,http://www.opendatacommunities.org/id/unitary-authority/southend,ED Adults & Communities,Adult Social Care,1145,Harwood House Day Centre,06/12/2022,12072661,524.40,Private Contractors,Other Agencies
Southend-on-Sea Borough Council,http://www.opendatacommunities.org/id/unitary-authority/southend,ED Adults & Communities,Adult Social Care,1146,Harwood House Day Centre,06/12/2022,12072661,786.60,Private Contractors,Other Agencies
Southend-on-Sea Borough Council,http://www.opendatacommunities.org/id/unitary-authority/southend,ED Adults & Communities,Adult Social Care,1145,Harwood House Day Centre,06/12/2022,12072661,721.05,Private Contractors,Other Agencies
Southend-on-Sea Borough Council,http://www.opendatacommunities.org/id/unitary-authority/southend,ED Adults & Communities,Adult Social Care,1146,Harwood House Day Centre,06/12/2022,12072661,524.40,Private Contractors,Other Agencies
Southend-on-Sea Borough Council,http://www.opendatacommunities.org/id/unitary-authority/southend,ED Adults & Communities,Adult Social Care,1176,Harwood House Day Centre,06/12/2022,12072661,524.40,Private Contractors,Other Agencies
Southend-on-Sea Borough Council,http://www.opendatacommunities.org/id/unitary-authority/southend,ED Adults & Communities,Adult Social Care,1145,Harwood House Day Centre,06/12/2022,12072661,1048.80,Private Contractors,Other Agencies
Southend-on-Sea Borough Council,http://www.opendatacommunities.org/id/unitary-authority/southend,ED Adults & Communities,Adult Social Care,1145,Harwood House Day Centre,06/12/2022,12072661,524.40,Private Contractors,Other Agencies
Southend-on-Sea Borough Council,http://www.opendatacommunities.org/id/unitary-authority/southend,ED Adults & Communities,Adult Social Care,1145,Harwood House Day Centre,06/12/2022,12072661,524.40,Private Contractors,Other Agencies
Southend-on-Sea Borough Council,http://www.opendatacommunities.org/id/unitary-authority/southend,ED Adults & Communities,Adult Social Care,1145,Harwood House Day Centre,06/12/2022,12072661,786.60,Private Contractors,Other Agencies
Southend-on-Sea Borough Council,http://www.opendatacommunities.org/id/unitary-authority/southend,ED Adults & Communities,Adult Social Care,1176,Harwood House Day Centre,06/12/2022,12072661,524.40,Private Contractors,Other Agencies
Southend-on-Sea Borough Council,http://www.opendatacommunities.org/id/unitary-authority/southend,ED Adults & Communities,Adult Social Care,1145,Harwood House Day Centre,06/12/2022,12072661,1048.80,Private Contractors,Other Agencies
Southend-on-Sea Borough Council,http://www.opendatacommunities.org/id/unitary-authority/southend,ED Adults & Communities,Adult Social Care,1294,Inner Resources Ltd,06/12/2022,12072661,853.20,Private Contractors,Other Agencies
Southend-on-Sea Borough Council,http://www.opendatacommunities.org/id/unitary-authority/southend,ED Children & Public Health,Children And Education Services,3265,REDACTED PERSONAL DATA,06/12/2022,12072661,835.22,Foster Carer Allowance,Other Agencies
Southend-on-Sea Borough Council,http://www.opendatacommunities.org/id/unitary-authority/southend,ED Children & Public Health,Children And Education Services,3265,REDACTED PERSONAL DATA,06/12/2022,12072661,558.21,Foster Carer Specialist,Other Agencies
Southend-on-Sea Borough Council,http://www.opendatacommunities.org/id/unitary-authority/southend,ED Children & Public Health,Children And Education Services,3265,REDACTED PERSONAL DATA,06/12/2022,12072661,558.21,Foster Carer Specialist,Other Agencies
Southend-on-Sea Borough Council,http://www.opendatacommunities.org/id/unitary-authority/southend,ED Children & Public Health,Children And Education Services,3265,REDACTED PERSONAL DATA,06/12/2022,12072661,558.21,Foster Carer Specialist,Other Agencies
Southend-on-Sea Borough Council,http://www.opendatacommunities.org/id/unitary-authority/southend,ED Children & Public Health,Children And Education Services,3290,Leighview House Ltd - Closed,06/12/2022,12072661,8110.00,Accomodation Payment,Services
Southend-on-Sea Borough Council,http://www.opendatacommunities.org/id/unitary-authority/southend,ED Children & Public Health,Children And Education Services,3290,Leighview House Ltd - Closed,06/12/2022,12072661,1100.00,Accomodation Payment,Services
Southend-on-Sea Borough Council,http://www.opendatacommunities.org/id/unitary-authority/southend,ED Children & Public Health,Children And Education Services,3307,Leighview House Ltd - Closed,06/12/2022,12072661,5107.86,Accomodation Payment,Services
Southend-on-Sea Borough Council,http://www.opendatacommunities.org/id/unitary-authority/southend,ED Children & Public Health,Children And Education Services,3308,Leighview House Ltd - Closed,06/12/2022,12072661,550.00,Accomodation Payment,Services
Southend-on-Sea Borough Council,http://www.opendatacommunities.org/id/unitary-authority/southend,ED Children & Public Health,Children And Education Services,3290,Leighview House Ltd T/A Leighview House Romford Ltd,06/12/2022,12072661,2559.00,Accomodation Payment,Services
Southend-on-Sea Borough Council,http://www.opendatacommunities.org/id/unitary-authority/southend,ED Children & Public Health,Children And Education Services,3307,Leighview House Ltd T/A Leighview House Romford Ltd,06/12/2022,12072661,1345.00,Accomodation Payment,Services
Southend-on-Sea Borough Council,http://www.opendatacommunities.org/id/unitary-authority/southend,ED Children & Public Health,Children And Education Services,3308,Leighview House Ltd T/A Leighview House Romford Ltd,06/12/2022,12072661,1100.00,Accomodation Payment,Services
Southend-on-Sea Borough Council,http://www.opendatacommunities.org/id/unitary-authority/southend,ED Children & Public Health,Children And Education Services,3265,REDACTED PERSONAL DATA,06/12/2022,12072661,558.21,Foster Carer Specialist,Other Agencies
Southend-on-Sea Borough Council,http://www.opendatacommunities.org/id/unitary-authority/southend,ED Children & Public Health,Children And Education Services,3265,REDACTED PERSONAL DATA,06/12/2022,12072661,661.95,Foster Carer Allowance,Other Agencies
Southend-on-Sea Borough Council,http://www.opendatacommunities.org/id/unitary-authority/southend,ED Children & Public Health,Children And Education Services,3265,REDACTED PERSONAL DATA,06/12/2022,12072661,881.22,Foster Carer Allowance,Other Agencies
Southend-on-Sea Borough Council,http://www.opendatacommunities.org/id/unitary-authority/southend,ED Children & Public Health,Children And Education Services,3265,REDACTED PERSONAL DATA,06/12/2022,12072661,661.95,Foster Carer Allowance,Other Agencies
Southend-on-Sea Borough Council,http://www.opendatacommunities.org/id/unitary-authority/southend,ED Adults & Communities,Cultural And Related Services,4230,Mr David Taylor T/A Sculptureman,06/12/2022,12072661,2000.00,Cultural And Entertainment Services,Services
Southend-on-Sea Borough Council,http://www.opendatacommunities.org/id/unitary-authority/southend,ED Children & Public Health,Children And Education Services,3265,REDACTED PERSONAL DATA,06/12/2022,12072661,616.25,Foster Carer Allowance,Other Agencies
Southend-on-Sea Borough Council,http://www.opendatacommunities.org/id/unitary-authority/southend,ED Children & Public Health,Children And Education Services,3265,REDACTED PERSONAL DATA,06/12/2022,12072661,558.21,Foster Carer Specialist,Other Agencies
Southend-on-Sea Borough Council,http://www.opendatacommunities.org/id/unitary-authority/southend,ED Children & Public Health,Children And Education Services,3265,REDACTED PERSONAL DATA,06/12/2022,12072661,558.21,Foster Carer Specialist,Other Agencies
Southend-on-Sea Borough Council,http://www.opendatacommunities.org/id/unitary-authority/southend,ED Children & Public Health,Children And Education Services,3265,REDACTED PERSONAL DATA,06/12/2022,12072661,500.96,Foster Carer Allowance,Other Agencies
Southend-on-Sea Borough Council,http://www.opendatacommunities.org/id/unitary-authority/southend,ED Children & Public Health,Children And Education Services,3265,REDACTED PERSONAL DATA,06/12/2022,12072661,993.03,Foster Carer Allowance,Other Agencies
Southend-on-Sea Borough Council,http://www.opendatacommunities.org/id/unitary-authority/southend,ED Children & Public Health,Children And Education Services,3455,REDACTED PERSONAL DATA,06/12/2022,12072661,574.69,Guardianship Orders,Other Agencies
Southend-on-Sea Borough Council,http://www.opendatacommunities.org/id/unitary-authority/southend,ED Children & Public Health,Children And Education Services,3265,REDACTED PERSONAL DATA,06/12/2022,12072661,646.60,Conveyance of Clients,Contract Hire And Operating Leases
Southend-on-Sea Borough Council,http://www.opendatacommunities.org/id/unitary-authority/southend,ED Children & Public Health,Children And Education Services,3265,REDACTED PERSONAL DATA,06/12/2022,12072661,854.28,Foster Carer Allowance,Other Agencies
Southend-on-Sea Borough Council,http://www.opendatacommunities.org/id/unitary-authority/southend,ED Children & Public Health,Children And Education Services,3092,New Way Tuition Ltd,06/12/2022,12072661,2835.00,Private Contractors,Other Agencies
Southend-on-Sea Borough Council,http://www.opendatacommunities.org/id/unitary-authority/southend,ED Growth & Housing,Planning Services,5520,Newsquest Media Group Ltd,06/12/2022,12072661,1266.93,Non Staff Advertising,Services
Southend-on-Sea Borough Council,http://www.opendatacommunities.org/id/unitary-authority/southend,ED Growth & Housing,Planning Services,5520,Newsquest Media Group Ltd,06/12/2022,12072661,663.63,Non Staff Advertising,Services
Southend-on-Sea Borough Council,http://www.opendatacommunities.org/id/unitary-authority/southend,ED Growth & Housing,Planning Services,5520,Newsquest Media Group Ltd,06/12/2022,12072661,784.29,Non Staff Advertising,Services
Southend-on-Sea Borough Council,http://www.opendatacommunities.org/id/unitary-authority/southend,ED Growth & Housing,Planning Services,5520,Newsquest Media Group Ltd,06/12/2022,12072661,603.30,Non Staff Advertising,Services
Southend-on-Sea Borough Council,http://www.opendatacommunities.org/id/unitary-authority/southend,ED Growth & Housing,Planning Services,5520,Newsquest Media Group Ltd,06/12/2022,12072661,603.30,Non Staff Advertising,Services
Southend-on-Sea Borough Council,http://www.opendatacommunities.org/id/unitary-authority/southend,ED Children & Public Health,Children And Education Services,3265,REDACTED PERSONAL DATA,06/12/2022,12072661,1157.81,Foster Carer Allowance,Other Agencies
Southend-on-Sea Borough Council,http://www.opendatacommunities.org/id/unitary-authority/southend,ED Adults & Communities,Cultural And Related Services,4230,Rail Ticketing Assets Ltd,06/12/2022,12072661,657.00,Cultural And Entertainment Services,Services
Southend-on-Sea Borough Council,http://www.opendatacommunities.org/id/unitary-authority/southend,ED Finance & Resources,Central Services,7111,Royal Mail,06/12/2022,12072661,2680.37,Mail Services� Postage,Communications And Computing
Southend-on-Sea Borough Council,http://www.opendatacommunities.org/id/unitary-authority/southend,ED Finance & Resources,Central Services,7111,Royal Mail,06/12/2022,12072661,7298.68,Mail Services� Postage,Communications And Computing
Southend-on-Sea Borough Council,http://www.opendatacommunities.org/id/unitary-authority/southend,ED Finance & Resources,Central Services,7111,Royal Mail,06/12/2022,12072661,2489.15,Mail Services� Postage,Communications And Computing
Southend-on-Sea Borough Council,http://www.opendatacommunities.org/id/unitary-authority/southend,ED Finance & Resources,Central Services,7111,Royal Mail,06/12/2022,12072661,1297.00,Mail Services� Postage,Communications And Computing
Southend-on-Sea Borough Council,http://www.opendatacommunities.org/id/unitary-authority/southend,ED Children & Public Health,Children And Education Services,3265,REDACTED PERSONAL DATA,06/12/2022,12072661,529.94,Foster Carer Allowance,Other Agencies
Southend-on-Sea Borough Council,http://www.opendatacommunities.org/id/unitary-authority/southend,ED Children & Public Health,Children And Education Services,3265,REDACTED PERSONAL DATA,06/12/2022,12072661,558.21,Foster Carer Specialist,Other Agencies
Southend-on-Sea Borough Council,http://www.opendatacommunities.org/id/unitary-authority/southend,ED Children & Public Health,Children And Education Services,3265,REDACTED PERSONAL DATA,06/12/2022,12072661,558.21,Foster Carer Specialist,Other Agencies
Southend-on-Sea Borough Council,http://www.opendatacommunities.org/id/unitary-authority/southend,ED Children & Public Health,Children And Education Services,3307,Safe Haven Services Ltd,06/12/2022,12072661,2730.00,Accomodation Payment,Services
Southend-on-Sea Borough Council,http://www.opendatacommunities.org/id/unitary-authority/southend,ED Children & Public Health,Children And Education Services,3308,Safe Haven Services Ltd,06/12/2022,12072661,1491.54,Accomodation Payment,Services
Southend-on-Sea Borough Council,http://www.opendatacommunities.org/id/unitary-authority/southend,ED Children & Public Health,Children And Education Services,3491,Sanctuary Housing Association,06/12/2022,12072661,1176.08,Accomodation Payment,Services
Southend-on-Sea Borough Council,http://www.opendatacommunities.org/id/unitary-authority/southend,ED Adults & Communities,Adult Social Care,1105,Seven Day Care (Essex) Ltd T/A Surecare Southend,06/12/2022,12072661,9425.81,Private Contractors,Other Agencies
Southend-on-Sea Borough Council,http://www.opendatacommunities.org/id/unitary-authority/southend,"ED Strategy, Change & Governance",Central Services,7105,Sharpe Pritchard,06/12/2022,12072661,672.00,Court Costs And Legal Fees,Services
Southend-on-Sea Borough Council,http://www.opendatacommunities.org/id/unitary-authority/southend,ED Adults & Communities,Cultural And Related Services,4230,Southend Carnival Community Interest Company,06/12/2022,12072661,7863.54,Cultural And Entertainment Services,Services
Southend-on-Sea Borough Council,http://www.opendatacommunities.org/id/unitary-authority/southend,ED Adults & Communities,Adult Social Care,1205,Spdns Nurse Care Cic.,06/12/2022,12072661,665.00,Private Contractors,Other Agencies
Southend-on-Sea Borough Council,http://www.opendatacommunities.org/id/unitary-authority/southend,ED Adults & Communities,Adult Social Care,1176,Spdns Nurse Care Cic.,06/12/2022,12072661,760.00,Private Contractors,Other Agencies
Southend-on-Sea Borough Council,http://www.opendatacommunities.org/id/unitary-authority/southend,ED Adults & Communities,Adult Social Care,1176,Spdns Nurse Care Cic.,06/12/2022,12072661,760.00,Private Contractors,Other Agencies
Southend-on-Sea Borough Council,http://www.opendatacommunities.org/id/unitary-authority/southend,ED Children & Public Health,Children And Education Services,3091,The Fitzwimarc School,06/12/2022,12072661,14021.81,Private Contractors,Other Agencies
Southend-on-Sea Borough Council,http://www.opendatacommunities.org/id/unitary-authority/southend,ED Adults & Communities,Adult Social Care,1145,The Peaceful Place,06/12/2022,12072661,1200.00,Private Contractors,Other Agencies
Southend-on-Sea Borough Council,http://www.opendatacommunities.org/id/unitary-authority/southend,ED Children & Public Health,Children And Education Services,3265,REDACTED PERSONAL DATA,06/12/2022,12072661,620.39,Foster Carer Allowance,Other Agencies
Southend-on-Sea Borough Council,http://www.opendatacommunities.org/id/unitary-authority/southend,ED Children & Public Health,Children And Education Services,3265,REDACTED PERSONAL DATA,06/12/2022,12072661,764.97,Foster Carer Allowance,Other Agencies
Southend-on-Sea Borough Council,http://www.opendatacommunities.org/id/unitary-authority/southend,"ED Strategy, Change & Governance",Central Services,7105,Womble Bond Dickinson (Uk) Llp Office Account,06/12/2022,12072661,8307.00,Court Costs And Legal Fees,Services
Southend-on-Sea Borough Council,http://www.opendatacommunities.org/id/unitary-authority/southend,ED Finance & Resources,Central Services,8605,(G) Acl Gp Ltd,07/12/2022,12072668,970.39,Private Contractors,Other Agencies
Southend-on-Sea Borough Council,http://www.opendatacommunities.org/id/unitary-authority/southend,ED Finance & Resources,Central Services,8605,(G) Acl Gp Ltd,07/12/2022,12072668,573.33,Private Contractors,Other Agencies
Southend-on-Sea Borough Council,http://www.opendatacommunities.org/id/unitary-authority/southend,Adults & Communities,Central Services,9010,(G) Edmunds Design & Construction Ltd,07/12/2022,12072668,34701.98,Main Contractor,Main Contractor
Southend-on-Sea Borough Council,http://www.opendatacommunities.org/id/unitary-authority/southend,ED Adults & Communities,Adult Social Care,1209,(N) Chiltern Invadex (Uk) Ltd,07/12/2022,12072668,510.00,Tools And Equipment Purchase,Equipment Furniture And Materials
Southend-on-Sea Borough Council,http://www.opendatacommunities.org/id/unitary-authority/southend,ED Adults & Communities,Adult Social Care,1391,A K Support Housing Limited,07/12/2022,12072668,2310.00,Private Contractors,Other Agencies
Southend-on-Sea Borough Council,http://www.opendatacommunities.org/id/unitary-authority/southend,ED Adults & Communities,Adult Social Care,1070,Aarandale Lodge Ltd,07/12/2022,12072668,9223.20,Private Contractors,Other Agencies
Southend-on-Sea Borough Council,http://www.opendatacommunities.org/id/unitary-authority/southend,ED Adults & Communities,Adult Social Care,1079,Aarandale Lodge Ltd,07/12/2022,12072668,2305.80,Private Contractors,Other Agencies
Southend-on-Sea Borough Council,http://www.opendatacommunities.org/id/unitary-authority/southend,ED Adults & Communities,Adult Social Care,1083,Aarandale Lodge Ltd,07/12/2022,12072668,15502.50,Private Contractors,Other Agencies
Southend-on-Sea Borough Council,http://www.opendatacommunities.org/id/unitary-authority/southend,ED Adults & Communities,Adult Social Care,1671,Aarandale Lodge Ltd,07/12/2022,12072668,2305.80,Private Contractors,Other Agencies
Southend-on-Sea Borough Council,http://www.opendatacommunities.org/id/unitary-authority/southend,ED Adults & Communities,Adult Social Care,1115,Aarandale Lodge Ltd,07/12/2022,12072668,4405.80,Contractor - Programmed Works,Other Agencies
Southend-on-Sea Borough Council,http://www.opendatacommunities.org/id/unitary-authority/southend,ED Adults & Communities,Adult Social Care,1260,Abbey Care Saxon Ltd T/A Saxon Court,07/12/2022,12072668,2998.64,Private Contractors,Other Agencies
Southend-on-Sea Borough Council,http://www.opendatacommunities.org/id/unitary-authority/southend,ED Adults & Communities,Adult Social Care,1070,Abbeyfield Society Ltd,07/12/2022,12072668,8190.00,Private Contractors,Other Agencies
Southend-on-Sea Borough Council,http://www.opendatacommunities.org/id/unitary-authority/southend,ED Adults & Communities,Adult Social Care,1115,Abbeyfield Society Ltd,07/12/2022,12072668,2520.00,Contractor - Programmed Works,Other Agencies
Southend-on-Sea Borough Council,http://www.opendatacommunities.org/id/unitary-authority/southend,ED Adults & Communities,Adult Social Care,1260,Achieve Together Limited,07/12/2022,12072668,34132.44,Private Contractors,Other Agencies
Southend-on-Sea Borough Council,http://www.opendatacommunities.org/id/unitary-authority/southend,ED Adults & Communities,Adult Social Care,1260,Acorn Villages Ltd,07/12/2022,12072668,6147.96,Private Contractors,Other Agencies
Southend-on-Sea Borough Council,http://www.opendatacommunities.org/id/unitary-authority/southend,ED Adults & Communities,Adult Social Care,1466,Adalah Residential Rest Home Ltd,07/12/2022,12072668,3000.00,COVID-19 Response,Other Agencies
Southend-on-Sea Borough Council,http://www.opendatacommunities.org/id/unitary-authority/southend,ED Adults & Communities,Adult Social Care,1070,Adalah Residential Rest Home Ltd,07/12/2022,12072668,17716.96,Private Contractors,Other Agencies
Southend-on-Sea Borough Council,http://www.opendatacommunities.org/id/unitary-authority/southend,ED Adults & Communities,Adult Social Care,1076,Adalah Residential Rest Home Ltd,07/12/2022,12072668,3600.00,Private Contractors,Other Agencies
Southend-on-Sea Borough Council,http://www.opendatacommunities.org/id/unitary-authority/southend,ED Adults & Communities,Adult Social Care,1079,Adalah Residential Rest Home Ltd,07/12/2022,12072668,6463.48,Private Contractors,Other Agencies
Southend-on-Sea Borough Council,http://www.opendatacommunities.org/id/unitary-authority/southend,ED Adults & Communities,Adult Social Care,1260,Addington House Limited,07/12/2022,12072668,7067.48,Private Contractors,Other Agencies
Southend-on-Sea Borough Council,http://www.opendatacommunities.org/id/unitary-authority/southend,ED Adults & Communities,Adult Social Care,1391,Adjuvo Care & Support Ltd,07/12/2022,12072668,12277.44,Private Contractors,Other Agencies
Southend-on-Sea Borough Council,http://www.opendatacommunities.org/id/unitary-authority/southend,ED Adults & Communities,Adult Social Care,1294,Advance Housing And Support Ltd T/A Advance,07/12/2022,12072668,18287.64,Private Contractors,Other Agencies
Southend-on-Sea Borough Council,http://www.opendatacommunities.org/id/unitary-authority/southend,ED Adults & Communities,Adult Social Care,1391,Akaba Social Uk Ltd,07/12/2022,12072668,6043.00,Private Contractors,Other Agencies
Southend-on-Sea Borough Council,http://www.opendatacommunities.org/id/unitary-authority/southend,ED Adults & Communities,Adult Social Care,1070,"Akhtar Latif, Ncs Solution T/A Kimberley Grace Care Home",07/12/2022,12072668,20752.20,Private Contractors,Other Agencies
Southend-on-Sea Borough Council,http://www.opendatacommunities.org/id/unitary-authority/southend,ED Adults & Communities,Adult Social Care,1083,"Akhtar Latif, Ncs Solution T/A Kimberley Grace Care Home",07/12/2022,12072668,3870.45,Private Contractors,Other Agencies
Southend-on-Sea Borough Council,http://www.opendatacommunities.org/id/unitary-authority/southend,ED Adults & Communities,Adult Social Care,1192,"Akhtar Latif, Ncs Solution T/A Kimberley Grace Care Home",07/12/2022,12072668,2305.80,Private Contractors,Other Agencies
Southend-on-Sea Borough Council,http://www.opendatacommunities.org/id/unitary-authority/southend,ED Adults & Communities,Adult Social Care,1260,Alyson House Rch Ltd,07/12/2022,12072668,16351.16,Private Contractors,Other Agencies
Southend-on-Sea Borough Council,http://www.opendatacommunities.org/id/unitary-authority/southend,ED Adults & Communities,Adult Social Care,1671,Alyson House Rch Ltd,07/12/2022,12072668,3881.64,Private Contractors,Other Agencies
Southend-on-Sea Borough Council,http://www.opendatacommunities.org/id/unitary-authority/southend,ED Adults & Communities,Adult Social Care,1294,Alyson House Rch Ltd,07/12/2022,12072668,12326.60,Private Contractors,Other Agencies
Southend-on-Sea Borough Council,http://www.opendatacommunities.org/id/unitary-authority/southend,ED Adults & Communities,Adult Social Care,1070,Ama Generic Ltd,07/12/2022,12072668,11435.48,Private Contractors,Other Agencies
Southend-on-Sea Borough Council,http://www.opendatacommunities.org/id/unitary-authority/southend,ED Adults & Communities,Adult Social Care,1079,Ama Generic Ltd,07/12/2022,12072668,2305.80,Private Contractors,Other Agencies
Southend-on-Sea Borough Council,http://www.opendatacommunities.org/id/unitary-authority/southend,ED Adults & Communities,Adult Social Care,1192,Ama Generic Ltd,07/12/2022,12072668,2305.80,Private Contractors,Other Agencies
Southend-on-Sea Borough Council,http://www.opendatacommunities.org/id/unitary-authority/southend,ED Adults & Communities,Adult Social Care,1260,Ama Generic Ltd,07/12/2022,12072668,2305.80,Private Contractors,Other Agencies
Southend-on-Sea Borough Council,http://www.opendatacommunities.org/id/unitary-authority/southend,ED Adults & Communities,Adult Social Care,1386,Ama Generic Ltd,07/12/2022,12072668,2305.80,Private Contractors,Other Agencies
Southend-on-Sea Borough Council,http://www.opendatacommunities.org/id/unitary-authority/southend,ED Adults & Communities,Adult Social Care,1266,REDACTED PERSONAL DATA,07/12/2022,12072668,1327.48,Private Contractors,Other Agencies
Southend-on-Sea Borough Council,http://www.opendatacommunities.org/id/unitary-authority/southend,ED Neighbourhoods & Environment,Environmental And Regulatory Services,4505,Anglia Sign Casting Limited,07/12/2022,12072668,609.10,Crematoria And Cemetery Services,Services
Southend-on-Sea Borough Council,http://www.opendatacommunities.org/id/unitary-authority/southend,ED Adults & Communities,Adult Social Care,1391,Aran Homes Ltd,07/12/2022,12072668,12642.38,Private Contractors,Other Agencies
Southend-on-Sea Borough Council,http://www.opendatacommunities.org/id/unitary-authority/southend,ED Adults & Communities,Adult Social Care,1644,Aran Homes Ltd,07/12/2022,12072668,1915.76,Private Contractors,Other Agencies
Southend-on-Sea Borough Council,http://www.opendatacommunities.org/id/unitary-authority/southend,ED Adults & Communities,Adult Social Care,1466,Ashley Community Care Services Ltd T/A Ashley Care,07/12/2022,12072668,3000.00,COVID-19 Response,Other Agencies
Southend-on-Sea Borough Council,http://www.opendatacommunities.org/id/unitary-authority/southend,ED Adults & Communities,Adult Social Care,1070,Astral Lodge Ltd,07/12/2022,12072668,20514.14,Private Contractors,Other Agencies
Southend-on-Sea Borough Council,http://www.opendatacommunities.org/id/unitary-authority/southend,ED Adults & Communities,Adult Social Care,1083,Astral Lodge Ltd,07/12/2022,12072668,7246.80,Private Contractors,Other Agencies
Southend-on-Sea Borough Council,http://www.opendatacommunities.org/id/unitary-authority/southend,ED Adults & Communities,Adult Social Care,1641,Avondale Care Home Ltd,07/12/2022,12072668,6279.00,Private Contractors,Other Agencies
Southend-on-Sea Borough Council,http://www.opendatacommunities.org/id/unitary-authority/southend,ED Adults & Communities,Adult Social Care,1266,REDACTED PERSONAL DATA,07/12/2022,12072668,1646.40,Private Contractors,Other Agencies
Southend-on-Sea Borough Council,http://www.opendatacommunities.org/id/unitary-authority/southend,ED Adults & Communities,Adult Social Care,1266,REDACTED PERSONAL DATA,07/12/2022,12072668,2973.88,Private Contractors,Other Agencies
Southend-on-Sea Borough Council,http://www.opendatacommunities.org/id/unitary-authority/southend,ED Adults & Communities,Adult Social Care,1079,Benslow Management Company Limited,07/12/2022,12072668,2877.64,Private Contractors,Other Agencies
Southend-on-Sea Borough Council,http://www.opendatacommunities.org/id/unitary-authority/southend,ED Children & Public Health,Children And Education Services,3010,Best For Training Ltd,07/12/2022,12072668,500.00,3rd Party training,Services
Southend-on-Sea Borough Council,http://www.opendatacommunities.org/id/unitary-authority/southend,ED Adults & Communities,Adult Social Care,1070,Biffins Residential Home,07/12/2022,12072668,11529.00,Private Contractors,Other Agencies
Southend-on-Sea Borough Council,http://www.opendatacommunities.org/id/unitary-authority/southend,ED Adults & Communities,Adult Social Care,1079,Biffins Residential Home,07/12/2022,12072668,2561.44,Private Contractors,Other Agencies
Southend-on-Sea Borough Council,http://www.opendatacommunities.org/id/unitary-authority/southend,ED Adults & Communities,Adult Social Care,1611,Black Swan International Ltd,07/12/2022,12072668,3800.00,Private Contractors,Other Agencies
Southend-on-Sea Borough Council,http://www.opendatacommunities.org/id/unitary-authority/southend,ED Adults & Communities,Adult Social Care,1065,Boscombe Lodge Nursing Home,07/12/2022,12072668,4813.28,Private Contractors,Other Agencies
Southend-on-Sea Borough Council,http://www.opendatacommunities.org/id/unitary-authority/southend,ED Adults & Communities,Adult Social Care,1068,Boscombe Lodge Nursing Home,07/12/2022,12072668,2488.08,Private Contractors,Other Agencies
Southend-on-Sea Borough Council,http://www.opendatacommunities.org/id/unitary-authority/southend,ED Adults & Communities,Adult Social Care,1070,Boulevard Lodge Residential Care Home,07/12/2022,12072668,3900.00,Private Contractors,Other Agencies
Southend-on-Sea Borough Council,http://www.opendatacommunities.org/id/unitary-authority/southend,ED Adults & Communities,Adult Social Care,1070,Braemar Lodge,07/12/2022,12072668,12513.48,Private Contractors,Other Agencies
Southend-on-Sea Borough Council,http://www.opendatacommunities.org/id/unitary-authority/southend,ED Adults & Communities,Adult Social Care,1076,Braemar Lodge,07/12/2022,12072668,1285.71,Private Contractors,Other Agencies
Southend-on-Sea Borough Council,http://www.opendatacommunities.org/id/unitary-authority/southend,ED Adults & Communities,Adult Social Care,1083,Braemar Lodge,07/12/2022,12072668,21978.57,Private Contractors,Other Agencies
Southend-on-Sea Borough Council,http://www.opendatacommunities.org/id/unitary-authority/southend,ED Adults & Communities,Adult Social Care,1065,Brooklands Care Home Ltd,07/12/2022,12072668,2305.80,Private Contractors,Other Agencies
Southend-on-Sea Borough Council,http://www.opendatacommunities.org/id/unitary-authority/southend,ED Adults & Communities,Adult Social Care,1070,Brooklands Care Home Ltd,07/12/2022,12072668,13459.88,Private Contractors,Other Agencies
Southend-on-Sea Borough Council,http://www.opendatacommunities.org/id/unitary-authority/southend,ED Adults & Communities,Adult Social Care,1079,Brooklands Care Home Ltd,07/12/2022,12072668,2305.80,Private Contractors,Other Agencies
Southend-on-Sea Borough Council,http://www.opendatacommunities.org/id/unitary-authority/southend,ED Adults & Communities,Adult Social Care,1260,Brookvale,07/12/2022,12072668,2700.88,Private Contractors,Other Agencies
Southend-on-Sea Borough Council,http://www.opendatacommunities.org/id/unitary-authority/southend,ED Children & Public Health,Children And Education Services,3250,Cambian Childcare Limited,07/12/2022,12072668,26274.67,Private Contractors,Other Agencies
Southend-on-Sea Borough Council,http://www.opendatacommunities.org/id/unitary-authority/southend,ED Adults & Communities,Adult Social Care,1065,Canaryford Ltd T/A Parklands Nursing Home,07/12/2022,12072668,2744.00,Private Contractors,Other Agencies
Southend-on-Sea Borough Council,http://www.opendatacommunities.org/id/unitary-authority/southend,ED Adults & Communities,Adult Social Care,1070,Canaryford Ltd T/A Parklands Nursing Home,07/12/2022,12072668,2356.44,Private Contractors,Other Agencies
Southend-on-Sea Borough Council,http://www.opendatacommunities.org/id/unitary-authority/southend,ED Adults & Communities,Adult Social Care,1070,Care Concern (Frinton) Ltd T/A Beaumont Manor Care Home,07/12/2022,12072668,2400.00,Private Contractors,Other Agencies
Southend-on-Sea Borough Council,http://www.opendatacommunities.org/id/unitary-authority/southend,ED Adults & Communities,Adult Social Care,1260,Care In Style T/As Lighthouse,07/12/2022,12072668,19152.56,Private Contractors,Other Agencies
Southend-on-Sea Borough Council,http://www.opendatacommunities.org/id/unitary-authority/southend,ED Adults & Communities,Adult Social Care,1105,Caring Carers Ltd,07/12/2022,12072668,11704.66,Private Contractors,Other Agencies
Southend-on-Sea Borough Council,http://www.opendatacommunities.org/id/unitary-authority/southend,ED Adults & Communities,Adult Social Care,1205,Caring Carers Ltd,07/12/2022,12072668,1551.01,Private Contractors,Other Agencies
Southend-on-Sea Borough Council,http://www.opendatacommunities.org/id/unitary-authority/southend,ED Adults & Communities,Adult Social Care,1466,Catherine Miller House Ltd,07/12/2022,12072668,3000.00,COVID-19 Response,Other Agencies
Southend-on-Sea Borough Council,http://www.opendatacommunities.org/id/unitary-authority/southend,ED Adults & Communities,Adult Social Care,1070,Catherine Miller House Ltd,07/12/2022,12072668,6319.60,Private Contractors,Other Agencies
Southend-on-Sea Borough Council,http://www.opendatacommunities.org/id/unitary-authority/southend,ED Adults & Communities,Adult Social Care,1079,Catherine Miller House Ltd,07/12/2022,12072668,3780.00,Private Contractors,Other Agencies
Southend-on-Sea Borough Council,http://www.opendatacommunities.org/id/unitary-authority/southend,ED Adults & Communities,Adult Social Care,1209,Centrobed Limited,07/12/2022,12072668,1690.00,Tools And Equipment Purchase,Equipment Furniture And Materials
Southend-on-Sea Borough Council,http://www.opendatacommunities.org/id/unitary-authority/southend,ED Adults & Communities,Adult Social Care,1266,REDACTED PERSONAL DATA,07/12/2022,12072668,800.75,Private Contractors,Other Agencies
Southend-on-Sea Borough Council,http://www.opendatacommunities.org/id/unitary-authority/southend,ED Adults & Communities,Adult Social Care,1391,Choice Support,07/12/2022,12072668,8210.72,Private Contractors,Other Agencies
Southend-on-Sea Borough Council,http://www.opendatacommunities.org/id/unitary-authority/southend,ED Adults & Communities,Adult Social Care,1644,Choice Support,07/12/2022,12072668,1876.84,Private Contractors,Other Agencies
Southend-on-Sea Borough Council,http://www.opendatacommunities.org/id/unitary-authority/southend,ED Adults & Communities,Adult Social Care,1391,Choice Support,07/12/2022,12072668,1876.84,Private Contractors,Other Agencies
Southend-on-Sea Borough Council,http://www.opendatacommunities.org/id/unitary-authority/southend,ED Adults & Communities,Adult Social Care,1070,Churchgate Healthcare Ltd T/As Cedars Care Centre,07/12/2022,12072668,30295.87,Private Contractors,Other Agencies
Southend-on-Sea Borough Council,http://www.opendatacommunities.org/id/unitary-authority/southend,ED Adults & Communities,Adult Social Care,1266,REDACTED PERSONAL DATA,07/12/2022,12072668,2132.76,Private Contractors,Other Agencies
Southend-on-Sea Borough Council,http://www.opendatacommunities.org/id/unitary-authority/southend,"ED Strategy, Change & Governance",Adult Social Care,3201,Coram Academy Ltd T/A Corambaaf,07/12/2022,12072668,800.00,Commissioned Training,Services
Southend-on-Sea Borough Council,http://www.opendatacommunities.org/id/unitary-authority/southend,ED Adults & Communities,Adult Social Care,1070,Corvell Health Care Ltd,07/12/2022,12072668,5449.96,Private Contractors,Other Agencies
Southend-on-Sea Borough Council,http://www.opendatacommunities.org/id/unitary-authority/southend,ED Adults & Communities,Adult Social Care,1079,Corvell Health Care Ltd,07/12/2022,12072668,4611.60,Private Contractors,Other Agencies
Southend-on-Sea Borough Council,http://www.opendatacommunities.org/id/unitary-authority/southend,ED Adults & Communities,Adult Social Care,1260,Craegmoor Fcl New Directions,07/12/2022,12072668,5356.96,Private Contractors,Other Agencies
Southend-on-Sea Borough Council,http://www.opendatacommunities.org/id/unitary-authority/southend,ED Adults & Communities,Adult Social Care,1070,Crowstone Manor Ltd,07/12/2022,12072668,2305.80,Private Contractors,Other Agencies
Southend-on-Sea Borough Council,http://www.opendatacommunities.org/id/unitary-authority/southend,ED Adults & Communities,Adult Social Care,1192,Cumberland Lodge,07/12/2022,12072668,4418.96,Private Contractors,Other Agencies
Southend-on-Sea Borough Council,http://www.opendatacommunities.org/id/unitary-authority/southend,ED Adults & Communities,Adult Social Care,1386,Cumberland Lodge,07/12/2022,12072668,20779.92,Private Contractors,Other Agencies
Southend-on-Sea Borough Council,http://www.opendatacommunities.org/id/unitary-authority/southend,ED Adults & Communities,Adult Social Care,1266,REDACTED PERSONAL DATA,07/12/2022,12072668,4410.28,Private Contractors,Other Agencies
Southend-on-Sea Borough Council,http://www.opendatacommunities.org/id/unitary-authority/southend,ED Adults & Communities,Adult Social Care,1294,Dimensions Uk Ltd,07/12/2022,12072668,10306.80,Private Contractors,Other Agencies
Southend-on-Sea Borough Council,http://www.opendatacommunities.org/id/unitary-authority/southend,ED Children & Public Health,Children And Education Services,3290,Diverse Rec Ltd T/A People Pool Ltd,07/12/2022,12072668,1245.00,Agency Staff,Direct Employee Expenses
Southend-on-Sea Borough Council,http://www.opendatacommunities.org/id/unitary-authority/southend,ED Children & Public Health,Children And Education Services,3290,Diverse Rec Ltd T/A People Pool Ltd,07/12/2022,12072668,1638.40,Agency Staff,Direct Employee Expenses
Southend-on-Sea Borough Council,http://www.opendatacommunities.org/id/unitary-authority/southend,ED Children & Public Health,Public Health,7625,Dr S Zaidi'S Practice,07/12/2022,12072668,570.00,Medical And Health Services,Services
Southend-on-Sea Borough Council,http://www.opendatacommunities.org/id/unitary-authority/southend,ED Adults & Communities,Adult Social Care,1070,E & F Enterprises Ltd T/A Palmerston Care Home,07/12/2022,12072668,6311.23,Private Contractors,Other Agencies
Southend-on-Sea Borough Council,http://www.opendatacommunities.org/id/unitary-authority/southend,ED Adults & Communities,Adult Social Care,1083,E & F Enterprises Ltd T/A Palmerston Care Home,07/12/2022,12072668,27985.00,Private Contractors,Other Agencies
Southend-on-Sea Borough Council,http://www.opendatacommunities.org/id/unitary-authority/southend,ED Adults & Communities,Adult Social Care,1266,REDACTED PERSONAL DATA,07/12/2022,12072668,1327.48,Private Contractors,Other Agencies
Southend-on-Sea Borough Council,http://www.opendatacommunities.org/id/unitary-authority/southend,ED Children & Public Health,Children And Education Services,3481,Eco Wings,07/12/2022,12072668,1372.00,Childrens outings,Services
Southend-on-Sea Borough Council,http://www.opendatacommunities.org/id/unitary-authority/southend,ED Children & Public Health,Children And Education Services,3481,Eco Wings,07/12/2022,12072668,5346.00,Childrens outings,Services
Southend-on-Sea Borough Council,http://www.opendatacommunities.org/id/unitary-authority/southend,ED Children & Public Health,Children And Education Services,3481,Eco Wings,07/12/2022,12072668,536.00,Childrens outings,Services
Southend-on-Sea Borough Council,http://www.opendatacommunities.org/id/unitary-authority/southend,ED Children & Public Health,Children And Education Services,3481,Eco Wings,07/12/2022,12072668,536.00,Childrens outings,Services
Southend-on-Sea Borough Council,http://www.opendatacommunities.org/id/unitary-authority/southend,ED Children & Public Health,Children And Education Services,3481,Eco Wings,07/12/2022,12072668,1072.00,Childrens outings,Services
Southend-on-Sea Borough Council,http://www.opendatacommunities.org/id/unitary-authority/southend,ED Children & Public Health,Children And Education Services,3481,Eco Wings,07/12/2022,12072668,700.00,Childrens outings,Services
Southend-on-Sea Borough Council,http://www.opendatacommunities.org/id/unitary-authority/southend,ED Children & Public Health,Children And Education Services,3481,Eco Wings,07/12/2022,12072668,1608.00,Childrens outings,Services
Southend-on-Sea Borough Council,http://www.opendatacommunities.org/id/unitary-authority/southend,ED Adults & Communities,Adult Social Care,1260,Eco Wings And Nights Limited,07/12/2022,12072668,2865.80,Private Contractors,Other Agencies
Southend-on-Sea Borough Council,http://www.opendatacommunities.org/id/unitary-authority/southend,"ED Strategy, Change & Governance",Adult Social Care,3201,Edge Services - The Manual Handling Training Co. Ltd,07/12/2022,12072668,4400.00,Commissioned Training,Services
Southend-on-Sea Borough Council,http://www.opendatacommunities.org/id/unitary-authority/southend,ED Adults & Communities,Adult Social Care,1260,Eldercroft Care Home Ltd,07/12/2022,12072668,6793.92,Private Contractors,Other Agencies
Southend-on-Sea Borough Council,http://www.opendatacommunities.org/id/unitary-authority/southend,ED Adults & Communities,Adult Social Care,1671,Eldercroft Care Home Ltd,07/12/2022,12072668,2611.56,Private Contractors,Other Agencies
Southend-on-Sea Borough Council,http://www.opendatacommunities.org/id/unitary-authority/southend,ED Adults & Communities,Adult Social Care,1266,REDACTED PERSONAL DATA,07/12/2022,12072668,1884.96,Private Contractors,Other Agencies
Southend-on-Sea Borough Council,http://www.opendatacommunities.org/id/unitary-authority/southend,ED Adults & Communities,Adult Social Care,1070,Elgincare,07/12/2022,12072668,16140.60,Private Contractors,Other Agencies
Southend-on-Sea Borough Council,http://www.opendatacommunities.org/id/unitary-authority/southend,ED Adults & Communities,Adult Social Care,1079,Elgincare,07/12/2022,12072668,2305.80,Private Contractors,Other Agencies
Southend-on-Sea Borough Council,http://www.opendatacommunities.org/id/unitary-authority/southend,ED Adults & Communities,Adult Social Care,1083,Elgincare,07/12/2022,12072668,2305.80,Private Contractors,Other Agencies
Southend-on-Sea Borough Council,http://www.opendatacommunities.org/id/unitary-authority/southend,ED Adults & Communities,Adult Social Care,1115,Elgincare,07/12/2022,12072668,-1399.95,Contractor - Programmed Works,Other Agencies
Southend-on-Sea Borough Council,http://www.opendatacommunities.org/id/unitary-authority/southend,ED Adults & Communities,Adult Social Care,1105,Erbil Gulhan T/A Palm2Palm Care And Reablement Services,07/12/2022,12072668,641.25,Private Contractors,Other Agencies
Southend-on-Sea Borough Council,http://www.opendatacommunities.org/id/unitary-authority/southend,ED Adults & Communities,Adult Social Care,1105,Erbil Gulhan T/A Palm2Palm Care And Reablement Services,07/12/2022,12072668,726.75,Private Contractors,Other Agencies
Southend-on-Sea Borough Council,http://www.opendatacommunities.org/id/unitary-authority/southend,ED Adults & Communities,Adult Social Care,1205,Erbil Gulhan T/A Palm2Palm Care And Reablement Services,07/12/2022,12072668,1752.75,Private Contractors,Other Agencies
Southend-on-Sea Borough Council,http://www.opendatacommunities.org/id/unitary-authority/southend,ED Adults & Communities,Adult Social Care,1105,Erbil Gulhan T/A Palm2Palm Care And Reablement Services,07/12/2022,12072668,1605.50,Private Contractors,Other Agencies
Southend-on-Sea Borough Council,http://www.opendatacommunities.org/id/unitary-authority/southend,ED Adults & Communities,Adult Social Care,1105,Erbil Gulhan T/A Palm2Palm Care And Reablement Services,07/12/2022,12072668,1201.75,Private Contractors,Other Agencies
Southend-on-Sea Borough Council,http://www.opendatacommunities.org/id/unitary-authority/southend,ED Adults & Communities,Adult Social Care,1105,Erbil Gulhan T/A Palm2Palm Care And Reablement Services,07/12/2022,12072668,541.50,Private Contractors,Other Agencies
Southend-on-Sea Borough Council,http://www.opendatacommunities.org/id/unitary-authority/southend,ED Adults & Communities,Adult Social Care,1205,Erbil Gulhan T/A Palm2Palm Care And Reablement Services,07/12/2022,12072668,1007.00,Private Contractors,Other Agencies
Southend-on-Sea Borough Council,http://www.opendatacommunities.org/id/unitary-authority/southend,ED Neighbourhoods & Environment,Highways And Transport Services,5065,Esg Solutions Ltd,07/12/2022,12072668,15000.00,Consultancy Services,Services
Southend-on-Sea Borough Council,http://www.opendatacommunities.org/id/unitary-authority/southend,ED Adults & Communities,Adult Social Care,1260,Essex Autistic Society,07/12/2022,12072668,7939.72,Private Contractors,Other Agencies
Southend-on-Sea Borough Council,http://www.opendatacommunities.org/id/unitary-authority/southend,ED Adults & Communities,Adult Social Care,1294,Essex Autistic Society,07/12/2022,12072668,7147.40,Private Contractors,Other Agencies
Southend-on-Sea Borough Council,http://www.opendatacommunities.org/id/unitary-authority/southend,ED Adults & Communities,Adult Social Care,1260,Essex Care Consortium Ltd,07/12/2022,12072668,10498.84,Private Contractors,Other Agencies
Southend-on-Sea Borough Council,http://www.opendatacommunities.org/id/unitary-authority/southend,ED Adults & Communities,Adult Social Care,1391,Essex County Council,07/12/2022,12072668,614.40,Private Contractors,Other Agencies
Southend-on-Sea Borough Council,http://www.opendatacommunities.org/id/unitary-authority/southend,ED Children & Public Health,Children And Education Services,3308,Essex Interpreting Ltd,07/12/2022,12072668,646.90,Interpretation And Translation,Services
Southend-on-Sea Borough Council,http://www.opendatacommunities.org/id/unitary-authority/southend,ED Children & Public Health,Children And Education Services,3307,Essex Interpreting Ltd,07/12/2022,12072668,1408.35,Interpretation And Translation,Services
Southend-on-Sea Borough Council,http://www.opendatacommunities.org/id/unitary-authority/southend,ED Children & Public Health,Children And Education Services,3307,Essex Interpreting Ltd,07/12/2022,12072668,668.08,Interpretation And Translation,Services
Southend-on-Sea Borough Council,http://www.opendatacommunities.org/id/unitary-authority/southend,ED Adults & Communities,Adult Social Care,1386,Excellence Care Co. Ltd,07/12/2022,12072668,5600.00,Private Contractors,Other Agencies
Southend-on-Sea Borough Council,http://www.opendatacommunities.org/id/unitary-authority/southend,ED Adults & Communities,Adult Social Care,1065,Fernbrook Care Homes Ltd,07/12/2022,12072668,7700.00,Private Contractors,Other Agencies
Southend-on-Sea Borough Council,http://www.opendatacommunities.org/id/unitary-authority/southend,ED Adults & Communities,Adult Social Care,1070,Fernbrook Care Homes Ltd,07/12/2022,12072668,4869.76,Private Contractors,Other Agencies
Southend-on-Sea Borough Council,http://www.opendatacommunities.org/id/unitary-authority/southend,ED Adults & Communities,Adult Social Care,1083,Fernbrook Care Homes Ltd,07/12/2022,12072668,2436.00,Private Contractors,Other Agencies
Southend-on-Sea Borough Council,http://www.opendatacommunities.org/id/unitary-authority/southend,ED Adults & Communities,Adult Social Care,1294,Field Lane Foundation,07/12/2022,12072668,29097.00,Private Contractors,Other Agencies
Southend-on-Sea Borough Council,http://www.opendatacommunities.org/id/unitary-authority/southend,ED Adults & Communities,Adult Social Care,1675,Field Lane Foundation,07/12/2022,12072668,4810.40,Private Contractors,Other Agencies
Southend-on-Sea Borough Council,http://www.opendatacommunities.org/id/unitary-authority/southend,ED Adults & Communities,Adult Social Care,1070,Fitzroy,07/12/2022,12072668,7264.80,Private Contractors,Other Agencies
Southend-on-Sea Borough Council,http://www.opendatacommunities.org/id/unitary-authority/southend,ED Adults & Communities,Adult Social Care,1260,Fitzroy,07/12/2022,12072668,15523.20,Private Contractors,Other Agencies
Southend-on-Sea Borough Council,http://www.opendatacommunities.org/id/unitary-authority/southend,ED Neighbourhoods & Environment,Cultural and Related Services,7540,Fleet (Line Markers) Limited,07/12/2022,12072668,4200.00,Tools And Equipment Repair And Maintenance,Equipment Furniture And Materials
Southend-on-Sea Borough Council,http://www.opendatacommunities.org/id/unitary-authority/southend,"ED Strategy, Change & Governance",Central Services,8602,Gamma Business Communication Limited,07/12/2022,12072668,715.50,Telephone - Mobile,Communications And Computing
Southend-on-Sea Borough Council,http://www.opendatacommunities.org/id/unitary-authority/southend,ED Growth & Housing,Central Services,5637,Garden Games & Leisure Ltd,07/12/2022,12072668,2473.29,Grants,Grants And Subscriptions
Southend-on-Sea Borough Council,http://www.opendatacommunities.org/id/unitary-authority/southend,ED Adults & Communities,Adult Social Care,1185,Gch (Midlands) Ltd T/A Bletchley House,07/12/2022,12072668,2800.28,Private Contractors,Other Agencies
Southend-on-Sea Borough Council,http://www.opendatacommunities.org/id/unitary-authority/southend,ED Adults & Communities,Adult Social Care,1070,Gemstone Properties Ltd,07/12/2022,12072668,5274.64,Private Contractors,Other Agencies
Southend-on-Sea Borough Council,http://www.opendatacommunities.org/id/unitary-authority/southend,ED Adults & Communities,Adult Social Care,1083,Gemstone Properties Ltd,07/12/2022,12072668,936.86,Private Contractors,Other Agencies
Southend-on-Sea Borough Council,http://www.opendatacommunities.org/id/unitary-authority/southend,ED Adults & Communities,Adult Social Care,1386,Gemstone Properties Ltd,07/12/2022,12072668,5471.76,Private Contractors,Other Agencies
Southend-on-Sea Borough Council,http://www.opendatacommunities.org/id/unitary-authority/southend,ED Adults & Communities,Adult Social Care,1641,Gemstone Properties Ltd,07/12/2022,12072668,13428.80,Private Contractors,Other Agencies
Southend-on-Sea Borough Council,http://www.opendatacommunities.org/id/unitary-authority/southend,ED Children & Public Health,Children And Education Services,3025,Get The Kids Out,07/12/2022,12072668,3636.00,Grants,Grants And Subscriptions
Southend-on-Sea Borough Council,http://www.opendatacommunities.org/id/unitary-authority/southend,ED Adults & Communities,Adult Social Care,1266,REDACTED PERSONAL DATA,07/12/2022,12072668,2132.76,Private Contractors,Other Agencies
Southend-on-Sea Borough Council,http://www.opendatacommunities.org/id/unitary-authority/southend,ED Adults & Communities,Adult Social Care,1070,Grandville Lodge Limited,07/12/2022,12072668,17761.36,Private Contractors,Other Agencies
Southend-on-Sea Borough Council,http://www.opendatacommunities.org/id/unitary-authority/southend,ED Adults & Communities,Adult Social Care,1079,Grandville Lodge Limited,07/12/2022,12072668,2900.52,Private Contractors,Other Agencies
Southend-on-Sea Borough Council,http://www.opendatacommunities.org/id/unitary-authority/southend,ED Children & Public Health,Children And Education Services,3250,Greenfields Adolescent Development Ltd,07/12/2022,12072668,37421.43,Private Contractors,Other Agencies
Southend-on-Sea Borough Council,http://www.opendatacommunities.org/id/unitary-authority/southend,ED Adults & Communities,Adult Social Care,1070,Hallmark Care Homes Ltd,07/12/2022,12072668,7623.00,Private Contractors,Other Agencies
Southend-on-Sea Borough Council,http://www.opendatacommunities.org/id/unitary-authority/southend,ED Adults & Communities,Adult Social Care,1070,Havengore House Residential Care Home T/A Mistis Ltd,07/12/2022,12072668,23376.94,Private Contractors,Other Agencies
Southend-on-Sea Borough Council,http://www.opendatacommunities.org/id/unitary-authority/southend,ED Adults & Communities,Adult Social Care,1079,Havengore House Residential Care Home T/A Mistis Ltd,07/12/2022,12072668,8390.99,Private Contractors,Other Agencies
Southend-on-Sea Borough Council,http://www.opendatacommunities.org/id/unitary-authority/southend,ED Adults & Communities,Adult Social Care,1083,Havengore House Residential Care Home T/A Mistis Ltd,07/12/2022,12072668,2305.80,Private Contractors,Other Agencies
Southend-on-Sea Borough Council,http://www.opendatacommunities.org/id/unitary-authority/southend,ED Adults & Communities,Adult Social Care,1065,Hc-One Oval Limited,07/12/2022,12072668,2453.08,Private Contractors,Other Agencies
Southend-on-Sea Borough Council,http://www.opendatacommunities.org/id/unitary-authority/southend,ED Adults & Communities,Adult Social Care,1070,Hc-One Oval Limited,07/12/2022,12072668,2061.92,Private Contractors,Other Agencies
Southend-on-Sea Borough Council,http://www.opendatacommunities.org/id/unitary-authority/southend,ED Adults & Communities,Adult Social Care,1070,Healthcare Homes Group Limited,07/12/2022,12072668,2324.60,Private Contractors,Other Agencies
Southend-on-Sea Borough Council,http://www.opendatacommunities.org/id/unitary-authority/southend,Transformation,Central Services,9012,Hornbill Service Management Ltd,07/12/2022,12072668,43465.80,Software License,Software License
Southend-on-Sea Borough Council,http://www.opendatacommunities.org/id/unitary-authority/southend,ED Adults & Communities,Adult Social Care,1380,Hrh Healthcare Limited T/As Hollyrose House,07/12/2022,12072668,3086.60,Private Contractors,Other Agencies
Southend-on-Sea Borough Council,http://www.opendatacommunities.org/id/unitary-authority/southend,ED Adults & Communities,Adult Social Care,1266,REDACTED PERSONAL DATA,07/12/2022,12072668,2973.88,Private Contractors,Other Agencies
Southend-on-Sea Borough Council,http://www.opendatacommunities.org/id/unitary-authority/southend,ED Adults & Communities,Adult Social Care,1294,Jamesons Residential Care Home Limited,07/12/2022,12072668,4467.68,Private Contractors,Other Agencies
Southend-on-Sea Borough Council,http://www.opendatacommunities.org/id/unitary-authority/southend,ED Adults & Communities,Adult Social Care,1675,Jamesons Residential Care Home Limited,07/12/2022,12072668,4968.88,Private Contractors,Other Agencies
Southend-on-Sea Borough Council,http://www.opendatacommunities.org/id/unitary-authority/southend,Neighbourhoods & Environment,Central Services,9008,Jmw Systems Ltd,07/12/2022,12072668,1952.00,Contractors General,Contractors General
Southend-on-Sea Borough Council,http://www.opendatacommunities.org/id/unitary-authority/southend,ED Adults & Communities,Cultural And Related Services,4010,REDACTED PERSONAL DATA,07/12/2022,12072668,738.40,Professional Fees,Services
Southend-on-Sea Borough Council,http://www.opendatacommunities.org/id/unitary-authority/southend,ED Adults & Communities,Cultural And Related Services,4020,REDACTED PERSONAL DATA,07/12/2022,12072668,550.00,Cultural And Entertainment Services,Services
Southend-on-Sea Borough Council,http://www.opendatacommunities.org/id/unitary-authority/southend,ED Adults & Communities,Cultural And Related Services,4020,REDACTED PERSONAL DATA,07/12/2022,12072668,733.88,Alterations And Adaptations,"Repairs, alterations and maintenance of buildings"
Southend-on-Sea Borough Council,http://www.opendatacommunities.org/id/unitary-authority/southend,ED Adults & Communities,Adult Social Care,1266,REDACTED PERSONAL DATA,07/12/2022,12072668,1327.48,Private Contractors,Other Agencies
Southend-on-Sea Borough Council,http://www.opendatacommunities.org/id/unitary-authority/southend,ED Adults & Communities,Adult Social Care,1266,REDACTED PERSONAL DATA,07/12/2022,12072668,1327.48,Private Contractors,Other Agencies
Southend-on-Sea Borough Council,http://www.opendatacommunities.org/id/unitary-authority/southend,ED Adults & Communities,Adult Social Care,1260,Kingswood Care Services Ltd,07/12/2022,12072668,12235.36,Private Contractors,Other Agencies
Southend-on-Sea Borough Council,http://www.opendatacommunities.org/id/unitary-authority/southend,ED Adults & Communities,Adult Social Care,1070,Larchwood Care Homes (South) Limited T/A Stambridge Meadows,07/12/2022,12072668,6917.40,Private Contractors,Other Agencies
Southend-on-Sea Borough Council,http://www.opendatacommunities.org/id/unitary-authority/southend,ED Adults & Communities,Adult Social Care,1079,Larchwood Care Homes (South) Limited T/A Stambridge Meadows,07/12/2022,12072668,2700.00,Private Contractors,Other Agencies
Southend-on-Sea Borough Council,http://www.opendatacommunities.org/id/unitary-authority/southend,ED Adults & Communities,Adult Social Care,1192,Laycraft Ltd,07/12/2022,12072668,2305.80,Private Contractors,Other Agencies
Southend-on-Sea Borough Council,http://www.opendatacommunities.org/id/unitary-authority/southend,ED Adults & Communities,Adult Social Care,1260,Laycraft Ltd,07/12/2022,12072668,7328.44,Private Contractors,Other Agencies
Southend-on-Sea Borough Council,http://www.opendatacommunities.org/id/unitary-authority/southend,ED Adults & Communities,Adult Social Care,1671,Laycraft Ltd,07/12/2022,12072668,6917.40,Private Contractors,Other Agencies
Southend-on-Sea Borough Council,http://www.opendatacommunities.org/id/unitary-authority/southend,ED Adults & Communities,Adult Social Care,1070,Leaders Of Worship & Preachers Homes,07/12/2022,12072668,10581.76,Private Contractors,Other Agencies
Southend-on-Sea Borough Council,http://www.opendatacommunities.org/id/unitary-authority/southend,ED Adults & Communities,Adult Social Care,1079,Leaders Of Worship & Preachers Homes,07/12/2022,12072668,2305.80,Private Contractors,Other Agencies
Southend-on-Sea Borough Council,http://www.opendatacommunities.org/id/unitary-authority/southend,ED Adults & Communities,Adult Social Care,1070,Legra Residential Ltd T/A Legra Residential Care Home,07/12/2022,12072668,2305.80,Private Contractors,Other Agencies
Southend-on-Sea Borough Council,http://www.opendatacommunities.org/id/unitary-authority/southend,ED Adults & Communities,Adult Social Care,1079,Legra Residential Ltd T/A Legra Residential Care Home,07/12/2022,12072668,2305.80,Private Contractors,Other Agencies
Southend-on-Sea Borough Council,http://www.opendatacommunities.org/id/unitary-authority/southend,ED Adults & Communities,Adult Social Care,1083,Legra Residential Ltd T/A Legra Residential Care Home,07/12/2022,12072668,5929.20,Private Contractors,Other Agencies
Southend-on-Sea Borough Council,http://www.opendatacommunities.org/id/unitary-authority/southend,ED Adults & Communities,Adult Social Care,1294,Lifeways Community Care,07/12/2022,12072668,7785.96,Private Contractors,Other Agencies
Southend-on-Sea Borough Council,http://www.opendatacommunities.org/id/unitary-authority/southend,ED Adults & Communities,Adult Social Care,1266,REDACTED PERSONAL DATA,07/12/2022,12072668,2132.76,Private Contractors,Other Agencies
Southend-on-Sea Borough Council,http://www.opendatacommunities.org/id/unitary-authority/southend,ED Adults & Communities,Adult Social Care,1065,Livability,07/12/2022,12072668,-7980.00,Private Contractors,Other Agencies
Southend-on-Sea Borough Council,http://www.opendatacommunities.org/id/unitary-authority/southend,ED Adults & Communities,Adult Social Care,1192,Livability,07/12/2022,12072668,6054.72,Private Contractors,Other Agencies
Southend-on-Sea Borough Council,http://www.opendatacommunities.org/id/unitary-authority/southend,ED Adults & Communities,Adult Social Care,1260,Livability,07/12/2022,12072668,6114.92,Private Contractors,Other Agencies
Southend-on-Sea Borough Council,http://www.opendatacommunities.org/id/unitary-authority/southend,ED Adults & Communities,Adult Social Care,1386,Longcroft,07/12/2022,12072668,2800.00,Private Contractors,Other Agencies
Southend-on-Sea Borough Council,http://www.opendatacommunities.org/id/unitary-authority/southend,ED Children & Public Health,Children And Education Services,3692,Lorraine Pilime T/A Penina Social Work Services Ltd,07/12/2022,12072668,3929.20,Professional Fees,Services
Southend-on-Sea Borough Council,http://www.opendatacommunities.org/id/unitary-authority/southend,ED Adults & Communities,Adult Social Care,1070,M S & S A Waycot T/A Crown House Care Home,07/12/2022,12072668,1688.00,Private Contractors,Other Agencies
Southend-on-Sea Borough Council,http://www.opendatacommunities.org/id/unitary-authority/southend,ED Adults & Communities,Adult Social Care,1260,Macintyre Care,07/12/2022,12072668,4793.88,Private Contractors,Other Agencies
Southend-on-Sea Borough Council,http://www.opendatacommunities.org/id/unitary-authority/southend,ED Adults & Communities,Cultural And Related Services,4230,Mandinga Arts Ltd,07/12/2022,12072668,6912.00,Cultural And Entertainment Services,Services
Southend-on-Sea Borough Council,http://www.opendatacommunities.org/id/unitary-authority/southend,ED Adults & Communities,Adult Social Care,1070,Manor Rest Home,07/12/2022,12072668,4995.99,Private Contractors,Other Agencies
Southend-on-Sea Borough Council,http://www.opendatacommunities.org/id/unitary-authority/southend,ED Adults & Communities,Adult Social Care,1079,Manor Rest Home,07/12/2022,12072668,2305.80,Private Contractors,Other Agencies
Southend-on-Sea Borough Council,http://www.opendatacommunities.org/id/unitary-authority/southend,ED Adults & Communities,Adult Social Care,1176,Manor Rest Home,07/12/2022,12072668,3400.00,Private Contractors,Other Agencies
Southend-on-Sea Borough Council,http://www.opendatacommunities.org/id/unitary-authority/southend,ED Adults & Communities,Adult Social Care,1115,Manor Rest Home,07/12/2022,12072668,6600.00,Contractor - Programmed Works,Other Agencies
Southend-on-Sea Borough Council,http://www.opendatacommunities.org/id/unitary-authority/southend,ED Adults & Communities,Adult Social Care,1260,Maple Health Uk Limited T/A Maple House,07/12/2022,12072668,6971.72,Private Contractors,Other Agencies
Southend-on-Sea Borough Council,http://www.opendatacommunities.org/id/unitary-authority/southend,ED Adults & Communities,Adult Social Care,1266,REDACTED PERSONAL DATA,07/12/2022,12072668,1646.40,Private Contractors,Other Agencies
Southend-on-Sea Borough Council,http://www.opendatacommunities.org/id/unitary-authority/southend,ED Adults & Communities,Adult Social Care,1641,Maviswood Ltd,07/12/2022,12072668,1626.24,Private Contractors,Other Agencies
Southend-on-Sea Borough Council,http://www.opendatacommunities.org/id/unitary-authority/southend,ED Adults & Communities,Adult Social Care,1391,Maviswood Ltd,07/12/2022,12072668,11251.60,Private Contractors,Other Agencies
Southend-on-Sea Borough Council,http://www.opendatacommunities.org/id/unitary-authority/southend,ED Adults & Communities,Adult Social Care,1644,Maviswood Ltd,07/12/2022,12072668,1650.32,Private Contractors,Other Agencies
Southend-on-Sea Borough Council,http://www.opendatacommunities.org/id/unitary-authority/southend,ED Adults & Communities,Adult Social Care,1070,Melrose House,07/12/2022,12072668,11529.00,Private Contractors,Other Agencies
Southend-on-Sea Borough Council,http://www.opendatacommunities.org/id/unitary-authority/southend,ED Adults & Communities,Adult Social Care,1079,Melrose House,07/12/2022,12072668,2305.80,Private Contractors,Other Agencies
Southend-on-Sea Borough Council,http://www.opendatacommunities.org/id/unitary-authority/southend,ED Adults & Communities,Adult Social Care,1192,Melrose House,07/12/2022,12072668,2305.80,Private Contractors,Other Agencies
Southend-on-Sea Borough Council,http://www.opendatacommunities.org/id/unitary-authority/southend,ED Adults & Communities,Adult Social Care,1466,Meteor Rest Home Ltd,07/12/2022,12072668,3000.00,COVID-19 Response,Other Agencies
Southend-on-Sea Borough Council,http://www.opendatacommunities.org/id/unitary-authority/southend,ED Adults & Communities,Adult Social Care,1070,Meteor Rest Home Ltd,07/12/2022,12072668,13587.75,Private Contractors,Other Agencies
Southend-on-Sea Borough Council,http://www.opendatacommunities.org/id/unitary-authority/southend,ED Adults & Communities,Adult Social Care,1079,Meteor Rest Home Ltd,07/12/2022,12072668,2305.80,Private Contractors,Other Agencies
Southend-on-Sea Borough Council,http://www.opendatacommunities.org/id/unitary-authority/southend,ED Adults & Communities,Adult Social Care,1083,Meteor Rest Home Ltd,07/12/2022,12072668,5485.71,Private Contractors,Other Agencies
Southend-on-Sea Borough Council,http://www.opendatacommunities.org/id/unitary-authority/southend,ED Adults & Communities,Adult Social Care,1266,REDACTED PERSONAL DATA,07/12/2022,12072668,1646.40,Private Contractors,Other Agencies
Southend-on-Sea Borough Council,http://www.opendatacommunities.org/id/unitary-authority/southend,ED Adults & Communities,Adult Social Care,1266,REDACTED PERSONAL DATA,07/12/2022,12072668,1646.40,Private Contractors,Other Agencies
Southend-on-Sea Borough Council,http://www.opendatacommunities.org/id/unitary-authority/southend,Neighbourhoods & Environment,Central Services,9008,Mott Macdonald,07/12/2022,12072668,5409.00,Contractors General,Contractors General
Southend-on-Sea Borough Council,http://www.opendatacommunities.org/id/unitary-authority/southend,ED Neighbourhoods & Environment,Highways And Transport Services,5010,Mott Macdonald,07/12/2022,12072668,864.50,Consultancy Services,Services
Southend-on-Sea Borough Council,http://www.opendatacommunities.org/id/unitary-authority/southend,ED Adults & Communities,Adult Social Care,1065,Mountdale Limited T/A Mountdale Nursing Home,07/12/2022,12072668,7826.00,Private Contractors,Other Agencies
Southend-on-Sea Borough Council,http://www.opendatacommunities.org/id/unitary-authority/southend,ED Adults & Communities,Adult Social Care,1083,Mountdale Limited T/A Mountdale Nursing Home,07/12/2022,12072668,6858.60,Private Contractors,Other Agencies
Southend-on-Sea Borough Council,http://www.opendatacommunities.org/id/unitary-authority/southend,ED Adults & Communities,Adult Social Care,1176,Mountdale Limited T/A Mountdale Nursing Home,07/12/2022,12072668,2359.84,Private Contractors,Other Agencies
Southend-on-Sea Borough Council,http://www.opendatacommunities.org/id/unitary-authority/southend,ED Growth & Housing,Housing Services,6010,Mr & Mrs G Cetnik T/A Pavilion Hotel,07/12/2022,12072668,658.00,Accommodation Costs,Expenses
Southend-on-Sea Borough Council,http://www.opendatacommunities.org/id/unitary-authority/southend,ED Growth & Housing,Housing Services,6011,Mr & Mrs G Cetnik T/A Pavilion Hotel,07/12/2022,12072668,3287.00,Accommodation Costs,Expenses
Southend-on-Sea Borough Council,http://www.opendatacommunities.org/id/unitary-authority/southend,ED Adults & Communities,Adult Social Care,1266,REDACTED PERSONAL DATA,07/12/2022,12072668,3531.36,Private Contractors,Other Agencies
Southend-on-Sea Borough Council,http://www.opendatacommunities.org/id/unitary-authority/southend,ED Adults & Communities,Adult Social Care,1260,Mr John David Roberts T/A Maes Teg Residential Home,07/12/2022,12072668,4478.04,Private Contractors,Other Agencies
Southend-on-Sea Borough Council,http://www.opendatacommunities.org/id/unitary-authority/southend,ED Adults & Communities,Adult Social Care,1070,Mr K Singh & Mrs D Kaur T/As Poppy Lodge Care Residential Homes Ltd,07/12/2022,12072668,7674.98,Private Contractors,Other Agencies
Southend-on-Sea Borough Council,http://www.opendatacommunities.org/id/unitary-authority/southend,ED Adults & Communities,Adult Social Care,1079,Mr K Singh & Mrs D Kaur T/As Poppy Lodge Care Residential Homes Ltd,07/12/2022,12072668,2637.60,Private Contractors,Other Agencies
Southend-on-Sea Borough Council,http://www.opendatacommunities.org/id/unitary-authority/southend,ED Adults & Communities,Adult Social Care,1266,REDACTED PERSONAL DATA,07/12/2022,12072668,2132.76,Private Contractors,Other Agencies
Southend-on-Sea Borough Council,http://www.opendatacommunities.org/id/unitary-authority/southend,ED Adults & Communities,Adult Social Care,1070,Mr Rajan Dhirajlal Madlani & Mrs Daksha Madlani & Mr Dhirajlal Bhimji Madlani T/A Old Shenfield Place,07/12/2022,12072668,3960.00,Private Contractors,Other Agencies
Southend-on-Sea Borough Council,http://www.opendatacommunities.org/id/unitary-authority/southend,ED Adults & Communities,Adult Social Care,1672,REDACTED PERSONAL DATA,07/12/2022,12072668,1327.48,Private Contractors,Other Agencies
Southend-on-Sea Borough Council,http://www.opendatacommunities.org/id/unitary-authority/southend,ED Adults & Communities,Adult Social Care,1266,REDACTED PERSONAL DATA,07/12/2022,12072668,1884.96,Private Contractors,Other Agencies
Southend-on-Sea Borough Council,http://www.opendatacommunities.org/id/unitary-authority/southend,ED Adults & Communities,Adult Social Care,1266,REDACTED PERSONAL DATA,07/12/2022,12072668,3049.76,Private Contractors,Other Agencies
Southend-on-Sea Borough Council,http://www.opendatacommunities.org/id/unitary-authority/southend,ED Adults & Communities,Adult Social Care,1266,REDACTED PERSONAL DATA,07/12/2022,12072668,2132.76,Private Contractors,Other Agencies
Southend-on-Sea Borough Council,http://www.opendatacommunities.org/id/unitary-authority/southend,ED Adults & Communities,Adult Social Care,1266,REDACTED PERSONAL DATA,07/12/2022,12072668,5425.56,Private Contractors,Other Agencies
Southend-on-Sea Borough Council,http://www.opendatacommunities.org/id/unitary-authority/southend,ED Adults & Communities,Adult Social Care,1266,REDACTED PERSONAL DATA,07/12/2022,12072668,3640.00,Private Contractors,Other Agencies
Southend-on-Sea Borough Council,http://www.opendatacommunities.org/id/unitary-authority/southend,ED Adults & Communities,Adult Social Care,1386,Mrs V L Rattan T/As Bali Hai Care Home,07/12/2022,12072668,10183.88,Private Contractors,Other Agencies
Southend-on-Sea Borough Council,http://www.opendatacommunities.org/id/unitary-authority/southend,ED Adults & Communities,Adult Social Care,1070,Mrs V L Rattan T/As Brook Care Home,07/12/2022,12072668,2305.80,Private Contractors,Other Agencies
Southend-on-Sea Borough Council,http://www.opendatacommunities.org/id/unitary-authority/southend,ED Adults & Communities,Adult Social Care,1079,Mrs V L Rattan T/As Brook Care Home,07/12/2022,12072668,2561.72,Private Contractors,Other Agencies
Southend-on-Sea Borough Council,http://www.opendatacommunities.org/id/unitary-authority/southend,ED Adults & Communities,Adult Social Care,1083,Mrs V L Rattan T/As Brook Care Home,07/12/2022,12072668,3458.70,Private Contractors,Other Agencies
Southend-on-Sea Borough Council,http://www.opendatacommunities.org/id/unitary-authority/southend,ED Adults & Communities,Adult Social Care,1611,Mrs V L Rattan T/As Brook Care Home,07/12/2022,12072668,2097.48,Private Contractors,Other Agencies
Southend-on-Sea Borough Council,http://www.opendatacommunities.org/id/unitary-authority/southend,ED Adults & Communities,Adult Social Care,1115,Mrs V L Rattan T/As Brook Care Home,07/12/2022,12072668,4611.60,Contractor - Programmed Works,Other Agencies
Southend-on-Sea Borough Council,http://www.opendatacommunities.org/id/unitary-authority/southend,"ED Strategy, Change & Governance",Central Services,7105,Ms Akta Chipalkatty,07/12/2022,12072668,4250.00,Barristers fees,Services
Southend-on-Sea Borough Council,http://www.opendatacommunities.org/id/unitary-authority/southend,ED Adults & Communities,Adult Social Care,1266,REDACTED PERSONAL DATA,07/12/2022,12072668,2132.76,Private Contractors,Other Agencies
Southend-on-Sea Borough Council,http://www.opendatacommunities.org/id/unitary-authority/southend,ED Adults & Communities,Adult Social Care,1266,REDACTED PERSONAL DATA,07/12/2022,12072668,4017.72,Private Contractors,Other Agencies
Southend-on-Sea Borough Council,http://www.opendatacommunities.org/id/unitary-authority/southend,ED Adults & Communities,Adult Social Care,1065,Nah Care Ltd T/A Langley Lodge Nursing Home,07/12/2022,12072668,12160.51,Private Contractors,Other Agencies
Southend-on-Sea Borough Council,http://www.opendatacommunities.org/id/unitary-authority/southend,ED Adults & Communities,Adult Social Care,1068,Nah Care Ltd T/A Langley Lodge Nursing Home,07/12/2022,12072668,5746.44,Private Contractors,Other Agencies
Southend-on-Sea Borough Council,http://www.opendatacommunities.org/id/unitary-authority/southend,ED Adults & Communities,Adult Social Care,1070,Nah Care Ltd T/A Langley Lodge Nursing Home,07/12/2022,12072668,3000.00,Private Contractors,Other Agencies
Southend-on-Sea Borough Council,http://www.opendatacommunities.org/id/unitary-authority/southend,ED Adults & Communities,Adult Social Care,1266,REDACTED PERSONAL DATA,07/12/2022,12072668,2973.88,Private Contractors,Other Agencies
Southend-on-Sea Borough Council,http://www.opendatacommunities.org/id/unitary-authority/southend,ED Children & Public Health,Children And Education Services,3105,Nathan Timothy Foundation The Songwriting Charity,07/12/2022,12072668,600.00,Professional Fees,Services
Southend-on-Sea Borough Council,http://www.opendatacommunities.org/id/unitary-authority/southend,ED Adults & Communities,Adult Social Care,1070,Nazareth Care Charitable Trust T/A Nazareth House (Hammersmith),07/12/2022,12072668,2160.00,Private Contractors,Other Agencies
Southend-on-Sea Borough Council,http://www.opendatacommunities.org/id/unitary-authority/southend,ED Adults & Communities,Adult Social Care,1641,Nazareth Care Charitable Trust T/A Nazareth House (Hammersmith),07/12/2022,12072668,2652.00,Private Contractors,Other Agencies
Southend-on-Sea Borough Council,http://www.opendatacommunities.org/id/unitary-authority/southend,ED Adults & Communities,Adult Social Care,1070,Ncs Solutions T/A Abbottswood Lodge Care Home,07/12/2022,12072668,18811.80,Private Contractors,Other Agencies
Southend-on-Sea Borough Council,http://www.opendatacommunities.org/id/unitary-authority/southend,ED Adults & Communities,Adult Social Care,1070,Ncs T/A Westbury Day Care,07/12/2022,12072668,17540.55,Private Contractors,Other Agencies
Southend-on-Sea Borough Council,http://www.opendatacommunities.org/id/unitary-authority/southend,ED Adults & Communities,Adult Social Care,1083,Ncs T/A Westbury Day Care,07/12/2022,12072668,4199.85,Private Contractors,Other Agencies
Southend-on-Sea Borough Council,http://www.opendatacommunities.org/id/unitary-authority/southend,ED Adults & Communities,Adult Social Care,1466,Newbrae Care Home,07/12/2022,12072668,3000.00,COVID-19 Response,Other Agencies
Southend-on-Sea Borough Council,http://www.opendatacommunities.org/id/unitary-authority/southend,ED Adults & Communities,Adult Social Care,1070,Newbrae Care Home,07/12/2022,12072668,18515.84,Private Contractors,Other Agencies
Southend-on-Sea Borough Council,http://www.opendatacommunities.org/id/unitary-authority/southend,ED Adults & Communities,Adult Social Care,1083,Newbrae Care Home,07/12/2022,12072668,2305.80,Private Contractors,Other Agencies
Southend-on-Sea Borough Council,http://www.opendatacommunities.org/id/unitary-authority/southend,ED Adults & Communities,Adult Social Care,1294,Newhaven Care Limited,07/12/2022,12072668,16426.52,Private Contractors,Other Agencies
Southend-on-Sea Borough Council,http://www.opendatacommunities.org/id/unitary-authority/southend,ED Growth & Housing,Housing Services,6130,Norton Properties,07/12/2022,12072668,2706.13,Loans,Services
Southend-on-Sea Borough Council,http://www.opendatacommunities.org/id/unitary-authority/southend,ED Adults & Communities,Adult Social Care,1466,Oak Lodge Care Ltd T/A The Lilacs Residential Home,07/12/2022,12072668,3000.00,COVID-19 Response,Other Agencies
Southend-on-Sea Borough Council,http://www.opendatacommunities.org/id/unitary-authority/southend,ED Adults & Communities,Adult Social Care,1070,Oak Lodge Care Ltd T/A The Lilacs Residential Home,07/12/2022,12072668,20752.20,Private Contractors,Other Agencies
Southend-on-Sea Borough Council,http://www.opendatacommunities.org/id/unitary-authority/southend,ED Adults & Communities,Adult Social Care,1079,Oak Lodge Care Ltd T/A The Lilacs Residential Home,07/12/2022,12072668,2305.80,Private Contractors,Other Agencies
Southend-on-Sea Borough Council,http://www.opendatacommunities.org/id/unitary-authority/southend,ED Adults & Communities,Adult Social Care,1083,Oak Lodge Care Ltd T/A The Lilacs Residential Home,07/12/2022,12072668,9387.90,Private Contractors,Other Agencies
Southend-on-Sea Borough Council,http://www.opendatacommunities.org/id/unitary-authority/southend,ED Adults & Communities,Adult Social Care,1070,Oakdale Care Home Ltd,07/12/2022,12072668,3400.00,Private Contractors,Other Agencies
Southend-on-Sea Borough Council,http://www.opendatacommunities.org/id/unitary-authority/southend,ED Adults & Communities,Adult Social Care,1176,Oasis Supported Living Ltd,07/12/2022,12072668,3443.28,Private Contractors,Other Agencies
Southend-on-Sea Borough Council,http://www.opendatacommunities.org/id/unitary-authority/southend,ED Adults & Communities,Adult Social Care,1294,Oasis Supported Living Ltd,07/12/2022,12072668,34398.00,Private Contractors,Other Agencies
Southend-on-Sea Borough Council,http://www.opendatacommunities.org/id/unitary-authority/southend,ED Adults & Communities,Adult Social Care,1391,Oasis Supported Living Ltd,07/12/2022,12072668,3809.48,Private Contractors,Other Agencies
Southend-on-Sea Borough Council,http://www.opendatacommunities.org/id/unitary-authority/southend,ED Adults & Communities,Adult Social Care,1070,Obee Ltd T/A Bliss Residential Care Home,07/12/2022,12072668,9223.20,Private Contractors,Other Agencies
Southend-on-Sea Borough Council,http://www.opendatacommunities.org/id/unitary-authority/southend,ED Adults & Communities,Adult Social Care,1079,Obee Ltd T/A Bliss Residential Care Home,07/12/2022,12072668,2305.80,Private Contractors,Other Agencies
Southend-on-Sea Borough Council,http://www.opendatacommunities.org/id/unitary-authority/southend,ED Adults & Communities,Adult Social Care,1083,Obee Ltd T/A Bliss Residential Care Home,07/12/2022,12072668,2380.00,Private Contractors,Other Agencies
Southend-on-Sea Borough Council,http://www.opendatacommunities.org/id/unitary-authority/southend,ED Adults & Communities,Adult Social Care,1070,Orsett House Retirement Home Ltd,07/12/2022,12072668,2600.00,Private Contractors,Other Agencies
Southend-on-Sea Borough Council,http://www.opendatacommunities.org/id/unitary-authority/southend,ED Adults & Communities,Adult Social Care,1209,Ots Limited,07/12/2022,12072668,620.00,Tools And Equipment Purchase,Equipment Furniture And Materials
Southend-on-Sea Borough Council,http://www.opendatacommunities.org/id/unitary-authority/southend,ED Adults & Communities,Adult Social Care,1294,Outlook Care,07/12/2022,12072668,26492.12,Private Contractors,Other Agencies
Southend-on-Sea Borough Council,http://www.opendatacommunities.org/id/unitary-authority/southend,ED Adults & Communities,Adult Social Care,1675,Outlook Care,07/12/2022,12072668,4586.68,Private Contractors,Other Agencies
Southend-on-Sea Borough Council,http://www.opendatacommunities.org/id/unitary-authority/southend,ED Adults & Communities,Adult Social Care,1260,REDACTED PERSONAL DATA,07/12/2022,12072668,4170.04,Private Contractors,Other Agencies
Southend-on-Sea Borough Council,http://www.opendatacommunities.org/id/unitary-authority/southend,ED Growth & Housing,Central Services,5637,Paladin Outsourcing Ltd,07/12/2022,12072668,1950.00,Grants,Grants And Subscriptions
Southend-on-Sea Borough Council,http://www.opendatacommunities.org/id/unitary-authority/southend,ED Adults & Communities,Adult Social Care,1386,Partnerships In Care 1 Limited T/A Priory Group T/A Riverbank,07/12/2022,12072668,3136.56,Private Contractors,Other Agencies
Southend-on-Sea Borough Council,http://www.opendatacommunities.org/id/unitary-authority/southend,ED Adults & Communities,Adult Social Care,1260,Pathways Care Group Limited,07/12/2022,12072668,4018.56,Private Contractors,Other Agencies
Southend-on-Sea Borough Council,http://www.opendatacommunities.org/id/unitary-authority/southend,ED Adults & Communities,Adult Social Care,1386,Pathways Care Group Limited,07/12/2022,12072668,4275.88,Private Contractors,Other Agencies
Southend-on-Sea Borough Council,http://www.opendatacommunities.org/id/unitary-authority/southend,ED Adults & Communities,Adult Social Care,1641,Potensial Ltd T/A Potens,07/12/2022,12072668,2400.00,Private Contractors,Other Agencies
Southend-on-Sea Borough Council,http://www.opendatacommunities.org/id/unitary-authority/southend,ED Adults & Communities,Adult Social Care,1079,Priory Supporting Care Ltd,07/12/2022,12072668,2520.00,Private Contractors,Other Agencies
Southend-on-Sea Borough Council,http://www.opendatacommunities.org/id/unitary-authority/southend,ED Adults & Communities,Adult Social Care,1260,R G Care Ltd T/As Lifstan Way Ltd,07/12/2022,12072668,4963.28,Private Contractors,Other Agencies
Southend-on-Sea Borough Council,http://www.opendatacommunities.org/id/unitary-authority/southend,ED Adults & Communities,Adult Social Care,1386,R G Care Ltd T/As Lifstan Way Ltd,07/12/2022,12072668,22833.84,Private Contractors,Other Agencies
Southend-on-Sea Borough Council,http://www.opendatacommunities.org/id/unitary-authority/southend,ED Adults & Communities,Adult Social Care,1466,R G Care Ltd T/As Sands Lodge Residential Home,07/12/2022,12072668,2850.00,COVID-19 Response,Other Agencies
Southend-on-Sea Borough Council,http://www.opendatacommunities.org/id/unitary-authority/southend,ED Adults & Communities,Adult Social Care,1260,R G Care Ltd T/As Sands Lodge Residential Home,07/12/2022,12072668,5758.48,Private Contractors,Other Agencies
Southend-on-Sea Borough Council,http://www.opendatacommunities.org/id/unitary-authority/southend,ED Adults & Communities,Adult Social Care,1386,R G Care Ltd T/As Sands Lodge Residential Home,07/12/2022,12072668,22391.60,Private Contractors,Other Agencies
Southend-on-Sea Borough Council,http://www.opendatacommunities.org/id/unitary-authority/southend,ED Adults & Communities,Adult Social Care,1641,R G Care Ltd T/As Sands Lodge Residential Home,07/12/2022,12072668,6953.52,Private Contractors,Other Agencies
Southend-on-Sea Borough Council,http://www.opendatacommunities.org/id/unitary-authority/southend,ED Adults & Communities,Adult Social Care,1115,R G Care Ltd T/As Sands Lodge Residential Home,07/12/2022,12072668,10950.00,Contractor - Programmed Works,Other Agencies
Southend-on-Sea Borough Council,http://www.opendatacommunities.org/id/unitary-authority/southend,ED Adults & Communities,Adult Social Care,1386,Reed Care Homes Ltd T/As Nayland Lodge,07/12/2022,12072668,3638.32,Private Contractors,Other Agencies
Southend-on-Sea Borough Council,http://www.opendatacommunities.org/id/unitary-authority/southend,ED Growth & Housing,Central Services,5637,Revive Health Ltd,07/12/2022,12072668,1978.50,Grants,Grants And Subscriptions
Southend-on-Sea Borough Council,http://www.opendatacommunities.org/id/unitary-authority/southend,ED Adults & Communities,Adult Social Care,1260,Royal Mencap Society,07/12/2022,12072668,5870.20,Private Contractors,Other Agencies
Southend-on-Sea Borough Council,http://www.opendatacommunities.org/id/unitary-authority/southend,ED Adults & Communities,Adult Social Care,1294,Royal Mencap Society,07/12/2022,12072668,11941.50,Private Contractors,Other Agencies
Southend-on-Sea Borough Council,http://www.opendatacommunities.org/id/unitary-authority/southend,ED Adults & Communities,Adult Social Care,1675,Royal Mencap Society,07/12/2022,12072668,48172.20,Private Contractors,Other Agencies
Southend-on-Sea Borough Council,http://www.opendatacommunities.org/id/unitary-authority/southend,ED Adults & Communities,Adult Social Care,1079,Runwood Homes,07/12/2022,12072668,2305.80,Private Contractors,Other Agencies
Southend-on-Sea Borough Council,http://www.opendatacommunities.org/id/unitary-authority/southend,ED Adults & Communities,Adult Social Care,1070,Runwood Homes,07/12/2022,12072668,2340.24,Private Contractors,Other Agencies
Southend-on-Sea Borough Council,http://www.opendatacommunities.org/id/unitary-authority/southend,ED Adults & Communities,Adult Social Care,1065,Runwood Homes,07/12/2022,12072668,2576.12,Private Contractors,Other Agencies
Southend-on-Sea Borough Council,http://www.opendatacommunities.org/id/unitary-authority/southend,ED Adults & Communities,Adult Social Care,1070,Runwood Homes,07/12/2022,12072668,91858.47,Private Contractors,Other Agencies
Southend-on-Sea Borough Council,http://www.opendatacommunities.org/id/unitary-authority/southend,ED Adults & Communities,Adult Social Care,1079,Runwood Homes,07/12/2022,12072668,20938.68,Private Contractors,Other Agencies
Southend-on-Sea Borough Council,http://www.opendatacommunities.org/id/unitary-authority/southend,ED Adults & Communities,Adult Social Care,1083,Runwood Homes,07/12/2022,12072668,8449.85,Private Contractors,Other Agencies
Southend-on-Sea Borough Council,http://www.opendatacommunities.org/id/unitary-authority/southend,ED Adults & Communities,Adult Social Care,1581,Runwood Homes,07/12/2022,12072668,2305.80,Private Contractors,Other Agencies
Southend-on-Sea Borough Council,http://www.opendatacommunities.org/id/unitary-authority/southend,ED Adults & Communities,Adult Social Care,1671,Runwood Homes,07/12/2022,12072668,2305.80,Private Contractors,Other Agencies
Southend-on-Sea Borough Council,http://www.opendatacommunities.org/id/unitary-authority/southend,ED Adults & Communities,Adult Social Care,1115,Runwood Homes,07/12/2022,12072668,5200.00,Contractor - Programmed Works,Other Agencies
Southend-on-Sea Borough Council,http://www.opendatacommunities.org/id/unitary-authority/southend,ED Adults & Communities,Adult Social Care,1386,S B Care Ltd,07/12/2022,12072668,13934.20,Private Contractors,Other Agencies
Southend-on-Sea Borough Council,http://www.opendatacommunities.org/id/unitary-authority/southend,ED Finance & Resources,Housing Services,6165,Sale Appliances,07/12/2022,12072668,641.44,Materials,Equipment Furniture And Materials
Southend-on-Sea Borough Council,http://www.opendatacommunities.org/id/unitary-authority/southend,ED Adults & Communities,Adult Social Care,1070,Salvation Army,07/12/2022,12072668,29068.48,Private Contractors,Other Agencies
Southend-on-Sea Borough Council,http://www.opendatacommunities.org/id/unitary-authority/southend,ED Adults & Communities,Adult Social Care,1294,Sas Support & Solutions Limited,07/12/2022,12072668,9666.44,Private Contractors,Other Agencies
Southend-on-Sea Borough Council,http://www.opendatacommunities.org/id/unitary-authority/southend,ED Children & Public Health,Children And Education Services,3250,Savannah Lodge Limited - Primrose,07/12/2022,12072668,18821.42,Private Contractors,Other Agencies
Southend-on-Sea Borough Council,http://www.opendatacommunities.org/id/unitary-authority/southend,ED Adults & Communities,Adult Social Care,1070,Select Primecare Ltd,07/12/2022,12072668,2328.40,Private Contractors,Other Agencies
Southend-on-Sea Borough Council,http://www.opendatacommunities.org/id/unitary-authority/southend,ED Adults & Communities,Adult Social Care,1266,REDACTED PERSONAL DATA,07/12/2022,12072668,3690.12,Private Contractors,Other Agencies
Southend-on-Sea Borough Council,http://www.opendatacommunities.org/id/unitary-authority/southend,ED Adults & Communities,Adult Social Care,1070,Signature Senior Lifestyle Operations Ltd T/A Willow Tower Opco 1 Ltd,07/12/2022,12072668,6177.46,Private Contractors,Other Agencies
Southend-on-Sea Borough Council,http://www.opendatacommunities.org/id/unitary-authority/southend,ED Neighbourhoods & Environment,Cultural and Related Services,7540,Smi Int Group Ltd,07/12/2022,12072668,538.83,Tools And Equipment Repair And Maintenance,Equipment Furniture And Materials
Southend-on-Sea Borough Council,http://www.opendatacommunities.org/id/unitary-authority/southend,ED Adults & Communities,Adult Social Care,1466,Southend Care Ltd,07/12/2022,12072668,3000.00,COVID-19 Response,Other Agencies
Southend-on-Sea Borough Council,http://www.opendatacommunities.org/id/unitary-authority/southend,ED Adults & Communities,Adult Social Care,1466,Southend On Sea Darby & Joan Organisation,07/12/2022,12072668,3000.00,COVID-19 Response,Other Agencies
Southend-on-Sea Borough Council,http://www.opendatacommunities.org/id/unitary-authority/southend,ED Adults & Communities,Adult Social Care,1070,Southend On Sea Darby & Joan Organisation,07/12/2022,12072668,17407.04,Private Contractors,Other Agencies
Southend-on-Sea Borough Council,http://www.opendatacommunities.org/id/unitary-authority/southend,ED Adults & Communities,Adult Social Care,1079,Southend On Sea Darby & Joan Organisation,07/12/2022,12072668,10176.32,Private Contractors,Other Agencies
Southend-on-Sea Borough Council,http://www.opendatacommunities.org/id/unitary-authority/southend,ED Adults & Communities,Adult Social Care,1083,Southend On Sea Darby & Joan Organisation,07/12/2022,12072668,5520.00,Private Contractors,Other Agencies
Southend-on-Sea Borough Council,http://www.opendatacommunities.org/id/unitary-authority/southend,ED Adults & Communities,Adult Social Care,1176,Spdns Nurse Care Cic.,07/12/2022,12072668,950.00,Private Contractors,Other Agencies
Southend-on-Sea Borough Council,http://www.opendatacommunities.org/id/unitary-authority/southend,ED Adults & Communities,Adult Social Care,1105,Spdns Nurse Care Cic.,07/12/2022,12072668,1178.00,Private Contractors,Other Agencies
Southend-on-Sea Borough Council,http://www.opendatacommunities.org/id/unitary-authority/southend,ED Adults & Communities,Adult Social Care,1294,Spotlight Healthcare Services Limited,07/12/2022,12072668,71910.47,Private Contractors,Other Agencies
Southend-on-Sea Borough Council,http://www.opendatacommunities.org/id/unitary-authority/southend,ED Adults & Communities,Adult Social Care,1391,Spotlight Healthcare Services Limited,07/12/2022,12072668,12434.08,Private Contractors,Other Agencies
Southend-on-Sea Borough Council,http://www.opendatacommunities.org/id/unitary-authority/southend,ED Adults & Communities,Adult Social Care,1070,St Ediths Court,07/12/2022,12072668,15470.92,Private Contractors,Other Agencies
Southend-on-Sea Borough Council,http://www.opendatacommunities.org/id/unitary-authority/southend,ED Adults & Communities,Adult Social Care,1260,Summercare Homes Ltd,07/12/2022,12072668,5261.76,Private Contractors,Other Agencies
Southend-on-Sea Borough Council,http://www.opendatacommunities.org/id/unitary-authority/southend,ED Adults & Communities,Adult Social Care,1260,Summercare Homes Ltd,07/12/2022,12072668,3417.68,Private Contractors,Other Agencies
Southend-on-Sea Borough Council,http://www.opendatacommunities.org/id/unitary-authority/southend,ED Adults & Communities,Adult Social Care,1260,Summercare Homes Ltd,07/12/2022,12072668,35471.80,Private Contractors,Other Agencies
Southend-on-Sea Borough Council,http://www.opendatacommunities.org/id/unitary-authority/southend,ED Adults & Communities,Adult Social Care,1671,Summercare Homes Ltd,07/12/2022,12072668,1811.32,Private Contractors,Other Agencies
Southend-on-Sea Borough Council,http://www.opendatacommunities.org/id/unitary-authority/southend,ED Adults & Communities,Adult Social Care,1294,Summercare Homes Ltd,07/12/2022,12072668,31349.36,Private Contractors,Other Agencies
Southend-on-Sea Borough Council,http://www.opendatacommunities.org/id/unitary-authority/southend,ED Adults & Communities,Adult Social Care,1675,Summercare Homes Ltd,07/12/2022,12072668,1334.20,Private Contractors,Other Agencies
Southend-on-Sea Borough Council,http://www.opendatacommunities.org/id/unitary-authority/southend,ED Adults & Communities,Adult Social Care,1266,REDACTED PERSONAL DATA,07/12/2022,12072668,3531.36,Private Contractors,Other Agencies
Southend-on-Sea Borough Council,http://www.opendatacommunities.org/id/unitary-authority/southend,ED Children & Public Health,Children And Education Services,3250,Swaay Child And Adolescent Services Ltd,07/12/2022,12072668,19419.40,Private Contractors,Other Agencies
Southend-on-Sea Borough Council,http://www.opendatacommunities.org/id/unitary-authority/southend,ED Children & Public Health,Children And Education Services,3250,Symbol Family Support Services Ltd,07/12/2022,12072668,7806.79,Private Contractors,Other Agencies
Southend-on-Sea Borough Council,http://www.opendatacommunities.org/id/unitary-authority/southend,ED Adults & Communities,Adult Social Care,1266,REDACTED PERSONAL DATA,07/12/2022,12072668,1884.96,Private Contractors,Other Agencies
Southend-on-Sea Borough Council,http://www.opendatacommunities.org/id/unitary-authority/southend,ED Children & Public Health,Children And Education Services,3307,The Adolescent And Childrens Trust T/A Tact Fostering,07/12/2022,12072668,3906.00,Private Contractors,Other Agencies
Southend-on-Sea Borough Council,http://www.opendatacommunities.org/id/unitary-authority/southend,ED Adults & Communities,Adult Social Care,1391,The Beach House,07/12/2022,12072668,12257.24,Private Contractors,Other Agencies
Southend-on-Sea Borough Council,http://www.opendatacommunities.org/id/unitary-authority/southend,ED Adults & Communities,Adult Social Care,1260,The Children'S Trust,07/12/2022,12072668,15983.70,Private Contractors,Other Agencies
Southend-on-Sea Borough Council,http://www.opendatacommunities.org/id/unitary-authority/southend,ED Adults & Communities,Adult Social Care,1260,The Home Farm Trust,07/12/2022,12072668,7598.92,Private Contractors,Other Agencies
Southend-on-Sea Borough Council,http://www.opendatacommunities.org/id/unitary-authority/southend,ED Adults & Communities,Adult Social Care,1671,The National Society For Epilepsy,07/12/2022,12072668,4524.00,Private Contractors,Other Agencies
Southend-on-Sea Borough Council,http://www.opendatacommunities.org/id/unitary-authority/southend,ED Adults & Communities,Adult Social Care,1466,The Strathmore Care Group,07/12/2022,12072668,3000.00,COVID-19 Response,Other Agencies
Southend-on-Sea Borough Council,http://www.opendatacommunities.org/id/unitary-authority/southend,ED Adults & Communities,Adult Social Care,1260,The Strathmore Care Group,07/12/2022,12072668,2305.80,Private Contractors,Other Agencies
Southend-on-Sea Borough Council,http://www.opendatacommunities.org/id/unitary-authority/southend,ED Adults & Communities,Adult Social Care,1070,The Strathmore Care Group,07/12/2022,12072668,75940.57,Private Contractors,Other Agencies
Southend-on-Sea Borough Council,http://www.opendatacommunities.org/id/unitary-authority/southend,ED Adults & Communities,Adult Social Care,1079,The Strathmore Care Group,07/12/2022,12072668,9110.36,Private Contractors,Other Agencies
Southend-on-Sea Borough Council,http://www.opendatacommunities.org/id/unitary-authority/southend,ED Adults & Communities,Adult Social Care,1083,The Strathmore Care Group,07/12/2022,12072668,14411.25,Private Contractors,Other Agencies
Southend-on-Sea Borough Council,http://www.opendatacommunities.org/id/unitary-authority/southend,ED Adults & Communities,Adult Social Care,1192,The Strathmore Care Group,07/12/2022,12072668,9367.96,Private Contractors,Other Agencies
Southend-on-Sea Borough Council,http://www.opendatacommunities.org/id/unitary-authority/southend,ED Adults & Communities,Adult Social Care,1386,The Strathmore Care Group,07/12/2022,12072668,2305.80,Private Contractors,Other Agencies
Southend-on-Sea Borough Council,http://www.opendatacommunities.org/id/unitary-authority/southend,ED Adults & Communities,Adult Social Care,1581,The Strathmore Care Group,07/12/2022,12072668,2305.80,Private Contractors,Other Agencies
Southend-on-Sea Borough Council,http://www.opendatacommunities.org/id/unitary-authority/southend,ED Adults & Communities,Adult Social Care,1641,The Strathmore Care Group,07/12/2022,12072668,2305.80,Private Contractors,Other Agencies
Southend-on-Sea Borough Council,http://www.opendatacommunities.org/id/unitary-authority/southend,ED Adults & Communities,Adult Social Care,1115,The Strathmore Care Group,07/12/2022,12072668,4789.24,Contractor - Programmed Works,Other Agencies
Southend-on-Sea Borough Council,http://www.opendatacommunities.org/id/unitary-authority/southend,ED Children & Public Health,Public Health,7625,The Valkyrie Surgery,07/12/2022,12072668,580.00,Medical And Health Services,Services
Southend-on-Sea Borough Council,http://www.opendatacommunities.org/id/unitary-authority/southend,ED Adults & Communities,Adult Social Care,1260,Tlc Care Homes Ltd,07/12/2022,12072668,8560.23,Private Contractors,Other Agencies
Southend-on-Sea Borough Council,http://www.opendatacommunities.org/id/unitary-authority/southend,ED Adults & Communities,Adult Social Care,1294,Tlc Care Homes Ltd,07/12/2022,12072668,12384.68,Private Contractors,Other Agencies
Southend-on-Sea Borough Council,http://www.opendatacommunities.org/id/unitary-authority/southend,ED Adults & Communities,Adult Social Care,1209,Trulife Limited,07/12/2022,12072668,948.75,Tools And Equipment Purchase,Equipment Furniture And Materials
Southend-on-Sea Borough Council,http://www.opendatacommunities.org/id/unitary-authority/southend,ED Adults & Communities,Adult Social Care,1192,Umika Trading Ltd T/A Ambika Lodge,07/12/2022,12072668,3800.00,Private Contractors,Other Agencies
Southend-on-Sea Borough Council,http://www.opendatacommunities.org/id/unitary-authority/southend,ED Neighbourhoods & Environment,Cultural and Related Services,7510,Upson Mowers Ltd,07/12/2022,12072668,4099.55,Private Contractors,Other Agencies
Southend-on-Sea Borough Council,http://www.opendatacommunities.org/id/unitary-authority/southend,ED Adults & Communities,Adult Social Care,1070,Victoria Court Rest Home,07/12/2022,12072668,11623.20,Private Contractors,Other Agencies
Southend-on-Sea Borough Council,http://www.opendatacommunities.org/id/unitary-authority/southend,ED Adults & Communities,Adult Social Care,1079,Victoria Court Rest Home,07/12/2022,12072668,2968.00,Private Contractors,Other Agencies
Southend-on-Sea Borough Council,http://www.opendatacommunities.org/id/unitary-authority/southend,ED Adults & Communities,Adult Social Care,1260,Victoria Court Rest Home,07/12/2022,12072668,2305.80,Private Contractors,Other Agencies
Southend-on-Sea Borough Council,http://www.opendatacommunities.org/id/unitary-authority/southend,ED Adults & Communities,Adult Social Care,1641,Victoria Court Rest Home,07/12/2022,12072668,2305.80,Private Contractors,Other Agencies
Southend-on-Sea Borough Council,http://www.opendatacommunities.org/id/unitary-authority/southend,ED Adults & Communities,Adult Social Care,1671,Victoria Court Rest Home,07/12/2022,12072668,5278.00,Private Contractors,Other Agencies
Southend-on-Sea Borough Council,http://www.opendatacommunities.org/id/unitary-authority/southend,ED Adults & Communities,Adult Social Care,1391,Vivid Community Care Limited,07/12/2022,12072668,1687.56,Private Contractors,Other Agencies
Southend-on-Sea Borough Council,http://www.opendatacommunities.org/id/unitary-authority/southend,ED Adults & Communities,Adult Social Care,1466,Volsec Ltd T/A Volsec Healthcare,07/12/2022,12072668,3000.00,COVID-19 Response,Other Agencies
Southend-on-Sea Borough Council,http://www.opendatacommunities.org/id/unitary-authority/southend,ED Adults & Communities,Adult Social Care,1260,Voyage Ltd,07/12/2022,12072668,6811.00,Private Contractors,Other Agencies
Southend-on-Sea Borough Council,http://www.opendatacommunities.org/id/unitary-authority/southend,ED Adults & Communities,Adult Social Care,1070,Westcliff Lodge,07/12/2022,12072668,15199.52,Private Contractors,Other Agencies
Southend-on-Sea Borough Council,http://www.opendatacommunities.org/id/unitary-authority/southend,ED Adults & Communities,Adult Social Care,1070,Westminster House,07/12/2022,12072668,5758.96,Private Contractors,Other Agencies
Southend-on-Sea Borough Council,http://www.opendatacommunities.org/id/unitary-authority/southend,ED Adults & Communities,Adult Social Care,1070,Windermere Rest Home,07/12/2022,12072668,13952.12,Private Contractors,Other Agencies
Southend-on-Sea Borough Council,http://www.opendatacommunities.org/id/unitary-authority/southend,ED Adults & Communities,Adult Social Care,1083,Windermere Rest Home,07/12/2022,12072668,2305.80,Private Contractors,Other Agencies
Southend-on-Sea Borough Council,http://www.opendatacommunities.org/id/unitary-authority/southend,ED Neighbourhoods & Environment,Highways And Transport Services,5115,Writtle Forest Consultancy Ltd,07/12/2022,12072668,500.00,Private Contractors,Other Agencies
Southend-on-Sea Borough Council,http://www.opendatacommunities.org/id/unitary-authority/southend,ED Adults & Communities,Adult Social Care,1070,Yara Enterprises Limited T/A St Margarets Residential Home,07/12/2022,12072668,3600.00,Private Contractors,Other Agencies
Southend-on-Sea Borough Council,http://www.opendatacommunities.org/id/unitary-authority/southend,ED Adults & Communities,Adult Social Care,1391,York Lodge Limited,07/12/2022,12072668,851.48,Private Contractors,Other Agencies
Southend-on-Sea Borough Council,http://www.opendatacommunities.org/id/unitary-authority/southend,ED Adults & Communities,Adult Social Care,1180,Your World Recruitment Ltd,07/12/2022,12072668,1480.00,Agency Staff,Direct Employee Expenses
Southend-on-Sea Borough Council,http://www.opendatacommunities.org/id/unitary-authority/southend,Adults & Communities,Central Services,9010,(G) Blake Contractors Limited,09/12/2022,12072680,2064.00,Main Contractor,Main Contractor
Southend-on-Sea Borough Council,http://www.opendatacommunities.org/id/unitary-authority/southend,Adults & Communities,Central Services,9010,(G) David Stagg & Associates Ltd T/A Dsa Electrical,09/12/2022,12072680,52884.00,Main Contractor,Main Contractor
Southend-on-Sea Borough Council,http://www.opendatacommunities.org/id/unitary-authority/southend,Neighbourhoods & Environment,Central Services,9008,(G) Eurovia Infrastructure Limited,09/12/2022,12072680,202962.64,Main Contractor,Main Contractor
Southend-on-Sea Borough Council,http://www.opendatacommunities.org/id/unitary-authority/southend,Adults & Communities,Central Services,9010,(G) Kieran Lucas Contractors Ltd,09/12/2022,12072680,3580.00,Main Contractor,Main Contractor
Southend-on-Sea Borough Council,http://www.opendatacommunities.org/id/unitary-authority/southend,Adults & Communities,Central Services,9010,(G) Kieran Lucas Contractors Ltd,09/12/2022,12072680,544.00,Main Contractor,Main Contractor
Southend-on-Sea Borough Council,http://www.opendatacommunities.org/id/unitary-authority/southend,Adults & Communities,Central Services,9010,(G) Kieran Lucas Contractors Ltd,09/12/2022,12072680,4091.91,Main Contractor,Main Contractor
Southend-on-Sea Borough Council,http://www.opendatacommunities.org/id/unitary-authority/southend,Neighbourhoods & Environment,Central Services,9008,(G) Marlborough Surfacing Limited,09/12/2022,12072680,8476.11,Main Contractor,Main Contractor
